Workbook

Sheet All
B1: الاسم | C1: رقم الهوية | D1: رقم الجوال | E1: نوع السداد | F1: المديونية الاساسية | G1: خصم إلتزام السداد | H1: المديونية في حالة إلتزام السداد | I1: عدد الاقسام | J1: بداية السداد / تاريخ السداد | K1: القسط (1) | N1: القسط (2) | Q1: القسط (3) | T1: القسط (4) | W1: القسط (5) | Z1: القسط (6) | AC1: القسط (7) | AF1: القسط (8) | AI1: القسط (9) | AL1: القسط (10) | AO1: القسط (11) | AR1: القسط (12) | AU1: =F1 -> المديونية الاساسية | AV1: =G1 -> خصم إلتزام السداد | AW1: =H1 -> المديونية في حالة إلتزام السداد | AX1: المحصل | AY1: رصيد باقي المديونية بدون خصم | AZ1: رصيد باقي المديونية معمد الخصم | BA1: الملاحظات
K2: المبلغ | L2: رقم الايصال | M2: التاريخ | N2: المبلغ | O2: رقم الايصال | P2: التاريخ | Q2: المبلغ | R2: رقم الايصال | S2: التاريخ | T2: المبلغ | U2: رقم الايصال | V2: التاريخ | W2: المبلغ | X2: رقم الايصال | Y2: التاريخ | Z2: المبلغ | AA2: رقم الايصال | AB2: التاريخ | AC2: المبلغ | AD2: رقم الايصال | AE2: التاريخ | AF2: المبلغ | AG2: رقم الايصال | AH2: التاريخ | AI2: المبلغ | AJ2: رقم الايصال | AK2: التاريخ | AL2: المبلغ | AM2: رقم الايصال | AN2: التاريخ | AO2: المبلغ | AP2: رقم الايصال | AQ2: التاريخ | AR2: المبلغ | AS2: رقم الايصال | AT2: التاريخ
A3: 1 | B3: محسن على ابراهيم-1 | C3: 22132244567 | D3: 5565656 | E3: تقسيط | F3: 140000 | G3: 41700 | H3: =F3-G3 -> 98300 | I3: 10 | J3: 2020-05-25 | K3: 130 | L3: 15 | M3: 2020-03-22 | N3: 22 | O3: 22 | P3: 2020-03-22 | Q3: 22 | R3: 22 | S3: 2020-03-22 | T3: 22 | U3: 22 | V3: 43912 | W3: 22 | X3: 22 | Y3: 43912 | Z3: 22 | AA3: 22 | AB3: 43912 | AC3: 22 | AD3: 22 | AE3: 43912 | AF3: 22 | AG3: 22 | AH3: 43912 | AI3: 22 | AJ3: 22 | AK3: 43912 | AL3: 22 | AM3: 22 | AN3: 43912 | AO3: 22 | AP3: 22 | AQ3: 43912 | AR3: 22 | AS3: 22 | AT3: 43912 | AU3: =F3 -> 140000 | AV3: 41700 | AW3: 98300 | AX3: =SUM(K3,N3,Q3,T3,W3,Z3,AF3,AC3,AI3,AL3,AO3,AR3) -> 372 | AY3: =F3-AX3 -> 139628 | AZ3: =H3-AX3 -> 97928 | BA3: ثقلفصثفصثق
A4: 2 | B4: محسن على ابراهيم-2 | C4: 22132244567 | D4: 5565656 | E4: تقسيط | F4: 60000 | G4: 13500 | H4: =F4-G4 -> 46500 | I4: 9 | J4: 2020-05-30 | K4: 22 | L4: 22 | M4: 2020-03-23 | N4: 22 | O4: 22 | P4: 2020-03-23 | Q4: 22 | R4: 22 | S4: 2020-03-23 | T4: 22 | U4: 22 | V4: 43913 | W4: 22 | X4: 22 | Y4: 43913 | Z4: 22 | AA4: 22 | AB4: 43913 | AC4: 22 | AD4: 22 | AE4: 43913 | AF4: 22 | AG4: 22 | AH4: 43913 | AI4: 22 | AJ4: 22 | AK4: 43913 | AL4: 22 | AM4: 22 | AN4: 43913 | AO4: 22 | AP4: 22 | AQ4: 43913 | AR4: 22 | AS4: 22 | AT4: 43913 | AU4: 60000 | AV4: 13500 | AW4: 46500 | AX4: =SUM(K4+N4+Q4+T4+W4+Z4+AF4+AC4+AI4+AL4+AO4+AR4) -> 264 | AY4: =F4-AX4 -> 59736 | AZ4: 46236
A5: 3 | B5: محسن على ابراهيم-3 | C5: 22132244567 | D5: 5565656 | E5: تقسيط | F5: 90000 | G5: 0 | H5: 90000 | I5: 8 | J5: 2020-03-16 | K5: 22 | L5: 22 | M5: 2020-03-24 | N5: 22 | O5: 22 | P5: 2020-03-24 | Q5: 22 | R5: 22 | S5: 2020-03-24 | T5: 22 | U5: 22 | V5: 43914 | W5: 22 | X5: 22 | Y5: 43914 | Z5: 22 | AA5: 22 | AB5: 43914 | AC5: 22 | AD5: 22 | AE5: 43914 | AF5: 22 | AG5: 22 | AH5: 43914 | AI5: 22 | AJ5: 22 | AK5: 43914 | AL5: 22 | AM5: 22 | AN5: 43914 | AO5: 22 | AP5: 22 | AQ5: 43914 | AR5: 22 | AS5: 22 | AT5: 43914 | AU5: 90000 | AV5: 0 | AW5: 90000 | AX5: 264 | AY5: 89736 | AZ5: 89736
A6: 4 | B6: محسن على ابراهيم-4 | C6: 22132244567 | D6: 5565656 | E6: آجل | F6: 80000 | G6: 28000 | H6: 52000 | I6: 5 | J6: 2020-04-16 | K6: 22 | L6: 22 | M6: 2020-03-25 | N6: 22 | O6: 22 | P6: 2020-03-25 | Q6: 22 | R6: 22 | S6: 2020-03-25 | T6: 22 | U6: 22 | V6: 43915 | W6: 22 | X6: 22 | Y6: 43915 | Z6: 22 | AA6: 22 | AB6: 43915 | AC6: 22 | AD6: 22 | AE6: 43915 | AF6: 22 | AG6: 22 | AH6: 43915 | AI6: 22 | AJ6: 22 | AK6: 43915 | AL6: 22 | AM6: 22 | AN6: 43915 | AO6: 22 | AP6: 22 | AQ6: 43915 | AR6: 22 | AS6: 22 | AT6: 43915 | AU6: 80000 | AV6: 28000 | AW6: 52000 | AX6: =SUM(K6+N6+Q6+T6+W6+Z6+AF6+AC6+AI6+AL6+AO6+AR6) -> 264 | AY6: 79736 | AZ6: 51736
A7: 5 | B7: محسن على ابراهيم-5 | C7: 22132244567 | D7: 5565656 | E7: آجل | F7: 650000 | G7: 144000 | H7: 506000 | I7: 5 | J7: 2020-07-28 | K7: 22 | L7: 22 | M7: 2020-03-26 | N7: 22 | O7: 22 | P7: 2020-03-26 | Q7: 22 | R7: 22 | S7: 2020-03-26 | T7: 22 | U7: 22 | V7: 43916 | W7: 22 | X7: 22 | Y7: 43916 | Z7: 22 | AA7: 22 | AB7: 43916 | AC7: 22 | AD7: 22 | AE7: 43916 | AF7: 22 | AG7: 22 | AH7: 43916 | AI7: 22 | AJ7: 22 | AK7: 43916 | AL7: 22 | AM7: 22 | AN7: 43916 | AO7: 22 | AP7: 22 | AQ7: 43916 | AR7: 22 | AS7: 22 | AT7: 43916 | AU7: 650000 | AV7: 144000 | AW7: 506000 | AX7: 264 | AY7: 649736 | AZ7: 505736
A8: 6 | B8: محسن على ابراهيم-6 | C8: 22132244567 | D8: 5565656 | E8: آجل | F8: 450000 | G8: 230000 | H8: 220000 | I8: 5 | J8: 2020-07-29 | K8: 22 | L8: 22 | M8: 2020-03-27 | N8: 22 | O8: 22 | P8: 2020-03-27 | Q8: 22 | R8: 22 | S8: 2020-03-27 | T8: 22 | U8: 22 | V8: 43917 | W8: 22 | X8: 22 | Y8: 43917 | Z8: 22 | AA8: 22 | AB8: 43917 | AC8: 22 | AD8: 22 | AE8: 43917 | AF8: 22 | AG8: 22 | AH8: 43917 | AI8: 22 | AJ8: 22 | AK8: 43917 | AL8: 22 | AM8: 22 | AN8: 43917 | AO8: 22 | AP8: 22 | AQ8: 43917 | AR8: 22 | AS8: 22 | AT8: 43917 | AU8: 450000 | AV8: 230000 | AW8: 220000 | AX8: 264 | AY8: 449736 | AZ8: 219736
A9: 7 | B9: محسن على ابراهيم-7 | C9: 22132244567 | D9: 5565656 | E9: آجل | F9: 110000 | G9: 47000 | H9: 63000 | I9: 5 | J9: 2020-05-19 | K9: 22 | L9: 22 | M9: 2020-03-28 | N9: 22 | O9: 22 | P9: 2020-03-28 | Q9: 22 | R9: 22 | S9: 2020-03-28 | T9: 22 | U9: 22 | V9: 43918 | W9: 22 | X9: 22 | Y9: 43918 | Z9: 22 | AA9: 22 | AB9: 43918 | AC9: 22 | AD9: 22 | AE9: 43918 | AF9: 22 | AG9: 22 | AH9: 43918 | AI9: 22 | AJ9: 22 | AK9: 43918 | AL9: 22 | AM9: 22 | AN9: 43918 | AO9: 22 | AP9: 22 | AQ9: 43918 | AR9: 22 | AS9: 22 | AT9: 43918 | AU9: 110000 | AV9: 47000 | AW9: 63000 | AX9: 264 | AY9: 109736 | AZ9: 62736
A10: 8 | B10: محسن على ابراهيم-8 | C10: 22132244567 | D10: 5565656 | E10: آجل | F10: 52500 | G10: 10000 | H10: 42500 | I10: 5 | J10: 2020-08-11 | K10: 22 | L10: 22 | M10: 2020-03-29 | N10: 22 | O10: 22 | P10: 2020-03-29 | Q10: 22 | R10: 22 | S10: 2020-03-29 | T10: 22 | U10: 22 | V10: 43919 | W10: 22 | X10: 22 | Y10: 43919 | Z10: 22 | AA10: 22 | AB10: 43919 | AC10: 22 | AD10: 22 | AE10: 43919 | AF10: 22 | AG10: 22 | AH10: 43919 | AI10: 22 | AJ10: 22 | AK10: 43919 | AL10: 22 | AM10: 22 | AN10: 43919 | AO10: 22 | AP10: 22 | AQ10: 43919 | AR10: 22 | AS10: 22 | AT10: 43919 | AU10: 52500 | AV10: 10000 | AW10: 42500 | AX10: 264 | AY10: 52236 | AZ10: 42236
A11: 9 | B11: محسن على ابراهيم-9 | C11: 22132244567 | D11: 5565656 | E11: آجل | F11: 52500 | G11: 10000 | H11: 42500 | I11: 5 | J11: 2020-08-12 | K11: 22 | L11: 22 | M11: 2020-03-30 | N11: 22 | O11: 22 | P11: 2020-03-30 | Q11: 22 | R11: 22 | S11: 2020-03-30 | T11: 22 | U11: 22 | V11: 43920 | W11: 22 | X11: 22 | Y11: 43920 | Z11: 22 | AA11: 22 | AB11: 43920 | AC11: 22 | AD11: 22 | AE11: 43920 | AF11: 22 | AG11: 22 | AH11: 43920 | AI11: 22 | AJ11: 22 | AK11: 43920 | AL11: 22 | AM11: 22 | AN11: 43920 | AO11: 22 | AP11: 22 | AQ11: 43920 | AR11: 22 | AS11: 22 | AT11: 43920 | AU11: 52500 | AV11: 10000 | AW11: 42500 | AX11: 264 | AY11: 52236 | AZ11: 42236
A12: 10 | B12: محسن على ابراهيم-10 | C12: 22132244567 | D12: 5565656 | E12: تقسيط | F12: 52500 | G12: 10000 | H12: 42500 | I12: 5 | J12: 2020-08-13 | K12: 22 | L12: 22 | M12: 2020-03-31 | N12: 22 | O12: 22 | P12: 2020-03-31 | Q12: 22 | R12: 22 | S12: 43921 | T12: 22 | U12: 22 | V12: 43921 | W12: 22 | X12: 22 | Y12: 43921 | Z12: 22 | AA12: 22 | AB12: 43921 | AC12: 22 | AD12: 22 | AE12: 43921 | AF12: 22 | AG12: 22 | AH12: 43921 | AI12: 22 | AJ12: 22 | AK12: 43921 | AL12: 22 | AM12: 22 | AN12: 43921 | AO12: 22 | AP12: 22 | AQ12: 43921 | AR12: 22 | AS12: 22 | AT12: 43921 | AU12: 52500 | AV12: 10000 | AW12: 42500 | AX12: 264 | AY12: 52236 | AZ12: 42236
A13: 11 | B13: محسن على ابراهيم-11 | C13: 22132244567 | D13: 5565656 | E13: آجل | F13: 52500 | G13: 10000 | H13: 42500 | I13: 5 | J13: 2020-08-14 | K13: 22 | L13: 22 | M13: 2020-04-01 | N13: 22 | O13: 22 | P13: 2020-04-01 | Q13: 22 | R13: 22 | S13: 43922 | T13: 22 | U13: 22 | V13: 43922 | W13: 22 | X13: 22 | Y13: 43922 | Z13: 22 | AA13: 22 | AB13: 43922 | AC13: 22 | AD13: 22 | AE13: 43922 | AF13: 22 | AG13: 22 | AH13: 43922 | AI13: 22 | AJ13: 22 | AK13: 43922 | AL13: 22 | AM13: 22 | AN13: 43922 | AO13: 22 | AP13: 22 | AQ13: 43922 | AR13: 22 | AS13: 22 | AT13: 43922 | AU13: 52500 | AV13: 10000 | AW13: 42500 | AX13: 264 | AY13: 52236 | AZ13: 42236
A14: 12 | B14: محسن على ابراهيم-12 | C14: 22132244567 | D14: 5565656 | E14: تقسيط | F14: 52500 | G14: 10000 | H14: 42500 | I14: 5 | J14: 2020-08-15 | K14: 22 | L14: 22 | M14: 2020-04-02 | N14: 22 | O14: 22 | P14: 2020-04-02 | Q14: 22 | R14: 22 | S14: 43923 | T14: 22 | U14: 22 | V14: 43923 | W14: 22 | X14: 22 | Y14: 43923 | Z14: 22 | AA14: 22 | AB14: 43923 | AC14: 22 | AD14: 22 | AE14: 43923 | AF14: 22 | AG14: 22 | AH14: 43923 | AI14: 22 | AJ14: 22 | AK14: 43923 | AL14: 22 | AM14: 22 | AN14: 43923 | AO14: 22 | AP14: 22 | AQ14: 43923 | AR14: 22 | AS14: 22 | AT14: 43923 | AU14: 52500 | AV14: 10000 | AW14: 42500 | AX14: 264 | AY14: 52236 | AZ14: 42236
A15: 13 | B15: محسن على ابراهيم-13 | C15: 22132244567 | D15: 5565656 | E15: آجل | F15: 52500 | G15: 10000 | H15: 42500 | I15: 6 | J15: 2020-08-16 | K15: 22 | L15: 22 | M15: 2020-04-03 | N15: 22 | O15: 22 | P15: 2020-04-03 | Q15: 22 | R15: 22 | S15: 43923 | T15: 22 | U15: 22 | V15: 43923 | W15: 22 | X15: 22 | Y15: 43923 | Z15: 22 | AA15: 22 | AB15: 43923 | AC15: 22 | AD15: 22 | AE15: 43923 | AF15: 22 | AG15: 22 | AH15: 43923 | AI15: 22 | AJ15: 22 | AK15: 43923 | AL15: 22 | AM15: 22 | AN15: 43923 | AO15: 22 | AP15: 22 | AQ15: 43923 | AR15: 22 | AS15: 22 | AT15: 43923 | AU15: 52500 | AV15: 10000 | AW15: 42500 | AX15: 264 | AY15: 52236 | AZ15: 42236
A16: 14 | B16: محسن على ابراهيم-14 | C16: 22132244567 | D16: 5565656 | E16: تقسيط | F16: 52500 | G16: 10000 | H16: 42500 | I16: 7 | J16: 2020-08-17 | K16: 22 | L16: 22 | M16: 2020-04-04 | N16: 22 | O16: 22 | P16: 2020-04-04 | Q16: 22 | R16: 22 | S16: 43923 | T16: 22 | U16: 22 | V16: 43923 | W16: 22 | X16: 22 | Y16: 43923 | Z16: 22 | AA16: 22 | AB16: 43923 | AC16: 22 | AD16: 22 | AE16: 43923 | AF16: 22 | AG16: 22 | AH16: 43923 | AI16: 22 | AJ16: 22 | AK16: 43923 | AL16: 22 | AM16: 22 | AN16: 43923 | AO16: 22 | AP16: 22 | AQ16: 43923 | AR16: 22 | AS16: 22 | AT16: 43923 | AU16: 52500 | AV16: 10000 | AW16: 42500 | AX16: 264 | AY16: 52236 | AZ16: 42236
A17: 15 | B17: محسن على ابراهيم-15 | C17: 22132244567 | D17: 5565656 | E17: آجل | F17: 52500 | G17: 10000 | H17: 42500 | I17: 8 | J17: 2020-08-18 | K17: 22 | L17: 22 | M17: 2020-04-05 | N17: 22 | O17: 22 | P17: 2020-04-05 | Q17: 22 | R17: 22 | S17: 43923 | T17: 22 | U17: 22 | V17: 43923 | W17: 22 | X17: 22 | Y17: 43923 | Z17: 22 | AA17: 22 | AB17: 43923 | AC17: 22 | AD17: 22 | AE17: 43923 | AF17: 22 | AG17: 22 | AH17: 43923 | AI17: 22 | AJ17: 22 | AK17: 43923 | AL17: 22 | AM17: 22 | AN17: 43923 | AO17: 22 | AP17: 22 | AQ17: 43923 | AR17: 22 | AS17: 22 | AT17: 43923 | AU17: 52500 | AV17: 10000 | AW17: 42500 | AX17: 264 | AY17: 52236 | AZ17: 42236
A18: 16 | B18: محسن على ابراهيم-16 | C18: 22132244567 | D18: 5565656 | E18: تقسيط | F18: 52500 | G18: 10000 | H18: 42500 | I18: 9 | J18: 2020-08-19 | K18: 22 | L18: 22 | M18: 2020-04-06 | N18: 22 | O18: 22 | P18: 2020-04-06 | Q18: 22 | R18: 22 | S18: 43923 | T18: 22 | U18: 22 | V18: 43923 | W18: 22 | X18: 22 | Y18: 43923 | Z18: 22 | AA18: 22 | AB18: 43923 | AC18: 22 | AD18: 22 | AE18: 43923 | AF18: 22 | AG18: 22 | AH18: 43923 | AI18: 22 | AJ18: 22 | AK18: 43923 | AL18: 22 | AM18: 22 | AN18: 43923 | AO18: 22 | AP18: 22 | AQ18: 43923 | AR18: 22 | AS18: 22 | AT18: 43923 | AU18: 52500 | AV18: 10000 | AW18: 42500 | AX18: 264 | AY18: 52236 | AZ18: 42236
A19: 17 | B19: محسن على ابراهيم-17 | C19: 22132244567 | D19: 5565656 | E19: آجل | F19: 52500 | G19: 10000 | H19: 42500 | I19: 10 | J19: 2020-08-20 | K19: 22 | L19: 22 | M19: 2020-04-07 | N19: 22 | O19: 22 | P19: 2020-04-07 | Q19: 22 | R19: 22 | S19: 43923 | T19: 22 | U19: 22 | V19: 43923 | W19: 22 | X19: 22 | Y19: 43923 | Z19: 22 | AA19: 22 | AB19: 43923 | AC19: 22 | AD19: 22 | AE19: 43923 | AF19: 22 | AG19: 22 | AH19: 43923 | AI19: 22 | AJ19: 22 | AK19: 43923 | AL19: 22 | AM19: 22 | AN19: 43923 | AO19: 22 | AP19: 22 | AQ19: 43923 | AR19: 22 | AS19: 22 | AT19: 43923 | AU19: 52500 | AV19: 10000 | AW19: 42500 | AX19: 264 | AY19: 52236 | AZ19: 42236
A20: 18 | B20: محسن على ابراهيم-18 | C20: 22132244567 | D20: 5565656 | E20: تقسيط | F20: 52500 | G20: 10000 | H20: 42500 | I20: 11 | J20: 2020-08-21 | K20: 22 | L20: 22 | M20: 2020-04-08 | N20: 22 | O20: 22 | P20: 2020-04-08 | Q20: 22 | R20: 22 | S20: 43923 | T20: 22 | U20: 22 | V20: 43923 | W20: 22 | X20: 22 | Y20: 43923 | Z20: 22 | AA20: 22 | AB20: 43923 | AC20: 22 | AD20: 22 | AE20: 43923 | AF20: 22 | AG20: 22 | AH20: 43923 | AI20: 22 | AJ20: 22 | AK20: 43923 | AL20: 22 | AM20: 22 | AN20: 43923 | AO20: 22 | AP20: 22 | AQ20: 43923 | AR20: 22 | AS20: 22 | AT20: 43923 | AU20: 52500 | AV20: 10000 | AW20: 42500 | AX20: 264 | AY20: 52236 | AZ20: 42236
A21: 19 | B21: محسن على ابراهيم-19 | C21: 22132244567 | D21: 5565656 | E21: آجل | F21: 52500 | G21: 10000 | H21: 42500 | I21: 12 | J21: 2020-08-22 | K21: 22 | L21: 22 | M21: 2020-04-09 | N21: 22 | O21: 22 | P21: 2020-04-09 | Q21: 22 | R21: 22 | S21: 43923 | T21: 22 | U21: 22 | V21: 43923 | W21: 22 | X21: 22 | Y21: 43923 | Z21: 22 | AA21: 22 | AB21: 43923 | AC21: 22 | AD21: 22 | AE21: 43923 | AF21: 22 | AG21: 22 | AH21: 43923 | AI21: 22 | AJ21: 22 | AK21: 43923 | AL21: 22 | AM21: 22 | AN21: 43923 | AO21: 22 | AP21: 22 | AQ21: 43923 | AR21: 22 | AS21: 22 | AT21: 43923 | AU21: 52500 | AV21: 10000 | AW21: 42500 | AX21: 264 | AY21: 52236 | AZ21: 42236
A22: 20 | B22: محسن على ابراهيم-20 | C22: 22132244567 | D22: 5565656 | E22: تقسيط | F22: 52500 | G22: 10000 | H22: 42500 | I22: 13 | J22: 2020-08-23 | K22: 22 | L22: 22 | M22: 2020-04-10 | N22: 22 | O22: 22 | P22: 2020-04-10 | Q22: 22 | R22: 22 | S22: 43923 | T22: 22 | U22: 22 | V22: 43923 | W22: 22 | X22: 22 | Y22: 43923 | Z22: 22 | AA22: 22 | AB22: 43923 | AC22: 22 | AD22: 22 | AE22: 43923 | AF22: 22 | AG22: 22 | AH22: 43923 | AI22: 22 | AJ22: 22 | AK22: 43923 | AL22: 22 | AM22: 22 | AN22: 43923 | AO22: 22 | AP22: 22 | AQ22: 43923 | AR22: 22 | AS22: 22 | AT22: 43923 | AU22: 52500 | AV22: 10000 | AW22: 42500 | AX22: 264 | AY22: 52236 | AZ22: 42236
A23: 21 | B23: محسن على ابراهيم-21 | C23: 22132244567 | D23: 5565656 | E23: آجل | F23: 52500 | G23: 10000 | H23: 42500 | I23: 14 | J23: 2020-08-24 | K23: 22 | L23: 22 | M23: 2020-04-11 | N23: 22 | O23: 22 | P23: 2020-04-11 | Q23: 22 | R23: 22 | S23: 43923 | T23: 22 | U23: 22 | V23: 43923 | W23: 22 | X23: 22 | Y23: 43923 | Z23: 22 | AA23: 22 | AB23: 43923 | AC23: 22 | AD23: 22 | AE23: 43923 | AF23: 22 | AG23: 22 | AH23: 43923 | AI23: 22 | AJ23: 22 | AK23: 43923 | AL23: 22 | AM23: 22 | AN23: 43923 | AO23: 22 | AP23: 22 | AQ23: 43923 | AR23: 22 | AS23: 22 | AT23: 43923 | AU23: 52500 | AV23: 10000 | AW23: 42500 | AX23: 264 | AY23: 52236 | AZ23: 42236
A24: 22 | B24: محسن على ابراهيم-22 | C24: 22132244567 | D24: 5565656 | E24: تقسيط | F24: 52500 | G24: 10000 | H24: 42500 | I24: 15 | J24: 2020-08-25 | K24: 22 | L24: 22 | M24: 2020-04-12 | N24: 22 | O24: 22 | P24: 2020-04-12 | Q24: 22 | R24: 22 | S24: 43923 | T24: 22 | U24: 22 | V24: 43923 | W24: 22 | X24: 22 | Y24: 43923 | Z24: 22 | AA24: 22 | AB24: 43923 | AC24: 22 | AD24: 22 | AE24: 43923 | AF24: 22 | AG24: 22 | AH24: 43923 | AI24: 22 | AJ24: 22 | AK24: 43923 | AL24: 22 | AM24: 22 | AN24: 43923 | AO24: 22 | AP24: 22 | AQ24: 43923 | AR24: 22 | AS24: 22 | AT24: 43923 | AU24: 52500 | AV24: 10000 | AW24: 42500 | AX24: 264 | AY24: 52236 | AZ24: 42236
A25: 23 | B25: محسن على ابراهيم-23 | C25: 22132244567 | D25: 5565656 | E25: آجل | F25: 52500 | G25: 10000 | H25: 42500 | I25: 16 | J25: 2020-08-26 | K25: 22 | L25: 22 | M25: 2020-04-13 | N25: 22 | O25: 22 | P25: 2020-04-13 | Q25: 22 | R25: 22 | S25: 43923 | T25: 22 | U25: 22 | V25: 43923 | W25: 22 | X25: 22 | Y25: 43923 | Z25: 22 | AA25: 22 | AB25: 43923 | AC25: 22 | AD25: 22 | AE25: 43923 | AF25: 22 | AG25: 22 | AH25: 43923 | AI25: 22 | AJ25: 22 | AK25: 43923 | AL25: 22 | AM25: 22 | AN25: 43923 | AO25: 22 | AP25: 22 | AQ25: 43923 | AR25: 22 | AS25: 22 | AT25: 43923 | AU25: 52500 | AV25: 10000 | AW25: 42500 | AX25: 264 | AY25: 52236 | AZ25: 42236
A26: 24 | B26: محسن على ابراهيم-24 | C26: 22132244567 | D26: 5565656 | E26: تقسيط | F26: 52500 | G26: 10000 | H26: 42500 | I26: 17 | J26: 2020-08-27 | K26: 22 | L26: 22 | M26: 2020-04-14 | N26: 22 | O26: 22 | P26: 2020-04-14 | Q26: 22 | R26: 22 | S26: 43923 | T26: 22 | U26: 22 | V26: 43923 | W26: 22 | X26: 22 | Y26: 43923 | Z26: 22 | AA26: 22 | AB26: 43923 | AC26: 22 | AD26: 22 | AE26: 43923 | AF26: 22 | AG26: 22 | AH26: 43923 | AI26: 22 | AJ26: 22 | AK26: 43923 | AL26: 22 | AM26: 22 | AN26: 43923 | AO26: 22 | AP26: 22 | AQ26: 43923 | AR26: 22 | AS26: 22 | AT26: 43923 | AU26: 52500 | AV26: 10000 | AW26: 42500 | AX26: 264 | AY26: 52236 | AZ26: 42236
A27: 25 | B27: محسن على ابراهيم-25 | C27: 22132244567 | D27: 5565656 | E27: آجل | F27: 52500 | G27: 10000 | H27: 42500 | I27: 18 | J27: 2020-08-28 | K27: 22 | L27: 22 | M27: 2020-04-15 | N27: 22 | O27: 22 | P27: 2020-04-15 | Q27: 22 | R27: 22 | S27: 43923 | T27: 22 | U27: 22 | V27: 43923 | W27: 22 | X27: 22 | Y27: 43923 | Z27: 22 | AA27: 22 | AB27: 43923 | AC27: 22 | AD27: 22 | AE27: 43923 | AF27: 22 | AG27: 22 | AH27: 43923 | AI27: 22 | AJ27: 22 | AK27: 43923 | AL27: 22 | AM27: 22 | AN27: 43923 | AO27: 22 | AP27: 22 | AQ27: 43923 | AR27: 22 | AS27: 22 | AT27: 43923 | AU27: 52500 | AV27: 10000 | AW27: 42500 | AX27: 264 | AY27: 52236 | AZ27: 42236
A28: 26 | B28: محسن على ابراهيم-26 | C28: 22132244567 | D28: 5565656 | E28: تقسيط | F28: 52500 | G28: 10000 | H28: 42500 | I28: 19 | J28: 2020-08-29 | K28: 22 | L28: 22 | M28: 2020-04-16 | N28: 22 | O28: 22 | P28: 2020-04-16 | Q28: 22 | R28: 22 | S28: 43923 | T28: 22 | U28: 22 | V28: 43923 | W28: 22 | X28: 22 | Y28: 43923 | Z28: 22 | AA28: 22 | AB28: 43923 | AC28: 22 | AD28: 22 | AE28: 43923 | AF28: 22 | AG28: 22 | AH28: 43923 | AI28: 22 | AJ28: 22 | AK28: 43923 | AL28: 22 | AM28: 22 | AN28: 43923 | AO28: 22 | AP28: 22 | AQ28: 43923 | AR28: 22 | AS28: 22 | AT28: 43923 | AU28: 52500 | AV28: 10000 | AW28: 42500 | AX28: 264 | AY28: 52236 | AZ28: 42236
A29: 27 | B29: محسن على ابراهيم-27 | C29: 22132244567 | D29: 5565656 | E29: آجل | F29: 52500 | G29: 10000 | H29: 42500 | I29: 20 | J29: 2020-08-30 | K29: 22 | L29: 22 | M29: 2020-04-17 | N29: 22 | O29: 22 | P29: 2020-04-17 | Q29: 22 | R29: 22 | S29: 43923 | T29: 22 | U29: 22 | V29: 43923 | W29: 22 | X29: 22 | Y29: 43923 | Z29: 22 | AA29: 22 | AB29: 43923 | AC29: 22 | AD29: 22 | AE29: 43923 | AF29: 22 | AG29: 22 | AH29: 43923 | AI29: 22 | AJ29: 22 | AK29: 43923 | AL29: 22 | AM29: 22 | AN29: 43923 | AO29: 22 | AP29: 22 | AQ29: 43923 | AR29: 22 | AS29: 22 | AT29: 43923 | AU29: 52500 | AV29: 10000 | AW29: 42500 | AX29: 264 | AY29: 52236 | AZ29: 42236
A30: 28 | B30: محسن على ابراهيم-28 | C30: 22132244567 | D30: 5565656 | E30: تقسيط | F30: 52500 | G30: 10000 | H30: 42500 | I30: 21 | J30: 2020-08-31 | K30: 22 | L30: 22 | M30: 2020-04-18 | N30: 22 | O30: 22 | P30: 2020-04-18 | Q30: 22 | R30: 22 | S30: 43923 | T30: 22 | U30: 22 | V30: 43923 | W30: 22 | X30: 22 | Y30: 43923 | Z30: 22 | AA30: 22 | AB30: 43923 | AC30: 22 | AD30: 22 | AE30: 43923 | AF30: 22 | AG30: 22 | AH30: 43923 | AI30: 22 | AJ30: 22 | AK30: 43923 | AL30: 22 | AM30: 22 | AN30: 43923 | AO30: 22 | AP30: 22 | AQ30: 43923 | AR30: 22 | AS30: 22 | AT30: 43923 | AU30: 52500 | AV30: 10000 | AW30: 42500 | AX30: 264 | AY30: 52236 | AZ30: 42236
A31: 29 | B31: محسن على ابراهيم-29 | C31: 22132244567 | D31: 5565656 | E31: آجل | F31: 52500 | G31: 10000 | H31: 42500 | I31: 22 | J31: 2020-09-01 | K31: 22 | L31: 22 | M31: 2020-04-19 | N31: 22 | O31: 22 | P31: 2020-04-19 | Q31: 22 | R31: 22 | S31: 43923 | T31: 22 | U31: 22 | V31: 43923 | W31: 22 | X31: 22 | Y31: 43923 | Z31: 22 | AA31: 22 | AB31: 43923 | AC31: 22 | AD31: 22 | AE31: 43923 | AF31: 22 | AG31: 22 | AH31: 43923 | AI31: 22 | AJ31: 22 | AK31: 43923 | AL31: 22 | AM31: 22 | AN31: 43923 | AO31: 22 | AP31: 22 | AQ31: 43923 | AR31: 22 | AS31: 22 | AT31: 43923 | AU31: 52500 | AV31: 10000 | AW31: 42500 | AX31: 264 | AY31: 52236 | AZ31: 42236
A32: 30 | B32: محسن على ابراهيم-30 | C32: 22132244567 | D32: 5565656 | E32: تقسيط | F32: 52500 | G32: 10000 | H32: 42500 | I32: 23 | J32: 2020-09-02 | K32: 22 | L32: 22 | M32: 2020-04-20 | N32: 22 | O32: 22 | P32: 2020-04-20 | Q32: 22 | R32: 22 | S32: 43923 | T32: 22 | U32: 22 | V32: 43923 | W32: 22 | X32: 22 | Y32: 43923 | Z32: 22 | AA32: 22 | AB32: 43923 | AC32: 22 | AD32: 22 | AE32: 43923 | AF32: 22 | AG32: 22 | AH32: 43923 | AI32: 22 | AJ32: 22 | AK32: 43923 | AL32: 22 | AM32: 22 | AN32: 43923 | AO32: 22 | AP32: 22 | AQ32: 43923 | AR32: 22 | AS32: 22 | AT32: 43923 | AU32: 52500 | AV32: 10000 | AW32: 42500 | AX32: 264 | AY32: 52236 | AZ32: 42236
A33: 31 | B33: محسن على ابراهيم-31 | C33: 22132244567 | D33: 5565656 | E33: آجل | F33: 52500 | G33: 10000 | H33: 42500 | I33: 24 | J33: 2020-09-03 | K33: 22 | L33: 22 | M33: 2020-04-21 | N33: 22 | O33: 22 | P33: 2020-04-21 | Q33: 22 | R33: 22 | S33: 43923 | T33: 22 | U33: 22 | V33: 43923 | W33: 22 | X33: 22 | Y33: 43923 | Z33: 22 | AA33: 22 | AB33: 43923 | AC33: 22 | AD33: 22 | AE33: 43923 | AF33: 22 | AG33: 22 | AH33: 43923 | AI33: 22 | AJ33: 22 | AK33: 43923 | AL33: 22 | AM33: 22 | AN33: 43923 | AO33: 22 | AP33: 22 | AQ33: 43923 | AR33: 22 | AS33: 22 | AT33: 43923 | AU33: 52500 | AV33: 10000 | AW33: 42500 | AX33: 264 | AY33: 52236 | AZ33: 42236
A34: 32 | B34: محسن على ابراهيم-32 | C34: 22132244567 | D34: 5565656 | E34: تقسيط | F34: 52500 | G34: 10000 | H34: 42500 | I34: 25 | J34: 2020-09-04 | K34: 22 | L34: 22 | M34: 2020-04-22 | N34: 22 | O34: 22 | P34: 2020-04-22 | Q34: 22 | R34: 22 | S34: 43923 | T34: 22 | U34: 22 | V34: 43923 | W34: 22 | X34: 22 | Y34: 43923 | Z34: 22 | AA34: 22 | AB34: 43923 | AC34: 22 | AD34: 22 | AE34: 43923 | AF34: 22 | AG34: 22 | AH34: 43923 | AI34: 22 | AJ34: 22 | AK34: 43923 | AL34: 22 | AM34: 22 | AN34: 43923 | AO34: 22 | AP34: 22 | AQ34: 43923 | AR34: 22 | AS34: 22 | AT34: 43923 | AU34: 52500 | AV34: 10000 | AW34: 42500 | AX34: 264 | AY34: 52236 | AZ34: 42236
A35: 33 | B35: محسن على ابراهيم-33 | C35: 22132244567 | D35: 5565656 | E35: آجل | F35: 52500 | G35: 10000 | H35: 42500 | I35: 26 | J35: 2020-09-05 | K35: 22 | L35: 22 | M35: 2020-04-23 | N35: 22 | O35: 22 | P35: 2020-04-23 | Q35: 22 | R35: 22 | S35: 43923 | T35: 22 | U35: 22 | V35: 43923 | W35: 22 | X35: 22 | Y35: 43923 | Z35: 22 | AA35: 22 | AB35: 43923 | AC35: 22 | AD35: 22 | AE35: 43923 | AF35: 22 | AG35: 22 | AH35: 43923 | AI35: 22 | AJ35: 22 | AK35: 43923 | AL35: 22 | AM35: 22 | AN35: 43923 | AO35: 22 | AP35: 22 | AQ35: 43923 | AR35: 22 | AS35: 22 | AT35: 43923 | AU35: 52500 | AV35: 10000 | AW35: 42500 | AX35: 264 | AY35: 52236 | AZ35: 42236
A36: 34 | B36: محسن على ابراهيم-34 | C36: 22132244567 | D36: 5565656 | E36: تقسيط | F36: 52500 | G36: 10000 | H36: 42500 | I36: 27 | J36: 2020-09-06 | K36: 22 | L36: 22 | M36: 2020-04-24 | N36: 22 | O36: 22 | P36: 2020-04-24 | Q36: 22 | R36: 22 | S36: 43923 | T36: 22 | U36: 22 | V36: 43923 | W36: 22 | X36: 22 | Y36: 43923 | Z36: 22 | AA36: 22 | AB36: 43923 | AC36: 22 | AD36: 22 | AE36: 43923 | AF36: 22 | AG36: 22 | AH36: 43923 | AI36: 22 | AJ36: 22 | AK36: 43923 | AL36: 22 | AM36: 22 | AN36: 43923 | AO36: 22 | AP36: 22 | AQ36: 43923 | AR36: 22 | AS36: 22 | AT36: 43923 | AU36: 52500 | AV36: 10000 | AW36: 42500 | AX36: 264 | AY36: 52236 | AZ36: 42236
A37: 35 | B37: محسن على ابراهيم-35 | C37: 22132244567 | D37: 5565656 | E37: آجل | F37: 52500 | G37: 10000 | H37: 42500 | I37: 28 | J37: 2020-09-07 | K37: 22 | L37: 22 | M37: 2020-04-25 | N37: 22 | O37: 22 | P37: 2020-04-25 | Q37: 22 | R37: 22 | S37: 43923 | T37: 22 | U37: 22 | V37: 43923 | W37: 22 | X37: 22 | Y37: 43923 | Z37: 22 | AA37: 22 | AB37: 43923 | AC37: 22 | AD37: 22 | AE37: 43923 | AF37: 22 | AG37: 22 | AH37: 43923 | AI37: 22 | AJ37: 22 | AK37: 43923 | AL37: 22 | AM37: 22 | AN37: 43923 | AO37: 22 | AP37: 22 | AQ37: 43923 | AR37: 22 | AS37: 22 | AT37: 43923 | AU37: 52500 | AV37: 10000 | AW37: 42500 | AX37: 264 | AY37: 52236 | AZ37: 42236
A38: 36 | B38: محسن على ابراهيم-36 | C38: 22132244567 | D38: 5565656 | E38: تقسيط | F38: 52500 | G38: 10000 | H38: 42500 | I38: 29 | J38: 2020-09-08 | K38: 22 | L38: 22 | M38: 2020-04-26 | N38: 22 | O38: 22 | P38: 2020-04-26 | Q38: 22 | R38: 22 | S38: 43923 | T38: 22 | U38: 22 | V38: 43923 | W38: 22 | X38: 22 | Y38: 43923 | Z38: 22 | AA38: 22 | AB38: 43923 | AC38: 22 | AD38: 22 | AE38: 43923 | AF38: 22 | AG38: 22 | AH38: 43923 | AI38: 22 | AJ38: 22 | AK38: 43923 | AL38: 22 | AM38: 22 | AN38: 43923 | AO38: 22 | AP38: 22 | AQ38: 43923 | AR38: 22 | AS38: 22 | AT38: 43923 | AU38: 52500 | AV38: 10000 | AW38: 42500 | AX38: 264 | AY38: 52236 | AZ38: 42236
A39: 37 | B39: محسن على ابراهيم-37 | C39: 22132244567 | D39: 5565656 | E39: آجل | F39: 52500 | G39: 10000 | H39: 42500 | I39: 30 | J39: 2020-09-09 | K39: 22 | L39: 22 | M39: 2020-04-27 | N39: 22 | O39: 22 | P39: 2020-04-27 | Q39: 22 | R39: 22 | S39: 43923 | T39: 22 | U39: 22 | V39: 43923 | W39: 22 | X39: 22 | Y39: 43923 | Z39: 22 | AA39: 22 | AB39: 43923 | AC39: 22 | AD39: 22 | AE39: 43923 | AF39: 22 | AG39: 22 | AH39: 43923 | AI39: 22 | AJ39: 22 | AK39: 43923 | AL39: 22 | AM39: 22 | AN39: 43923 | AO39: 22 | AP39: 22 | AQ39: 43923 | AR39: 22 | AS39: 22 | AT39: 43923 | AU39: 52500 | AV39: 10000 | AW39: 42500 | AX39: 264 | AY39: 52236 | AZ39: 42236
A40: 38 | B40: محسن على ابراهيم-38 | C40: 22132244567 | D40: 5565656 | E40: تقسيط | F40: 52500 | G40: 10000 | H40: 42500 | I40: 31 | J40: 2020-09-10 | K40: 22 | L40: 22 | M40: 2020-04-28 | N40: 22 | O40: 22 | P40: 2020-04-28 | Q40: 22 | R40: 22 | S40: 43923 | T40: 22 | U40: 22 | V40: 43923 | W40: 22 | X40: 22 | Y40: 43923 | Z40: 22 | AA40: 22 | AB40: 43923 | AC40: 22 | AD40: 22 | AE40: 43923 | AF40: 22 | AG40: 22 | AH40: 43923 | AI40: 22 | AJ40: 22 | AK40: 43923 | AL40: 22 | AM40: 22 | AN40: 43923 | AO40: 22 | AP40: 22 | AQ40: 43923 | AR40: 22 | AS40: 22 | AT40: 43923 | AU40: 52500 | AV40: 10000 | AW40: 42500 | AX40: 264 | AY40: 52236 | AZ40: 42236
A41: 39 | B41: محسن على ابراهيم-39 | C41: 22132244567 | D41: 5565656 | E41: آجل | F41: 52500 | G41: 10000 | H41: 42500 | I41: 32 | J41: 2020-09-11 | K41: 22 | L41: 22 | M41: 2020-04-29 | N41: 22 | O41: 22 | P41: 2020-04-29 | Q41: 22 | R41: 22 | S41: 43923 | T41: 22 | U41: 22 | V41: 43923 | W41: 22 | X41: 22 | Y41: 43923 | Z41: 22 | AA41: 22 | AB41: 43923 | AC41: 22 | AD41: 22 | AE41: 43923 | AF41: 22 | AG41: 22 | AH41: 43923 | AI41: 22 | AJ41: 22 | AK41: 43923 | AL41: 22 | AM41: 22 | AN41: 43923 | AO41: 22 | AP41: 22 | AQ41: 43923 | AR41: 22 | AS41: 22 | AT41: 43923 | AU41: 52500 | AV41: 10000 | AW41: 42500 | AX41: 264 | AY41: 52236 | AZ41: 42236
A42: 40 | B42: محسن على ابراهيم-40 | C42: 22132244567 | D42: 5565656 | E42: تقسيط | F42: 52500 | G42: 10000 | H42: 42500 | I42: 33 | J42: 2020-09-12 | K42: 22 | L42: 22 | M42: 2020-04-30 | N42: 22 | O42: 22 | P42: 2020-04-30 | Q42: 22 | R42: 22 | S42: 43923 | T42: 22 | U42: 22 | V42: 43923 | W42: 22 | X42: 22 | Y42: 43923 | Z42: 22 | AA42: 22 | AB42: 43923 | AC42: 22 | AD42: 22 | AE42: 43923 | AF42: 22 | AG42: 22 | AH42: 43923 | AI42: 22 | AJ42: 22 | AK42: 43923 | AL42: 22 | AM42: 22 | AN42: 43923 | AO42: 22 | AP42: 22 | AQ42: 43923 | AR42: 22 | AS42: 22 | AT42: 43923 | AU42: 52500 | AV42: 10000 | AW42: 42500 | AX42: 264 | AY42: 52236 | AZ42: 42236
A43: 41 | B43: محسن على ابراهيم-41 | C43: 22132244567 | D43: 5565656 | E43: آجل | F43: 52500 | G43: 10000 | H43: 42500 | I43: 34 | J43: 2020-09-13 | K43: 22 | L43: 22 | M43: 2020-05-01 | N43: 22 | O43: 22 | P43: 2020-05-01 | Q43: 22 | R43: 22 | S43: 43923 | T43: 22 | U43: 22 | V43: 43923 | W43: 22 | X43: 22 | Y43: 43923 | Z43: 22 | AA43: 22 | AB43: 43923 | AC43: 22 | AD43: 22 | AE43: 43923 | AF43: 22 | AG43: 22 | AH43: 43923 | AI43: 22 | AJ43: 22 | AK43: 43923 | AL43: 22 | AM43: 22 | AN43: 43923 | AO43: 22 | AP43: 22 | AQ43: 43923 | AR43: 22 | AS43: 22 | AT43: 43923 | AU43: 52500 | AV43: 10000 | AW43: 42500 | AX43: 264 | AY43: 52236 | AZ43: 42236
A44: 42 | B44: محسن على ابراهيم-42 | C44: 22132244567 | D44: 5565656 | E44: تقسيط | F44: 52500 | G44: 10000 | H44: 42500 | I44: 35 | J44: 2020-09-14 | K44: 22 | L44: 22 | M44: 2020-05-02 | N44: 22 | O44: 22 | P44: 2020-05-02 | Q44: 22 | R44: 22 | S44: 43923 | T44: 22 | U44: 22 | V44: 43923 | W44: 22 | X44: 22 | Y44: 43923 | Z44: 22 | AA44: 22 | AB44: 43923 | AC44: 22 | AD44: 22 | AE44: 43923 | AF44: 22 | AG44: 22 | AH44: 43923 | AI44: 22 | AJ44: 22 | AK44: 43923 | AL44: 22 | AM44: 22 | AN44: 43923 | AO44: 22 | AP44: 22 | AQ44: 43923 | AR44: 22 | AS44: 22 | AT44: 43923 | AU44: 52500 | AV44: 10000 | AW44: 42500 | AX44: 264 | AY44: 52236 | AZ44: 42236
A45: 43 | B45: محسن على ابراهيم-43 | C45: 22132244567 | D45: 5565656 | E45: آجل | F45: 52500 | G45: 10000 | H45: 42500 | I45: 36 | J45: 2020-09-15 | K45: 22 | L45: 22 | M45: 2020-05-03 | N45: 22 | O45: 22 | P45: 2020-05-03 | Q45: 22 | R45: 22 | S45: 43923 | T45: 22 | U45: 22 | V45: 43923 | W45: 22 | X45: 22 | Y45: 43923 | Z45: 22 | AA45: 22 | AB45: 43923 | AC45: 22 | AD45: 22 | AE45: 43923 | AF45: 22 | AG45: 22 | AH45: 43923 | AI45: 22 | AJ45: 22 | AK45: 43923 | AL45: 22 | AM45: 22 | AN45: 43923 | AO45: 22 | AP45: 22 | AQ45: 43923 | AR45: 22 | AS45: 22 | AT45: 43923 | AU45: 52500 | AV45: 10000 | AW45: 42500 | AX45: 264 | AY45: 52236 | AZ45: 42236
A46: 44 | B46: محسن على ابراهيم-44 | C46: 22132244567 | D46: 5565656 | E46: تقسيط | F46: 52500 | G46: 10000 | H46: 42500 | I46: 37 | J46: 2020-09-16 | K46: 22 | L46: 22 | M46: 2020-05-04 | N46: 22 | O46: 22 | P46: 2020-05-04 | Q46: 22 | R46: 22 | S46: 43923 | T46: 22 | U46: 22 | V46: 43923 | W46: 22 | X46: 22 | Y46: 43923 | Z46: 22 | AA46: 22 | AB46: 43923 | AC46: 22 | AD46: 22 | AE46: 43923 | AF46: 22 | AG46: 22 | AH46: 43923 | AI46: 22 | AJ46: 22 | AK46: 43923 | AL46: 22 | AM46: 22 | AN46: 43923 | AO46: 22 | AP46: 22 | AQ46: 43923 | AR46: 22 | AS46: 22 | AT46: 43923 | AU46: 52500 | AV46: 10000 | AW46: 42500 | AX46: 264 | AY46: 52236 | AZ46: 42236
A47: 45 | B47: محسن على ابراهيم-45 | C47: 22132244567 | D47: 5565656 | E47: آجل | F47: 52500 | G47: 10000 | H47: 42500 | I47: 38 | J47: 2020-09-17 | K47: 22 | L47: 22 | M47: 2020-05-05 | N47: 22 | O47: 22 | P47: 2020-05-05 | Q47: 22 | R47: 22 | S47: 43923 | T47: 22 | U47: 22 | V47: 43923 | W47: 22 | X47: 22 | Y47: 43923 | Z47: 22 | AA47: 22 | AB47: 43923 | AC47: 22 | AD47: 22 | AE47: 43923 | AF47: 22 | AG47: 22 | AH47: 43923 | AI47: 22 | AJ47: 22 | AK47: 43923 | AL47: 22 | AM47: 22 | AN47: 43923 | AO47: 22 | AP47: 22 | AQ47: 43923 | AR47: 22 | AS47: 22 | AT47: 43923 | AU47: 52500 | AV47: 10000 | AW47: 42500 | AX47: 264 | AY47: 52236 | AZ47: 42236
A48: 46 | B48: محسن على ابراهيم-46 | C48: 22132244567 | D48: 5565656 | E48: تقسيط | F48: 52500 | G48: 10000 | H48: 42500 | I48: 39 | J48: 2020-09-18 | K48: 22 | L48: 22 | M48: 2020-05-06 | N48: 22 | O48: 22 | P48: 2020-05-06 | Q48: 22 | R48: 22 | S48: 43923 | T48: 22 | U48: 22 | V48: 43923 | W48: 22 | X48: 22 | Y48: 43923 | Z48: 22 | AA48: 22 | AB48: 43923 | AC48: 22 | AD48: 22 | AE48: 43923 | AF48: 22 | AG48: 22 | AH48: 43923 | AI48: 22 | AJ48: 22 | AK48: 43923 | AL48: 22 | AM48: 22 | AN48: 43923 | AO48: 22 | AP48: 22 | AQ48: 43923 | AR48: 22 | AS48: 22 | AT48: 43923 | AU48: 52500 | AV48: 10000 | AW48: 42500 | AX48: 264 | AY48: 52236 | AZ48: 42236
A49: 47 | B49: محسن على ابراهيم-47 | C49: 22132244567 | D49: 5565656 | E49: آجل | F49: 52500 | G49: 10000 | H49: 42500 | I49: 40 | J49: 2020-09-19 | K49: 22 | L49: 22 | M49: 2020-05-07 | N49: 22 | O49: 22 | P49: 2020-05-07 | Q49: 22 | R49: 22 | S49: 43923 | T49: 22 | U49: 22 | V49: 43923 | W49: 22 | X49: 22 | Y49: 43923 | Z49: 22 | AA49: 22 | AB49: 43923 | AC49: 22 | AD49: 22 | AE49: 43923 | AF49: 22 | AG49: 22 | AH49: 43923 | AI49: 22 | AJ49: 22 | AK49: 43923 | AL49: 22 | AM49: 22 | AN49: 43923 | AO49: 22 | AP49: 22 | AQ49: 43923 | AR49: 22 | AS49: 22 | AT49: 43923 | AU49: 52500 | AV49: 10000 | AW49: 42500 | AX49: 264 | AY49: 52236 | AZ49: 42236
A50: 48 | B50: محسن على ابراهيم-48 | C50: 22132244567 | D50: 5565656 | E50: تقسيط | F50: 52500 | G50: 10000 | H50: 42500 | I50: 41 | J50: 2020-09-20 | K50: 22 | L50: 22 | M50: 2020-05-08 | N50: 22 | O50: 22 | P50: 2020-05-08 | Q50: 22 | R50: 22 | S50: 43923 | T50: 22 | U50: 22 | V50: 43923 | W50: 22 | X50: 22 | Y50: 43923 | Z50: 22 | AA50: 22 | AB50: 43923 | AC50: 22 | AD50: 22 | AE50: 43923 | AF50: 22 | AG50: 22 | AH50: 43923 | AI50: 22 | AJ50: 22 | AK50: 43923 | AL50: 22 | AM50: 22 | AN50: 43923 | AO50: 22 | AP50: 22 | AQ50: 43923 | AR50: 22 | AS50: 22 | AT50: 43923 | AU50: 52500 | AV50: 10000 | AW50: 42500 | AX50: 264 | AY50: 52236 | AZ50: 42236
A51: 49 | B51: محسن على ابراهيم-49 | C51: 22132244567 | D51: 5565656 | E51: آجل | F51: 52500 | G51: 10000 | H51: 42500 | I51: 42 | J51: 2020-09-21 | K51: 22 | L51: 22 | M51: 2020-05-09 | N51: 22 | O51: 22 | P51: 2020-05-09 | Q51: 22 | R51: 22 | S51: 43923 | T51: 22 | U51: 22 | V51: 43923 | W51: 22 | X51: 22 | Y51: 43923 | Z51: 22 | AA51: 22 | AB51: 43923 | AC51: 22 | AD51: 22 | AE51: 43923 | AF51: 22 | AG51: 22 | AH51: 43923 | AI51: 22 | AJ51: 22 | AK51: 43923 | AL51: 22 | AM51: 22 | AN51: 43923 | AO51: 22 | AP51: 22 | AQ51: 43923 | AR51: 22 | AS51: 22 | AT51: 43923 | AU51: 52500 | AV51: 10000 | AW51: 42500 | AX51: 264 | AY51: 52236 | AZ51: 42236
A52: 50 | B52: محسن على ابراهيم-50 | C52: 22132244567 | D52: 5565656 | E52: تقسيط | F52: 52500 | G52: 10000 | H52: 42500 | I52: 43 | J52: 2020-09-22 | K52: 22 | L52: 22 | M52: 2020-05-10 | N52: 22 | O52: 22 | P52: 2020-05-10 | Q52: 22 | R52: 22 | S52: 43923 | T52: 22 | U52: 22 | V52: 43923 | W52: 22 | X52: 22 | Y52: 43923 | Z52: 22 | AA52: 22 | AB52: 43923 | AC52: 22 | AD52: 22 | AE52: 43923 | AF52: 22 | AG52: 22 | AH52: 43923 | AI52: 22 | AJ52: 22 | AK52: 43923 | AL52: 22 | AM52: 22 | AN52: 43923 | AO52: 22 | AP52: 22 | AQ52: 43923 | AR52: 22 | AS52: 22 | AT52: 43923 | AU52: 52500 | AV52: 10000 | AW52: 42500 | AX52: 264 | AY52: 52236 | AZ52: 42236
A53: 51 | B53: محسن على ابراهيم-51 | C53: 22132244567 | D53: 5565656 | E53: آجل | F53: 52500 | G53: 10000 | H53: 42500 | I53: 44 | J53: 2020-09-23 | K53: 22 | L53: 22 | M53: 2020-05-11 | N53: 22 | O53: 22 | P53: 2020-05-11 | Q53: 22 | R53: 22 | S53: 43923 | T53: 22 | U53: 22 | V53: 43923 | W53: 22 | X53: 22 | Y53: 43923 | Z53: 22 | AA53: 22 | AB53: 43923 | AC53: 22 | AD53: 22 | AE53: 43923 | AF53: 22 | AG53: 22 | AH53: 43923 | AI53: 22 | AJ53: 22 | AK53: 43923 | AL53: 22 | AM53: 22 | AN53: 43923 | AO53: 22 | AP53: 22 | AQ53: 43923 | AR53: 22 | AS53: 22 | AT53: 43923 | AU53: 52500 | AV53: 10000 | AW53: 42500 | AX53: 264 | AY53: 52236 | AZ53: 42236
A54: 52 | B54: محسن على ابراهيم-52 | C54: 22132244567 | D54: 5565656 | E54: تقسيط | F54: 52500 | G54: 10000 | H54: 42500 | I54: 45 | J54: 2020-09-24 | K54: 22 | L54: 22 | M54: 2020-05-12 | N54: 22 | O54: 22 | P54: 2020-05-12 | Q54: 22 | R54: 22 | S54: 43923 | T54: 22 | U54: 22 | V54: 43923 | W54: 22 | X54: 22 | Y54: 43923 | Z54: 22 | AA54: 22 | AB54: 43923 | AC54: 22 | AD54: 22 | AE54: 43923 | AF54: 22 | AG54: 22 | AH54: 43923 | AI54: 22 | AJ54: 22 | AK54: 43923 | AL54: 22 | AM54: 22 | AN54: 43923 | AO54: 22 | AP54: 22 | AQ54: 43923 | AR54: 22 | AS54: 22 | AT54: 43923 | AU54: 52500 | AV54: 10000 | AW54: 42500 | AX54: 264 | AY54: 52236 | AZ54: 42236
A55: 53 | B55: محسن على ابراهيم-53 | C55: 22132244567 | D55: 5565656 | E55: آجل | F55: 52500 | G55: 10000 | H55: 42500 | I55: 46 | J55: 2020-09-25 | K55: 22 | L55: 22 | M55: 2020-05-13 | N55: 22 | O55: 22 | P55: 2020-05-13 | Q55: 22 | R55: 22 | S55: 43923 | T55: 22 | U55: 22 | V55: 43923 | W55: 22 | X55: 22 | Y55: 43923 | Z55: 22 | AA55: 22 | AB55: 43923 | AC55: 22 | AD55: 22 | AE55: 43923 | AF55: 22 | AG55: 22 | AH55: 43923 | AI55: 22 | AJ55: 22 | AK55: 43923 | AL55: 22 | AM55: 22 | AN55: 43923 | AO55: 22 | AP55: 22 | AQ55: 43923 | AR55: 22 | AS55: 22 | AT55: 43923 | AU55: 52500 | AV55: 10000 | AW55: 42500 | AX55: 264 | AY55: 52236 | AZ55: 42236
A56: 54 | B56: محسن على ابراهيم-54 | C56: 22132244567 | D56: 5565656 | E56: تقسيط | F56: 52500 | G56: 10000 | H56: 42500 | I56: 47 | J56: 2020-09-26 | K56: 22 | L56: 22 | M56: 2020-05-14 | N56: 22 | O56: 22 | P56: 2020-05-14 | Q56: 22 | R56: 22 | S56: 43923 | T56: 22 | U56: 22 | V56: 43923 | W56: 22 | X56: 22 | Y56: 43923 | Z56: 22 | AA56: 22 | AB56: 43923 | AC56: 22 | AD56: 22 | AE56: 43923 | AF56: 22 | AG56: 22 | AH56: 43923 | AI56: 22 | AJ56: 22 | AK56: 43923 | AL56: 22 | AM56: 22 | AN56: 43923 | AO56: 22 | AP56: 22 | AQ56: 43923 | AR56: 22 | AS56: 22 | AT56: 43923 | AU56: 52500 | AV56: 10000 | AW56: 42500 | AX56: 264 | AY56: 52236 | AZ56: 42236
A57: 55 | B57: محسن على ابراهيم-55 | C57: 22132244567 | D57: 5565656 | E57: آجل | F57: 52500 | G57: 10000 | H57: 42500 | I57: 48 | J57: 2020-09-27 | K57: 22 | L57: 22 | M57: 2020-05-15 | N57: 22 | O57: 22 | P57: 2020-05-15 | Q57: 22 | R57: 22 | S57: 43923 | T57: 22 | U57: 22 | V57: 43923 | W57: 22 | X57: 22 | Y57: 43923 | Z57: 22 | AA57: 22 | AB57: 43923 | AC57: 22 | AD57: 22 | AE57: 43923 | AF57: 22 | AG57: 22 | AH57: 43923 | AI57: 22 | AJ57: 22 | AK57: 43923 | AL57: 22 | AM57: 22 | AN57: 43923 | AO57: 22 | AP57: 22 | AQ57: 43923 | AR57: 22 | AS57: 22 | AT57: 43923 | AU57: 52500 | AV57: 10000 | AW57: 42500 | AX57: 264 | AY57: 52236 | AZ57: 42236
A58: 56 | B58: محسن على ابراهيم-56 | C58: 22132244567 | D58: 5565656 | E58: تقسيط | F58: 52500 | G58: 10000 | H58: 42500 | I58: 49 | J58: 2020-09-28 | K58: 22 | L58: 22 | M58: 2020-05-16 | N58: 22 | O58: 22 | P58: 2020-05-16 | Q58: 22 | R58: 22 | S58: 43923 | T58: 22 | U58: 22 | V58: 43923 | W58: 22 | X58: 22 | Y58: 43923 | Z58: 22 | AA58: 22 | AB58: 43923 | AC58: 22 | AD58: 22 | AE58: 43923 | AF58: 22 | AG58: 22 | AH58: 43923 | AI58: 22 | AJ58: 22 | AK58: 43923 | AL58: 22 | AM58: 22 | AN58: 43923 | AO58: 22 | AP58: 22 | AQ58: 43923 | AR58: 22 | AS58: 22 | AT58: 43923 | AU58: 52500 | AV58: 10000 | AW58: 42500 | AX58: 264 | AY58: 52236 | AZ58: 42236
A59: 57 | B59: محسن على ابراهيم-57 | C59: 22132244567 | D59: 5565656 | E59: آجل | F59: 52500 | G59: 10000 | H59: 42500 | I59: 50 | J59: 2020-09-29 | K59: 22 | L59: 22 | M59: 2020-05-17 | N59: 22 | O59: 22 | P59: 2020-05-17 | Q59: 22 | R59: 22 | S59: 43923 | T59: 22 | U59: 22 | V59: 43923 | W59: 22 | X59: 22 | Y59: 43923 | Z59: 22 | AA59: 22 | AB59: 43923 | AC59: 22 | AD59: 22 | AE59: 43923 | AF59: 22 | AG59: 22 | AH59: 43923 | AI59: 22 | AJ59: 22 | AK59: 43923 | AL59: 22 | AM59: 22 | AN59: 43923 | AO59: 22 | AP59: 22 | AQ59: 43923 | AR59: 22 | AS59: 22 | AT59: 43923 | AU59: 52500 | AV59: 10000 | AW59: 42500 | AX59: 264 | AY59: 52236 | AZ59: 42236
A60: 58 | B60: محسن على ابراهيم-58 | C60: 22132244567 | D60: 5565656 | E60: تقسيط | F60: 52500 | G60: 10000 | H60: 42500 | I60: 51 | J60: 2020-09-30 | K60: 22 | L60: 22 | M60: 2020-05-18 | N60: 22 | O60: 22 | P60: 2020-05-18 | Q60: 22 | R60: 22 | S60: 43923 | T60: 22 | U60: 22 | V60: 43923 | W60: 22 | X60: 22 | Y60: 43923 | Z60: 22 | AA60: 22 | AB60: 43923 | AC60: 22 | AD60: 22 | AE60: 43923 | AF60: 22 | AG60: 22 | AH60: 43923 | AI60: 22 | AJ60: 22 | AK60: 43923 | AL60: 22 | AM60: 22 | AN60: 43923 | AO60: 22 | AP60: 22 | AQ60: 43923 | AR60: 22 | AS60: 22 | AT60: 43923 | AU60: 52500 | AV60: 10000 | AW60: 42500 | AX60: 264 | AY60: 52236 | AZ60: 42236
A61: 59 | B61: محسن على ابراهيم-59 | C61: 22132244567 | D61: 5565656 | E61: آجل | F61: 52500 | G61: 10000 | H61: 42500 | I61: 52 | J61: 2020-10-01 | K61: 22 | L61: 22 | M61: 2020-05-19 | N61: 22 | O61: 22 | P61: 2020-05-19 | Q61: 22 | R61: 22 | S61: 43923 | T61: 22 | U61: 22 | V61: 43923 | W61: 22 | X61: 22 | Y61: 43923 | Z61: 22 | AA61: 22 | AB61: 43923 | AC61: 22 | AD61: 22 | AE61: 43923 | AF61: 22 | AG61: 22 | AH61: 43923 | AI61: 22 | AJ61: 22 | AK61: 43923 | AL61: 22 | AM61: 22 | AN61: 43923 | AO61: 22 | AP61: 22 | AQ61: 43923 | AR61: 22 | AS61: 22 | AT61: 43923 | AU61: 52500 | AV61: 10000 | AW61: 42500 | AX61: 264 | AY61: 52236 | AZ61: 42236
A62: 60 | B62: محسن على ابراهيم-60 | C62: 22132244567 | D62: 5565656 | E62: تقسيط | F62: 52500 | G62: 10000 | H62: 42500 | I62: 53 | J62: 2020-10-02 | K62: 22 | L62: 22 | M62: 2020-05-20 | N62: 22 | O62: 22 | P62: 2020-05-20 | Q62: 22 | R62: 22 | S62: 43923 | T62: 22 | U62: 22 | V62: 43923 | W62: 22 | X62: 22 | Y62: 43923 | Z62: 22 | AA62: 22 | AB62: 43923 | AC62: 22 | AD62: 22 | AE62: 43923 | AF62: 22 | AG62: 22 | AH62: 43923 | AI62: 22 | AJ62: 22 | AK62: 43923 | AL62: 22 | AM62: 22 | AN62: 43923 | AO62: 22 | AP62: 22 | AQ62: 43923 | AR62: 22 | AS62: 22 | AT62: 43923 | AU62: 52500 | AV62: 10000 | AW62: 42500 | AX62: 264 | AY62: 52236 | AZ62: 42236
A63: 61 | B63: محسن على ابراهيم-61 | C63: 22132244567 | D63: 5565656 | E63: آجل | F63: 52500 | G63: 10000 | H63: 42500 | I63: 54 | J63: 2020-10-03 | K63: 22 | L63: 22 | M63: 2020-05-21 | N63: 22 | O63: 22 | P63: 2020-05-21 | Q63: 22 | R63: 22 | S63: 43923 | T63: 22 | U63: 22 | V63: 43923 | W63: 22 | X63: 22 | Y63: 43923 | Z63: 22 | AA63: 22 | AB63: 43923 | AC63: 22 | AD63: 22 | AE63: 43923 | AF63: 22 | AG63: 22 | AH63: 43923 | AI63: 22 | AJ63: 22 | AK63: 43923 | AL63: 22 | AM63: 22 | AN63: 43923 | AO63: 22 | AP63: 22 | AQ63: 43923 | AR63: 22 | AS63: 22 | AT63: 43923 | AU63: 52500 | AV63: 10000 | AW63: 42500 | AX63: 264 | AY63: 52236 | AZ63: 42236
A64: 62 | B64: محسن على ابراهيم-62 | C64: 22132244567 | D64: 5565656 | E64: تقسيط | F64: 52500 | G64: 10000 | H64: 42500 | I64: 55 | J64: 2020-10-04 | K64: 22 | L64: 22 | M64: 2020-05-22 | N64: 22 | O64: 22 | P64: 2020-05-22 | Q64: 22 | R64: 22 | S64: 43923 | T64: 22 | U64: 22 | V64: 43923 | W64: 22 | X64: 22 | Y64: 43923 | Z64: 22 | AA64: 22 | AB64: 43923 | AC64: 22 | AD64: 22 | AE64: 43923 | AF64: 22 | AG64: 22 | AH64: 43923 | AI64: 22 | AJ64: 22 | AK64: 43923 | AL64: 22 | AM64: 22 | AN64: 43923 | AO64: 22 | AP64: 22 | AQ64: 43923 | AR64: 22 | AS64: 22 | AT64: 43923 | AU64: 52500 | AV64: 10000 | AW64: 42500 | AX64: 264 | AY64: 52236 | AZ64: 42236
A65: 63 | B65: محسن على ابراهيم-63 | C65: 22132244567 | D65: 5565656 | E65: آجل | F65: 52500 | G65: 10000 | H65: 42500 | I65: 56 | J65: 2020-10-05 | K65: 22 | L65: 22 | M65: 2020-05-23 | N65: 22 | O65: 22 | P65: 2020-05-23 | Q65: 22 | R65: 22 | S65: 43923 | T65: 22 | U65: 22 | V65: 43923 | W65: 22 | X65: 22 | Y65: 43923 | Z65: 22 | AA65: 22 | AB65: 43923 | AC65: 22 | AD65: 22 | AE65: 43923 | AF65: 22 | AG65: 22 | AH65: 43923 | AI65: 22 | AJ65: 22 | AK65: 43923 | AL65: 22 | AM65: 22 | AN65: 43923 | AO65: 22 | AP65: 22 | AQ65: 43923 | AR65: 22 | AS65: 22 | AT65: 43923 | AU65: 52500 | AV65: 10000 | AW65: 42500 | AX65: 264 | AY65: 52236 | AZ65: 42236
A66: 64 | B66: محسن على ابراهيم-64 | C66: 22132244567 | D66: 5565656 | E66: تقسيط | F66: 52500 | G66: 10000 | H66: 42500 | I66: 57 | J66: 2020-10-06 | K66: 22 | L66: 22 | M66: 2020-05-24 | N66: 22 | O66: 22 | P66: 2020-05-24 | Q66: 22 | R66: 22 | S66: 43923 | T66: 22 | U66: 22 | V66: 43923 | W66: 22 | X66: 22 | Y66: 43923 | Z66: 22 | AA66: 22 | AB66: 43923 | AC66: 22 | AD66: 22 | AE66: 43923 | AF66: 22 | AG66: 22 | AH66: 43923 | AI66: 22 | AJ66: 22 | AK66: 43923 | AL66: 22 | AM66: 22 | AN66: 43923 | AO66: 22 | AP66: 22 | AQ66: 43923 | AR66: 22 | AS66: 22 | AT66: 43923 | AU66: 52500 | AV66: 10000 | AW66: 42500 | AX66: 264 | AY66: 52236 | AZ66: 42236
A67: 65 | B67: محسن على ابراهيم-65 | C67: 22132244567 | D67: 5565656 | E67: آجل | F67: 52500 | G67: 10000 | H67: 42500 | I67: 58 | J67: 2020-10-07 | K67: 22 | L67: 22 | M67: 2020-05-25 | N67: 22 | O67: 22 | P67: 2020-05-25 | Q67: 22 | R67: 22 | S67: 43923 | T67: 22 | U67: 22 | V67: 43923 | W67: 22 | X67: 22 | Y67: 43923 | Z67: 22 | AA67: 22 | AB67: 43923 | AC67: 22 | AD67: 22 | AE67: 43923 | AF67: 22 | AG67: 22 | AH67: 43923 | AI67: 22 | AJ67: 22 | AK67: 43923 | AL67: 22 | AM67: 22 | AN67: 43923 | AO67: 22 | AP67: 22 | AQ67: 43923 | AR67: 22 | AS67: 22 | AT67: 43923 | AU67: =F67 -> 52500 | AV67: 10000 | AW67: 42500 | AX67: 264 | AY67: 52236 | AZ67: =H67-AX67 -> 42236
A68: 66 | B68: محسن على ابراهيم-66 | C68: 22132244567 | D68: 5565656 | E68: تقسيط | F68: 52500 | G68: 10000 | H68: =F68-G68 -> 42500 | I68: 59 | J68: 2020-10-08 | K68: 22 | L68: 22 | M68: 2020-05-26 | N68: 22 | O68: 22 | P68: 2020-05-26 | Q68: 22 | R68: 22 | S68: 43923 | T68: 22 | U68: 22 | V68: 43923 | W68: 22 | X68: 22 | Y68: 43923 | Z68: 22 | AA68: 22 | AB68: 43923 | AC68: 22 | AD68: 22 | AE68: 43923 | AF68: 22 | AG68: 22 | AH68: 43923 | AI68: 22 | AJ68: 22 | AK68: 43923 | AL68: 22 | AM68: 22 | AN68: 43923 | AO68: 22 | AP68: 22 | AQ68: 43923 | AR68: 22 | AS68: 22 | AT68: 43923 | AU68: 52500 | AV68: 10000 | AW68: 42500 | AX68: 264 | AY68: =F68-AX68 -> 52236 | AZ68: 42236
A69: 67 | B69: محسن على ابراهيم-67 | C69: 22132244567 | D69: 5565656 | E69: آجل | F69: 52500 | G69: 10000 | H69: 42500 | I69: 60 | J69: 2020-10-09 | K69: 22 | L69: 22 | M69: 2020-05-27 | N69: 22 | O69: 22 | P69: 2020-05-27 | Q69: 22 | R69: 22 | S69: 43923 | T69: 22 | U69: 22 | V69: 43923 | W69: 22 | X69: 22 | Y69: 43923 | Z69: 22 | AA69: 22 | AB69: 43923 | AC69: 22 | AD69: 22 | AE69: 43923 | AF69: 22 | AG69: 22 | AH69: 43923 | AI69: 22 | AJ69: 22 | AK69: 43923 | AL69: 22 | AM69: 22 | AN69: 43923 | AO69: 22 | AP69: 22 | AQ69: 43923 | AR69: 22 | AS69: 22 | AT69: 43923 | AU69: 52500 | AV69: 10000 | AW69: 42500 | AX69: 264 | AY69: 52236 | AZ69: 42236
A70: 68 | B70: محسن على ابراهيم-68 | C70: 22132244567 | D70: 5565656 | E70: تقسيط | F70: 52500 | G70: 10000 | H70: 42500 | I70: 61 | J70: 2020-10-10 | K70: 22 | L70: 22 | M70: 2020-05-28 | N70: 22 | O70: 22 | P70: 2020-05-28 | Q70: 22 | R70: 22 | S70: 43923 | T70: 22 | U70: 22 | V70: 43923 | W70: 22 | X70: 22 | Y70: 43923 | Z70: 22 | AA70: 22 | AB70: 43923 | AC70: 22 | AD70: 22 | AE70: 43923 | AF70: 22 | AG70: 22 | AH70: 43923 | AI70: 22 | AJ70: 22 | AK70: 43923 | AL70: 22 | AM70: 22 | AN70: 43923 | AO70: 22 | AP70: 22 | AQ70: 43923 | AR70: 22 | AS70: 22 | AT70: 43923 | AU70: 52500 | AV70: 10000 | AW70: 42500 | AX70: =SUM(K70+N70+Q70+T70+W70+Z70+AF70+AC70+AI70+AL70+AO70+AR70) -> 264 | AY70: 52236 | AZ70: 42236
A71: 69 | B71: محسن على ابراهيم-69 | C71: 22132244567 | D71: 5565656 | E71: آجل | F71: 52500 | G71: 10000 | H71: 42500 | I71: 62 | J71: 2020-10-11 | K71: 22 | L71: 22 | M71: 2020-05-29 | N71: 22 | O71: 22 | P71: 2020-05-29 | Q71: 22 | R71: 22 | S71: 43923 | T71: 22 | U71: 22 | V71: 43923 | W71: 22 | X71: 22 | Y71: 43923 | Z71: 22 | AA71: 22 | AB71: 43923 | AC71: 22 | AD71: 22 | AE71: 43923 | AF71: 22 | AG71: 22 | AH71: 43923 | AI71: 22 | AJ71: 22 | AK71: 43923 | AL71: 22 | AM71: 22 | AN71: 43923 | AO71: 22 | AP71: 22 | AQ71: 43923 | AR71: 22 | AS71: 22 | AT71: 43923 | AU71: 52500 | AV71: 10000 | AW71: 42500 | AX71: 264 | AY71: 52236 | AZ71: 42236
A72: 70 | B72: محسن على ابراهيم-70 | C72: 22132244567 | D72: 5565656 | E72: تقسيط | F72: 52500 | G72: 10000 | H72: 42500 | I72: 63 | J72: 2020-10-12 | K72: 22 | L72: 22 | M72: 2020-05-30 | N72: 22 | O72: 22 | P72: 2020-05-30 | Q72: 22 | R72: 22 | S72: 43923 | T72: 22 | U72: 22 | V72: 43923 | W72: 22 | X72: 22 | Y72: 43923 | Z72: 22 | AA72: 22 | AB72: 43923 | AC72: 22 | AD72: 22 | AE72: 43923 | AF72: 22 | AG72: 22 | AH72: 43923 | AI72: 22 | AJ72: 22 | AK72: 43923 | AL72: 22 | AM72: 22 | AN72: 43923 | AO72: 22 | AP72: 22 | AQ72: 43923 | AR72: 22 | AS72: 22 | AT72: 43923 | AU72: 52500 | AV72: 10000 | AW72: 42500 | AX72: 264 | AY72: 52236 | AZ72: 42236
A73: 71 | B73: محسن على ابراهيم-71 | C73: 22132244567 | D73: 5565656 | E73: آجل | F73: 52500 | G73: 10000 | H73: 42500 | I73: 64 | J73: 2020-10-13 | K73: 22 | L73: 22 | M73: 2020-05-31 | N73: 22 | O73: 22 | P73: 2020-05-31 | Q73: 22 | R73: 22 | S73: 43923 | T73: 22 | U73: 22 | V73: 43923 | W73: 22 | X73: 22 | Y73: 43923 | Z73: 22 | AA73: 22 | AB73: 43923 | AC73: 22 | AD73: 22 | AE73: 43923 | AF73: 22 | AG73: 22 | AH73: 43923 | AI73: 22 | AJ73: 22 | AK73: 43923 | AL73: 22 | AM73: 22 | AN73: 43923 | AO73: 22 | AP73: 22 | AQ73: 43923 | AR73: 22 | AS73: 22 | AT73: 43923 | AU73: 52500 | AV73: 10000 | AW73: 42500 | AX73: 264 | AY73: 52236 | AZ73: 42236
A74: 72 | B74: محسن على ابراهيم-72 | C74: 22132244567 | D74: 5565656 | E74: تقسيط | F74: 52500 | G74: 10000 | H74: 42500 | I74: 65 | J74: 2020-10-14 | K74: 22 | L74: 22 | M74: 2020-06-01 | N74: 22 | O74: 22 | P74: 2020-06-01 | Q74: 22 | R74: 22 | S74: 43923 | T74: 22 | U74: 22 | V74: 43923 | W74: 22 | X74: 22 | Y74: 43923 | Z74: 22 | AA74: 22 | AB74: 43923 | AC74: 22 | AD74: 22 | AE74: 43923 | AF74: 22 | AG74: 22 | AH74: 43923 | AI74: 22 | AJ74: 22 | AK74: 43923 | AL74: 22 | AM74: 22 | AN74: 43923 | AO74: 22 | AP74: 22 | AQ74: 43923 | AR74: 22 | AS74: 22 | AT74: 43923 | AU74: 52500 | AV74: 10000 | AW74: 42500 | AX74: 264 | AY74: 52236 | AZ74: 42236
A75: 73 | B75: محسن على ابراهيم-73 | C75: 22132244567 | D75: 5565656 | E75: آجل | F75: 52500 | G75: 10000 | H75: 42500 | I75: 66 | J75: 2020-10-15 | K75: 22 | L75: 22 | M75: 2020-06-02 | N75: 22 | O75: 22 | P75: 2020-06-02 | Q75: 22 | R75: 22 | S75: 43923 | T75: 22 | U75: 22 | V75: 43923 | W75: 22 | X75: 22 | Y75: 43923 | Z75: 22 | AA75: 22 | AB75: 43923 | AC75: 22 | AD75: 22 | AE75: 43923 | AF75: 22 | AG75: 22 | AH75: 43923 | AI75: 22 | AJ75: 22 | AK75: 43923 | AL75: 22 | AM75: 22 | AN75: 43923 | AO75: 22 | AP75: 22 | AQ75: 43923 | AR75: 22 | AS75: 22 | AT75: 43923 | AU75: 52500 | AV75: 10000 | AW75: 42500 | AX75: 264 | AY75: 52236 | AZ75: 42236
A76: 74 | B76: محسن على ابراهيم-74 | C76: 22132244567 | D76: 5565656 | E76: تقسيط | F76: 52500 | G76: 10000 | H76: 42500 | I76: 67 | J76: 2020-10-16 | K76: 22 | L76: 22 | M76: 2020-06-03 | N76: 22 | O76: 22 | P76: 2020-06-03 | Q76: 22 | R76: 22 | S76: 43923 | T76: 22 | U76: 22 | V76: 43923 | W76: 22 | X76: 22 | Y76: 43923 | Z76: 22 | AA76: 22 | AB76: 43923 | AC76: 22 | AD76: 22 | AE76: 43923 | AF76: 22 | AG76: 22 | AH76: 43923 | AI76: 22 | AJ76: 22 | AK76: 43923 | AL76: 22 | AM76: 22 | AN76: 43923 | AO76: 22 | AP76: 22 | AQ76: 43923 | AR76: 22 | AS76: 22 | AT76: 43923 | AU76: 52500 | AV76: 10000 | AW76: 42500 | AX76: 264 | AY76: 52236 | AZ76: 42236
A77: 75 | B77: محسن على ابراهيم-75 | C77: 22132244567 | D77: 5565656 | E77: آجل | F77: 52500 | G77: 10000 | H77: 42500 | I77: 68 | J77: 2020-10-17 | K77: 22 | L77: 22 | M77: 2020-06-04 | N77: 22 | O77: 22 | P77: 2020-06-04 | Q77: 22 | R77: 22 | S77: 43923 | T77: 22 | U77: 22 | V77: 43923 | W77: 22 | X77: 22 | Y77: 43923 | Z77: 22 | AA77: 22 | AB77: 43923 | AC77: 22 | AD77: 22 | AE77: 43923 | AF77: 22 | AG77: 22 | AH77: 43923 | AI77: 22 | AJ77: 22 | AK77: 43923 | AL77: 22 | AM77: 22 | AN77: 43923 | AO77: 22 | AP77: 22 | AQ77: 43923 | AR77: 22 | AS77: 22 | AT77: 43923 | AU77: 52500 | AV77: 10000 | AW77: 42500 | AX77: 264 | AY77: 52236 | AZ77: 42236
A78: 76 | B78: محسن على ابراهيم-76 | C78: 22132244567 | D78: 5565656 | E78: تقسيط | F78: 52500 | G78: 10000 | H78: 42500 | I78: 69 | J78: 2020-10-18 | K78: 22 | L78: 22 | M78: 2020-06-05 | N78: 22 | O78: 22 | P78: 2020-06-05 | Q78: 22 | R78: 22 | S78: 43923 | T78: 22 | U78: 22 | V78: 43923 | W78: 22 | X78: 22 | Y78: 43923 | Z78: 22 | AA78: 22 | AB78: 43923 | AC78: 22 | AD78: 22 | AE78: 43923 | AF78: 22 | AG78: 22 | AH78: 43923 | AI78: 22 | AJ78: 22 | AK78: 43923 | AL78: 22 | AM78: 22 | AN78: 43923 | AO78: 22 | AP78: 22 | AQ78: 43923 | AR78: 22 | AS78: 22 | AT78: 43923 | AU78: 52500 | AV78: 10000 | AW78: 42500 | AX78: 264 | AY78: 52236 | AZ78: 42236
A79: 77 | B79: محسن على ابراهيم-77 | C79: 22132244567 | D79: 5565656 | E79: آجل | F79: 52500 | G79: 10000 | H79: 42500 | I79: 70 | J79: 2020-10-19 | K79: 22 | L79: 22 | M79: 2020-06-06 | N79: 22 | O79: 22 | P79: 2020-06-06 | Q79: 22 | R79: 22 | S79: 43923 | T79: 22 | U79: 22 | V79: 43923 | W79: 22 | X79: 22 | Y79: 43923 | Z79: 22 | AA79: 22 | AB79: 43923 | AC79: 22 | AD79: 22 | AE79: 43923 | AF79: 22 | AG79: 22 | AH79: 43923 | AI79: 22 | AJ79: 22 | AK79: 43923 | AL79: 22 | AM79: 22 | AN79: 43923 | AO79: 22 | AP79: 22 | AQ79: 43923 | AR79: 22 | AS79: 22 | AT79: 43923 | AU79: 52500 | AV79: 10000 | AW79: 42500 | AX79: 264 | AY79: 52236 | AZ79: 42236
A80: 78 | B80: محسن على ابراهيم-78 | C80: 22132244567 | D80: 5565656 | E80: تقسيط | F80: 52500 | G80: 10000 | H80: 42500 | I80: 71 | J80: 2020-10-20 | K80: 22 | L80: 22 | M80: 2020-06-07 | N80: 22 | O80: 22 | P80: 2020-06-07 | Q80: 22 | R80: 22 | S80: 43923 | T80: 22 | U80: 22 | V80: 43923 | W80: 22 | X80: 22 | Y80: 43923 | Z80: 22 | AA80: 22 | AB80: 43923 | AC80: 22 | AD80: 22 | AE80: 43923 | AF80: 22 | AG80: 22 | AH80: 43923 | AI80: 22 | AJ80: 22 | AK80: 43923 | AL80: 22 | AM80: 22 | AN80: 43923 | AO80: 22 | AP80: 22 | AQ80: 43923 | AR80: 22 | AS80: 22 | AT80: 43923 | AU80: 52500 | AV80: 10000 | AW80: 42500 | AX80: 264 | AY80: 52236 | AZ80: 42236
A81: 79 | B81: محسن على ابراهيم-79 | C81: 22132244567 | D81: 5565656 | E81: آجل | F81: 52500 | G81: 10000 | H81: 42500 | I81: 72 | J81: 2020-10-21 | K81: 22 | L81: 22 | M81: 2020-06-08 | N81: 22 | O81: 22 | P81: 2020-06-08 | Q81: 22 | R81: 22 | S81: 43923 | T81: 22 | U81: 22 | V81: 43923 | W81: 22 | X81: 22 | Y81: 43923 | Z81: 22 | AA81: 22 | AB81: 43923 | AC81: 22 | AD81: 22 | AE81: 43923 | AF81: 22 | AG81: 22 | AH81: 43923 | AI81: 22 | AJ81: 22 | AK81: 43923 | AL81: 22 | AM81: 22 | AN81: 43923 | AO81: 22 | AP81: 22 | AQ81: 43923 | AR81: 22 | AS81: 22 | AT81: 43923 | AU81: 52500 | AV81: 10000 | AW81: 42500 | AX81: 264 | AY81: 52236 | AZ81: 42236
A82: 80 | B82: محسن على ابراهيم-80 | C82: 22132244567 | D82: 5565656 | E82: تقسيط | F82: 52500 | G82: 10000 | H82: 42500 | I82: 73 | J82: 2020-10-22 | K82: 22 | L82: 22 | M82: 2020-06-09 | N82: 22 | O82: 22 | P82: 2020-06-09 | Q82: 22 | R82: 22 | S82: 43923 | T82: 22 | U82: 22 | V82: 43923 | W82: 22 | X82: 22 | Y82: 43923 | Z82: 22 | AA82: 22 | AB82: 43923 | AC82: 22 | AD82: 22 | AE82: 43923 | AF82: 22 | AG82: 22 | AH82: 43923 | AI82: 22 | AJ82: 22 | AK82: 43923 | AL82: 22 | AM82: 22 | AN82: 43923 | AO82: 22 | AP82: 22 | AQ82: 43923 | AR82: 22 | AS82: 22 | AT82: 43923 | AU82: 52500 | AV82: 10000 | AW82: 42500 | AX82: 264 | AY82: 52236 | AZ82: 42236
A83: 81 | B83: محسن على ابراهيم-81 | C83: 22132244567 | D83: 5565656 | E83: آجل | F83: 52500 | G83: 10000 | H83: 42500 | I83: 74 | J83: 2020-10-23 | K83: 22 | L83: 22 | M83: 2020-06-10 | N83: 22 | O83: 22 | P83: 2020-06-10 | Q83: 22 | R83: 22 | S83: 43923 | T83: 22 | U83: 22 | V83: 43923 | W83: 22 | X83: 22 | Y83: 43923 | Z83: 22 | AA83: 22 | AB83: 43923 | AC83: 22 | AD83: 22 | AE83: 43923 | AF83: 22 | AG83: 22 | AH83: 43923 | AI83: 22 | AJ83: 22 | AK83: 43923 | AL83: 22 | AM83: 22 | AN83: 43923 | AO83: 22 | AP83: 22 | AQ83: 43923 | AR83: 22 | AS83: 22 | AT83: 43923 | AU83: 52500 | AV83: 10000 | AW83: 42500 | AX83: 264 | AY83: 52236 | AZ83: 42236
A84: 82 | B84: محسن على ابراهيم-82 | C84: 22132244567 | D84: 5565656 | E84: تقسيط | F84: 52500 | G84: 10000 | H84: 42500 | I84: 75 | J84: 2020-10-24 | K84: 22 | L84: 22 | M84: 2020-06-11 | N84: 22 | O84: 22 | P84: 2020-06-11 | Q84: 22 | R84: 22 | S84: 43923 | T84: 22 | U84: 22 | V84: 43923 | W84: 22 | X84: 22 | Y84: 43923 | Z84: 22 | AA84: 22 | AB84: 43923 | AC84: 22 | AD84: 22 | AE84: 43923 | AF84: 22 | AG84: 22 | AH84: 43923 | AI84: 22 | AJ84: 22 | AK84: 43923 | AL84: 22 | AM84: 22 | AN84: 43923 | AO84: 22 | AP84: 22 | AQ84: 43923 | AR84: 22 | AS84: 22 | AT84: 43923 | AU84: 52500 | AV84: 10000 | AW84: 42500 | AX84: 264 | AY84: 52236 | AZ84: 42236
A85: 83 | B85: محسن على ابراهيم-83 | C85: 22132244567 | D85: 5565656 | E85: آجل | F85: 52500 | G85: 10000 | H85: 42500 | I85: 76 | J85: 2020-10-25 | K85: 22 | L85: 22 | M85: 2020-06-12 | N85: 22 | O85: 22 | P85: 2020-06-12 | Q85: 22 | R85: 22 | S85: 43923 | T85: 22 | U85: 22 | V85: 43923 | W85: 22 | X85: 22 | Y85: 43923 | Z85: 22 | AA85: 22 | AB85: 43923 | AC85: 22 | AD85: 22 | AE85: 43923 | AF85: 22 | AG85: 22 | AH85: 43923 | AI85: 22 | AJ85: 22 | AK85: 43923 | AL85: 22 | AM85: 22 | AN85: 43923 | AO85: 22 | AP85: 22 | AQ85: 43923 | AR85: 22 | AS85: 22 | AT85: 43923 | AU85: 52500 | AV85: 10000 | AW85: 42500 | AX85: 264 | AY85: 52236 | AZ85: 42236
A86: 84 | B86: محسن على ابراهيم-84 | C86: 22132244567 | D86: 5565656 | E86: تقسيط | F86: 52500 | G86: 10000 | H86: 42500 | I86: 77 | J86: 2020-10-26 | K86: 22 | L86: 22 | M86: 2020-06-13 | N86: 22 | O86: 22 | P86: 2020-06-13 | Q86: 22 | R86: 22 | S86: 43923 | T86: 22 | U86: 22 | V86: 43923 | W86: 22 | X86: 22 | Y86: 43923 | Z86: 22 | AA86: 22 | AB86: 43923 | AC86: 22 | AD86: 22 | AE86: 43923 | AF86: 22 | AG86: 22 | AH86: 43923 | AI86: 22 | AJ86: 22 | AK86: 43923 | AL86: 22 | AM86: 22 | AN86: 43923 | AO86: 22 | AP86: 22 | AQ86: 43923 | AR86: 22 | AS86: 22 | AT86: 43923 | AU86: 52500 | AV86: 10000 | AW86: 42500 | AX86: 264 | AY86: 52236 | AZ86: 42236
A87: 85 | B87: محسن على ابراهيم-85 | C87: 22132244567 | D87: 5565656 | E87: آجل | F87: 52500 | G87: 10000 | H87: 42500 | I87: 78 | J87: 2020-10-27 | K87: 22 | L87: 22 | M87: 2020-06-14 | N87: 22 | O87: 22 | P87: 2020-06-14 | Q87: 22 | R87: 22 | S87: 43923 | T87: 22 | U87: 22 | V87: 43923 | W87: 22 | X87: 22 | Y87: 43923 | Z87: 22 | AA87: 22 | AB87: 43923 | AC87: 22 | AD87: 22 | AE87: 43923 | AF87: 22 | AG87: 22 | AH87: 43923 | AI87: 22 | AJ87: 22 | AK87: 43923 | AL87: 22 | AM87: 22 | AN87: 43923 | AO87: 22 | AP87: 22 | AQ87: 43923 | AR87: 22 | AS87: 22 | AT87: 43923 | AU87: 52500 | AV87: 10000 | AW87: 42500 | AX87: 264 | AY87: 52236 | AZ87: 42236
A88: 86 | B88: محسن على ابراهيم-86 | C88: 22132244567 | D88: 5565656 | E88: تقسيط | F88: 52500 | G88: 10000 | H88: 42500 | I88: 79 | J88: 2020-10-28 | K88: 22 | L88: 22 | M88: 2020-06-15 | N88: 22 | O88: 22 | P88: 2020-06-15 | Q88: 22 | R88: 22 | S88: 43923 | T88: 22 | U88: 22 | V88: 43923 | W88: 22 | X88: 22 | Y88: 43923 | Z88: 22 | AA88: 22 | AB88: 43923 | AC88: 22 | AD88: 22 | AE88: 43923 | AF88: 22 | AG88: 22 | AH88: 43923 | AI88: 22 | AJ88: 22 | AK88: 43923 | AL88: 22 | AM88: 22 | AN88: 43923 | AO88: 22 | AP88: 22 | AQ88: 43923 | AR88: 22 | AS88: 22 | AT88: 43923 | AU88: 52500 | AV88: 10000 | AW88: 42500 | AX88: 264 | AY88: 52236 | AZ88: 42236
A89: 87 | B89: محسن على ابراهيم-87 | C89: 22132244567 | D89: 5565656 | E89: آجل | F89: 52500 | G89: 10000 | H89: 42500 | I89: 80 | J89: 2020-10-29 | K89: 22 | L89: 22 | M89: 2020-06-16 | N89: 22 | O89: 22 | P89: 2020-06-16 | Q89: 22 | R89: 22 | S89: 43923 | T89: 22 | U89: 22 | V89: 43923 | W89: 22 | X89: 22 | Y89: 43923 | Z89: 22 | AA89: 22 | AB89: 43923 | AC89: 22 | AD89: 22 | AE89: 43923 | AF89: 22 | AG89: 22 | AH89: 43923 | AI89: 22 | AJ89: 22 | AK89: 43923 | AL89: 22 | AM89: 22 | AN89: 43923 | AO89: 22 | AP89: 22 | AQ89: 43923 | AR89: 22 | AS89: 22 | AT89: 43923 | AU89: 52500 | AV89: 10000 | AW89: 42500 | AX89: 264 | AY89: 52236 | AZ89: 42236
A90: 88 | B90: محسن على ابراهيم-88 | C90: 22132244567 | D90: 5565656 | E90: تقسيط | F90: 52500 | G90: 10000 | H90: 42500 | I90: 81 | J90: 2020-10-30 | K90: 22 | L90: 22 | M90: 2020-06-17 | N90: 22 | O90: 22 | P90: 2020-06-17 | Q90: 22 | R90: 22 | S90: 43923 | T90: 22 | U90: 22 | V90: 43923 | W90: 22 | X90: 22 | Y90: 43923 | Z90: 22 | AA90: 22 | AB90: 43923 | AC90: 22 | AD90: 22 | AE90: 43923 | AF90: 22 | AG90: 22 | AH90: 43923 | AI90: 22 | AJ90: 22 | AK90: 43923 | AL90: 22 | AM90: 22 | AN90: 43923 | AO90: 22 | AP90: 22 | AQ90: 43923 | AR90: 22 | AS90: 22 | AT90: 43923 | AU90: 52500 | AV90: 10000 | AW90: 42500 | AX90: 264 | AY90: 52236 | AZ90: 42236
A91: 89 | B91: محسن على ابراهيم-89 | C91: 22132244567 | D91: 5565656 | E91: آجل | F91: 52500 | G91: 10000 | H91: 42500 | I91: 82 | J91: 2020-10-31 | K91: 22 | L91: 22 | M91: 2020-06-18 | N91: 22 | O91: 22 | P91: 2020-06-18 | Q91: 22 | R91: 22 | S91: 43923 | T91: 22 | U91: 22 | V91: 43923 | W91: 22 | X91: 22 | Y91: 43923 | Z91: 22 | AA91: 22 | AB91: 43923 | AC91: 22 | AD91: 22 | AE91: 43923 | AF91: 22 | AG91: 22 | AH91: 43923 | AI91: 22 | AJ91: 22 | AK91: 43923 | AL91: 22 | AM91: 22 | AN91: 43923 | AO91: 22 | AP91: 22 | AQ91: 43923 | AR91: 22 | AS91: 22 | AT91: 43923 | AU91: 52500 | AV91: 10000 | AW91: 42500 | AX91: 264 | AY91: 52236 | AZ91: 42236
A92: 90 | B92: محسن على ابراهيم-90 | C92: 22132244567 | D92: 5565656 | E92: تقسيط | F92: 52500 | G92: 10000 | H92: 42500 | I92: 83 | J92: 2020-11-01 | K92: 22 | L92: 22 | M92: 2020-06-19 | N92: 22 | O92: 22 | P92: 2020-06-19 | Q92: 22 | R92: 22 | S92: 43923 | T92: 22 | U92: 22 | V92: 43923 | W92: 22 | X92: 22 | Y92: 43923 | Z92: 22 | AA92: 22 | AB92: 43923 | AC92: 22 | AD92: 22 | AE92: 43923 | AF92: 22 | AG92: 22 | AH92: 43923 | AI92: 22 | AJ92: 22 | AK92: 43923 | AL92: 22 | AM92: 22 | AN92: 43923 | AO92: 22 | AP92: 22 | AQ92: 43923 | AR92: 22 | AS92: 22 | AT92: 43923 | AU92: 52500 | AV92: 10000 | AW92: 42500 | AX92: 264 | AY92: 52236 | AZ92: 42236
A93: 91 | B93: محسن على ابراهيم-91 | C93: 22132244567 | D93: 5565656 | E93: آجل | F93: 52500 | G93: 10000 | H93: 42500 | I93: 84 | J93: 2020-11-02 | K93: 22 | L93: 22 | M93: 2020-06-20 | N93: 22 | O93: 22 | P93: 2020-06-20 | Q93: 22 | R93: 22 | S93: 43923 | T93: 22 | U93: 22 | V93: 43923 | W93: 22 | X93: 22 | Y93: 43923 | Z93: 22 | AA93: 22 | AB93: 43923 | AC93: 22 | AD93: 22 | AE93: 43923 | AF93: 22 | AG93: 22 | AH93: 43923 | AI93: 22 | AJ93: 22 | AK93: 43923 | AL93: 22 | AM93: 22 | AN93: 43923 | AO93: 22 | AP93: 22 | AQ93: 43923 | AR93: 22 | AS93: 22 | AT93: 43923 | AU93: 52500 | AV93: 10000 | AW93: 42500 | AX93: 264 | AY93: 52236 | AZ93: 42236
A94: 92 | B94: محسن على ابراهيم-92 | C94: 22132244567 | D94: 5565656 | E94: تقسيط | F94: 52500 | G94: 10000 | H94: 42500 | I94: 85 | J94: 2020-11-03 | K94: 22 | L94: 22 | M94: 2020-06-21 | N94: 22 | O94: 22 | P94: 2020-06-21 | Q94: 22 | R94: 22 | S94: 43923 | T94: 22 | U94: 22 | V94: 43923 | W94: 22 | X94: 22 | Y94: 43923 | Z94: 22 | AA94: 22 | AB94: 43923 | AC94: 22 | AD94: 22 | AE94: 43923 | AF94: 22 | AG94: 22 | AH94: 43923 | AI94: 22 | AJ94: 22 | AK94: 43923 | AL94: 22 | AM94: 22 | AN94: 43923 | AO94: 22 | AP94: 22 | AQ94: 43923 | AR94: 22 | AS94: 22 | AT94: 43923 | AU94: 52500 | AV94: 10000 | AW94: 42500 | AX94: 264 | AY94: 52236 | AZ94: 42236
A95: 93 | B95: محسن على ابراهيم-93 | C95: 22132244567 | D95: 5565656 | E95: آجل | F95: 52500 | G95: 10000 | H95: 42500 | I95: 86 | J95: 2020-11-04 | K95: 22 | L95: 22 | M95: 2020-06-22 | N95: 22 | O95: 22 | P95: 2020-06-22 | Q95: 22 | R95: 22 | S95: 43923 | T95: 22 | U95: 22 | V95: 43923 | W95: 22 | X95: 22 | Y95: 43923 | Z95: 22 | AA95: 22 | AB95: 43923 | AC95: 22 | AD95: 22 | AE95: 43923 | AF95: 22 | AG95: 22 | AH95: 43923 | AI95: 22 | AJ95: 22 | AK95: 43923 | AL95: 22 | AM95: 22 | AN95: 43923 | AO95: 22 | AP95: 22 | AQ95: 43923 | AR95: 22 | AS95: 22 | AT95: 43923 | AU95: 52500 | AV95: 10000 | AW95: 42500 | AX95: 264 | AY95: 52236 | AZ95: 42236
A96: 94 | B96: محسن على ابراهيم-94 | C96: 22132244567 | D96: 5565656 | E96: تقسيط | F96: 52500 | G96: 10000 | H96: 42500 | I96: 87 | J96: 2020-11-05 | K96: 22 | L96: 22 | M96: 2020-06-23 | N96: 22 | O96: 22 | P96: 2020-06-23 | Q96: 22 | R96: 22 | S96: 43923 | T96: 22 | U96: 22 | V96: 43923 | W96: 22 | X96: 22 | Y96: 43923 | Z96: 22 | AA96: 22 | AB96: 43923 | AC96: 22 | AD96: 22 | AE96: 43923 | AF96: 22 | AG96: 22 | AH96: 43923 | AI96: 22 | AJ96: 22 | AK96: 43923 | AL96: 22 | AM96: 22 | AN96: 43923 | AO96: 22 | AP96: 22 | AQ96: 43923 | AR96: 22 | AS96: 22 | AT96: 43923 | AU96: 52500 | AV96: 10000 | AW96: 42500 | AX96: 264 | AY96: 52236 | AZ96: 42236 | BA96: ثلبثصثص
A97: 95 | B97: محسن على ابراهيم-95 | C97: 22132244567 | D97: 5565656 | E97: آجل | F97: 52500 | G97: 10000 | H97: 42500 | I97: 88 | J97: 2020-11-06 | K97: 22 | L97: 22 | M97: 2020-06-24 | N97: 22 | O97: 22 | P97: 2020-06-24 | Q97: 22 | R97: 22 | S97: 43923 | T97: 22 | U97: 22 | V97: 43923 | W97: 22 | X97: 22 | Y97: 43923 | Z97: 22 | AA97: 22 | AB97: 43923 | AC97: 22 | AD97: 22 | AE97: 43923 | AF97: 22 | AG97: 22 | AH97: 43923 | AI97: 22 | AJ97: 22 | AK97: 43923 | AL97: 22 | AM97: 22 | AN97: 43923 | AO97: 22 | AP97: 22 | AQ97: 43923 | AR97: 22 | AS97: 22 | AT97: 43923 | AU97: 52500 | AV97: 10000 | AW97: 42500 | AX97: 264 | AY97: 52236 | AZ97: 42236
A98: 96 | B98: محسن على ابراهيم-96 | C98: 22132244567 | D98: 5565656 | E98: تقسيط | F98: 52500 | G98: 10000 | H98: 42500 | I98: 89 | J98: 2020-11-07 | K98: 22 | L98: 22 | M98: 2020-06-25 | N98: 22 | O98: 22 | P98: 2020-06-25 | Q98: 22 | R98: 22 | S98: 43923 | T98: 22 | U98: 22 | V98: 43923 | W98: 22 | X98: 22 | Y98: 43923 | Z98: 22 | AA98: 22 | AB98: 43923 | AC98: 22 | AD98: 22 | AE98: 43923 | AF98: 22 | AG98: 22 | AH98: 43923 | AI98: 22 | AJ98: 22 | AK98: 43923 | AL98: 22 | AM98: 22 | AN98: 43923 | AO98: 22 | AP98: 22 | AQ98: 43923 | AR98: 22 | AS98: 22 | AT98: 43923 | AU98: 52500 | AV98: 10000 | AW98: 42500 | AX98: 264 | AY98: 52236 | AZ98: 42236
A99: 97 | B99: محسن على ابراهيم-97 | C99: 22132244567 | D99: 5565656 | E99: آجل | F99: 52500 | G99: 10000 | H99: 42500 | I99: 90 | J99: 2020-11-08 | K99: 22 | L99: 22 | M99: 2020-06-26 | N99: 22 | O99: 22 | P99: 2020-06-26 | Q99: 22 | R99: 22 | S99: 43923 | T99: 22 | U99: 22 | V99: 43923 | W99: 22 | X99: 22 | Y99: 43923 | Z99: 22 | AA99: 22 | AB99: 43923 | AC99: 22 | AD99: 22 | AE99: 43923 | AF99: 22 | AG99: 22 | AH99: 43923 | AI99: 22 | AJ99: 22 | AK99: 43923 | AL99: 22 | AM99: 22 | AN99: 43923 | AO99: 22 | AP99: 22 | AQ99: 43923 | AR99: 22 | AS99: 22 | AT99: 43923 | AU99: 52500 | AV99: 10000 | AW99: 42500 | AX99: 264 | AY99: 52236 | AZ99: 42236
A100: 98 | B100: محسن على ابراهيم-98 | C100: 22132244567 | D100: 5565656 | E100: تقسيط | F100: 52500 | G100: 10000 | H100: 42500 | I100: 91 | J100: 2020-11-09 | K100: 22 | L100: 22 | M100: 2020-06-27 | N100: 22 | O100: 22 | P100: 2020-06-27 | Q100: 22 | R100: 22 | S100: 43923 | T100: 22 | U100: 22 | V100: 43923 | W100: 22 | X100: 22 | Y100: 43923 | Z100: 22 | AA100: 22 | AB100: 43923 | AC100: 22 | AD100: 22 | AE100: 43923 | AF100: 22 | AG100: 22 | AH100: 43923 | AI100: 22 | AJ100: 22 | AK100: 43923 | AL100: 22 | AM100: 22 | AN100: 43923 | AO100: 22 | AP100: 22 | AQ100: 43923 | AR100: 22 | AS100: 22 | AT100: 43923 | AU100: 52500 | AV100: 10000 | AW100: 42500 | AX100: 264 | AY100: 52236 | AZ100: 42236
A101: 99 | B101: محسن على ابراهيم-99 | C101: 22132244567 | D101: 5565656 | E101: آجل | F101: 52500 | G101: 10000 | H101: 42500 | I101: 92 | J101: 2020-11-10 | K101: 22 | L101: 22 | M101: 2020-06-28 | N101: 22 | O101: 22 | P101: 2020-06-28 | Q101: 22 | R101: 22 | S101: 43923 | T101: 22 | U101: 22 | V101: 43923 | W101: 22 | X101: 22 | Y101: 43923 | Z101: 22 | AA101: 22 | AB101: 43923 | AC101: 22 | AD101: 22 | AE101: 43923 | AF101: 22 | AG101: 22 | AH101: 43923 | AI101: 22 | AJ101: 22 | AK101: 43923 | AL101: 22 | AM101: 22 | AN101: 43923 | AO101: 22 | AP101: 22 | AQ101: 43923 | AR101: 22 | AS101: 22 | AT101: 43923 | AU101: 52500 | AV101: 10000 | AW101: 42500 | AX101: 264 | AY101: 52236 | AZ101: 42236
A102: 100 | B102: محسن على ابراهيم-100 | C102: 22132244567 | D102: 5565656 | E102: تقسيط | F102: 52500 | G102: 10000 | H102: 42500 | I102: 93 | J102: 2020-11-11 | K102: 22 | L102: 22 | M102: 2020-06-29 | N102: 22 | O102: 22 | P102: 2020-06-29 | Q102: 22 | R102: 22 | S102: 43923 | T102: 22 | U102: 22 | V102: 43923 | W102: 22 | X102: 22 | Y102: 43923 | Z102: 22 | AA102: 22 | AB102: 43923 | AC102: 22 | AD102: 22 | AE102: 43923 | AF102: 22 | AG102: 22 | AH102: 43923 | AI102: 22 | AJ102: 22 | AK102: 43923 | AL102: 22 | AM102: 22 | AN102: 43923 | AO102: 22 | AP102: 22 | AQ102: 43923 | AR102: 22 | AS102: 22 | AT102: 43923 | AU102: 52500 | AV102: 10000 | AW102: 42500 | AX102: 264 | AY102: 52236 | AZ102: 42236
A103: 101 | B103: محسن على ابراهيم-101 | C103: 22132244567 | D103: 5565656 | E103: آجل | F103: 52500 | G103: 10000 | H103: 42500 | I103: 94 | J103: 2020-11-12 | K103: 22 | L103: 22 | M103: 2020-06-30 | N103: 22 | O103: 22 | P103: 2020-06-30 | Q103: 22 | R103: 22 | S103: 43923 | T103: 22 | U103: 22 | V103: 43923 | W103: 22 | X103: 22 | Y103: 43923 | Z103: 22 | AA103: 22 | AB103: 43923 | AC103: 22 | AD103: 22 | AE103: 43923 | AF103: 22 | AG103: 22 | AH103: 43923 | AI103: 22 | AJ103: 22 | AK103: 43923 | AL103: 22 | AM103: 22 | AN103: 43923 | AO103: 22 | AP103: 22 | AQ103: 43923 | AR103: 22 | AS103: 22 | AT103: 43923 | AU103: 52500 | AV103: 10000 | AW103: 42500 | AX103: 264 | AY103: 52236 | AZ103: 42236
A104: 102 | B104: محسن على ابراهيم-102 | C104: 22132244567 | D104: 5565656 | E104: تقسيط | F104: 52500 | G104: 10000 | H104: 42500 | I104: 95 | J104: 2020-11-13 | K104: 22 | L104: 22 | M104: 2020-07-01 | N104: 22 | O104: 22 | P104: 2020-07-01 | Q104: 22 | R104: 22 | S104: 43923 | T104: 22 | U104: 22 | V104: 43923 | W104: 22 | X104: 22 | Y104: 43923 | Z104: 22 | AA104: 22 | AB104: 43923 | AC104: 22 | AD104: 22 | AE104: 43923 | AF104: 22 | AG104: 22 | AH104: 43923 | AI104: 22 | AJ104: 22 | AK104: 43923 | AL104: 22 | AM104: 22 | AN104: 43923 | AO104: 22 | AP104: 22 | AQ104: 43923 | AR104: 22 | AS104: 22 | AT104: 43923 | AU104: 52500 | AV104: 10000 | AW104: 42500 | AX104: 264 | AY104: 52236 | AZ104: 42236
A105: 103 | B105: محسن على ابراهيم-103 | C105: 22132244567 | D105: 5565656 | E105: آجل | F105: 52500 | G105: 10000 | H105: 42500 | I105: 96 | J105: 2020-11-14 | K105: 22 | L105: 22 | M105: 2020-07-02 | N105: 22 | O105: 22 | P105: 2020-07-02 | Q105: 22 | R105: 22 | S105: 43923 | T105: 22 | U105: 22 | V105: 43923 | W105: 22 | X105: 22 | Y105: 43923 | Z105: 22 | AA105: 22 | AB105: 43923 | AC105: 22 | AD105: 22 | AE105: 43923 | AF105: 22 | AG105: 22 | AH105: 43923 | AI105: 22 | AJ105: 22 | AK105: 43923 | AL105: 22 | AM105: 22 | AN105: 43923 | AO105: 22 | AP105: 22 | AQ105: 43923 | AR105: 22 | AS105: 22 | AT105: 43923 | AU105: 52500 | AV105: 10000 | AW105: 42500 | AX105: 264 | AY105: 52236 | AZ105: 42236
A106: 104 | B106: محسن على ابراهيم-104 | C106: 22132244567 | D106: 5565656 | E106: تقسيط | F106: 52500 | G106: 10000 | H106: 42500 | I106: 97 | J106: 2020-11-15 | K106: 22 | L106: 22 | M106: 2020-07-03 | N106: 22 | O106: 22 | P106: 2020-07-03 | Q106: 22 | R106: 22 | S106: 43923 | T106: 22 | U106: 22 | V106: 43923 | W106: 22 | X106: 22 | Y106: 43923 | Z106: 22 | AA106: 22 | AB106: 43923 | AC106: 22 | AD106: 22 | AE106: 43923 | AF106: 22 | AG106: 22 | AH106: 43923 | AI106: 22 | AJ106: 22 | AK106: 43923 | AL106: 22 | AM106: 22 | AN106: 43923 | AO106: 22 | AP106: 22 | AQ106: 43923 | AR106: 22 | AS106: 22 | AT106: 43923 | AU106: 52500 | AV106: 10000 | AW106: 42500 | AX106: 264 | AY106: 52236 | AZ106: 42236
A107: 105 | B107: محسن على ابراهيم-105 | C107: 22132244567 | D107: 5565656 | E107: آجل | F107: 52500 | G107: 10000 | H107: 42500 | I107: 98 | J107: 2020-11-16 | K107: 22 | L107: 22 | M107: 2020-07-04 | N107: 22 | O107: 22 | P107: 2020-07-04 | Q107: 22 | R107: 22 | S107: 43923 | T107: 22 | U107: 22 | V107: 43923 | W107: 22 | X107: 22 | Y107: 43923 | Z107: 22 | AA107: 22 | AB107: 43923 | AC107: 22 | AD107: 22 | AE107: 43923 | AF107: 22 | AG107: 22 | AH107: 43923 | AI107: 22 | AJ107: 22 | AK107: 43923 | AL107: 22 | AM107: 22 | AN107: 43923 | AO107: 22 | AP107: 22 | AQ107: 43923 | AR107: 22 | AS107: 22 | AT107: 43923 | AU107: 52500 | AV107: 10000 | AW107: 42500 | AX107: 264 | AY107: 52236 | AZ107: 42236
A108: 106 | B108: محسن على ابراهيم-106 | C108: 22132244567 | D108: 5565656 | E108: تقسيط | F108: 52500 | G108: 10000 | H108: 42500 | I108: 99 | J108: 2020-11-17 | K108: 22 | L108: 22 | M108: 2020-07-05 | N108: 22 | O108: 22 | P108: 2020-07-05 | Q108: 22 | R108: 22 | S108: 43923 | T108: 22 | U108: 22 | V108: 43923 | W108: 22 | X108: 22 | Y108: 43923 | Z108: 22 | AA108: 22 | AB108: 43923 | AC108: 22 | AD108: 22 | AE108: 43923 | AF108: 22 | AG108: 22 | AH108: 43923 | AI108: 22 | AJ108: 22 | AK108: 43923 | AL108: 22 | AM108: 22 | AN108: 43923 | AO108: 22 | AP108: 22 | AQ108: 43923 | AR108: 22 | AS108: 22 | AT108: 43923 | AU108: 52500 | AV108: 10000 | AW108: 42500 | AX108: 264 | AY108: 52236 | AZ108: 42236
A109: 107 | B109: محسن على ابراهيم-107 | C109: 22132244567 | D109: 5565656 | E109: آجل | F109: 52500 | G109: 10000 | H109: 42500 | I109: 100 | J109: 2020-11-18 | K109: 22 | L109: 22 | M109: 2020-07-06 | N109: 22 | O109: 22 | P109: 2020-07-06 | Q109: 22 | R109: 22 | S109: 43923 | T109: 22 | U109: 22 | V109: 43923 | W109: 22 | X109: 22 | Y109: 43923 | Z109: 22 | AA109: 22 | AB109: 43923 | AC109: 22 | AD109: 22 | AE109: 43923 | AF109: 22 | AG109: 22 | AH109: 43923 | AI109: 22 | AJ109: 22 | AK109: 43923 | AL109: 22 | AM109: 22 | AN109: 43923 | AO109: 22 | AP109: 22 | AQ109: 43923 | AR109: 22 | AS109: 22 | AT109: 43923 | AU109: 52500 | AV109: 10000 | AW109: 42500 | AX109: 264 | AY109: 52236 | AZ109: 42236
A110: 108 | B110: محسن على ابراهيم-108 | C110: 22132244567 | D110: 5565656 | E110: تقسيط | F110: 52500 | G110: 10000 | H110: 42500 | I110: 101 | J110: 2020-11-19 | K110: 22 | L110: 22 | M110: 2020-07-07 | N110: 22 | O110: 22 | P110: 2020-07-07 | Q110: 22 | R110: 22 | S110: 43923 | T110: 22 | U110: 22 | V110: 43923 | W110: 22 | X110: 22 | Y110: 43923 | Z110: 22 | AA110: 22 | AB110: 43923 | AC110: 22 | AD110: 22 | AE110: 43923 | AF110: 22 | AG110: 22 | AH110: 43923 | AI110: 22 | AJ110: 22 | AK110: 43923 | AL110: 22 | AM110: 22 | AN110: 43923 | AO110: 22 | AP110: 22 | AQ110: 43923 | AR110: 22 | AS110: 22 | AT110: 43923 | AU110: 52500 | AV110: 10000 | AW110: 42500 | AX110: 264 | AY110: 52236 | AZ110: 42236
A111: 109 | B111: محسن على ابراهيم-109 | C111: 22132244567 | D111: 5565656 | E111: آجل | F111: 52500 | G111: 10000 | H111: 42500 | I111: 102 | J111: 2020-11-20 | K111: 22 | L111: 22 | M111: 2020-07-08 | N111: 22 | O111: 22 | P111: 2020-07-08 | Q111: 22 | R111: 22 | S111: 43923 | T111: 22 | U111: 22 | V111: 43923 | W111: 22 | X111: 22 | Y111: 43923 | Z111: 22 | AA111: 22 | AB111: 43923 | AC111: 22 | AD111: 22 | AE111: 43923 | AF111: 22 | AG111: 22 | AH111: 43923 | AI111: 22 | AJ111: 22 | AK111: 43923 | AL111: 22 | AM111: 22 | AN111: 43923 | AO111: 22 | AP111: 22 | AQ111: 43923 | AR111: 22 | AS111: 22 | AT111: 43923 | AU111: 52500 | AV111: 10000 | AW111: 42500 | AX111: 264 | AY111: 52236 | AZ111: 42236
A112: 110 | B112: محسن على ابراهيم-110 | C112: 22132244567 | D112: 5565656 | E112: تقسيط | F112: 52500 | G112: 10000 | H112: 42500 | I112: 103 | J112: 2020-11-21 | K112: 22 | L112: 22 | M112: 2020-07-09 | N112: 22 | O112: 22 | P112: 2020-07-09 | Q112: 22 | R112: 22 | S112: 43923 | T112: 22 | U112: 22 | V112: 43923 | W112: 22 | X112: 22 | Y112: 43923 | Z112: 22 | AA112: 22 | AB112: 43923 | AC112: 22 | AD112: 22 | AE112: 43923 | AF112: 22 | AG112: 22 | AH112: 43923 | AI112: 22 | AJ112: 22 | AK112: 43923 | AL112: 22 | AM112: 22 | AN112: 43923 | AO112: 22 | AP112: 22 | AQ112: 43923 | AR112: 22 | AS112: 22 | AT112: 43923 | AU112: 52500 | AV112: 10000 | AW112: 42500 | AX112: 264 | AY112: 52236 | AZ112: 42236
A113: 111 | B113: محسن على ابراهيم-111 | C113: 22132244567 | D113: 5565656 | E113: آجل | F113: 52500 | G113: 10000 | H113: 42500 | I113: 104 | J113: 2020-11-22 | K113: 22 | L113: 22 | M113: 2020-07-10 | N113: 22 | O113: 22 | P113: 2020-07-10 | Q113: 22 | R113: 22 | S113: 43923 | T113: 22 | U113: 22 | V113: 43923 | W113: 22 | X113: 22 | Y113: 43923 | Z113: 22 | AA113: 22 | AB113: 43923 | AC113: 22 | AD113: 22 | AE113: 43923 | AF113: 22 | AG113: 22 | AH113: 43923 | AI113: 22 | AJ113: 22 | AK113: 43923 | AL113: 22 | AM113: 22 | AN113: 43923 | AO113: 22 | AP113: 22 | AQ113: 43923 | AR113: 22 | AS113: 22 | AT113: 43923 | AU113: 52500 | AV113: 10000 | AW113: 42500 | AX113: 264 | AY113: 52236 | AZ113: 42236
A114: 112 | B114: محسن على ابراهيم-112 | C114: 22132244567 | D114: 5565656 | E114: تقسيط | F114: 52500 | G114: 10000 | H114: 42500 | I114: 105 | J114: 2020-11-23 | K114: 22 | L114: 22 | M114: 2020-07-11 | N114: 22 | O114: 22 | P114: 2020-07-11 | Q114: 22 | R114: 22 | S114: 43923 | T114: 22 | U114: 22 | V114: 43923 | W114: 22 | X114: 22 | Y114: 43923 | Z114: 22 | AA114: 22 | AB114: 43923 | AC114: 22 | AD114: 22 | AE114: 43923 | AF114: 22 | AG114: 22 | AH114: 43923 | AI114: 22 | AJ114: 22 | AK114: 43923 | AL114: 22 | AM114: 22 | AN114: 43923 | AO114: 22 | AP114: 22 | AQ114: 43923 | AR114: 22 | AS114: 22 | AT114: 43923 | AU114: 52500 | AV114: 10000 | AW114: 42500 | AX114: 264 | AY114: 52236 | AZ114: 42236
A115: 113 | B115: محسن على ابراهيم-113 | C115: 22132244567 | D115: 5565656 | E115: آجل | F115: 52500 | G115: 10000 | H115: 42500 | I115: 106 | J115: 2020-11-24 | K115: 22 | L115: 22 | M115: 2020-07-12 | N115: 22 | O115: 22 | P115: 2020-07-12 | Q115: 22 | R115: 22 | S115: 43923 | T115: 22 | U115: 22 | V115: 43923 | W115: 22 | X115: 22 | Y115: 43923 | Z115: 22 | AA115: 22 | AB115: 43923 | AC115: 22 | AD115: 22 | AE115: 43923 | AF115: 22 | AG115: 22 | AH115: 43923 | AI115: 22 | AJ115: 22 | AK115: 43923 | AL115: 22 | AM115: 22 | AN115: 43923 | AO115: 22 | AP115: 22 | AQ115: 43923 | AR115: 22 | AS115: 22 | AT115: 43923 | AU115: 52500 | AV115: 10000 | AW115: 42500 | AX115: 264 | AY115: 52236 | AZ115: 42236
A116: 114 | B116: محسن على ابراهيم-114 | C116: 22132244567 | D116: 5565656 | E116: تقسيط | F116: 52500 | G116: 10000 | H116: 42500 | I116: 107 | J116: 2020-11-25 | K116: 22 | L116: 22 | M116: 2020-07-13 | N116: 22 | O116: 22 | P116: 2020-07-13 | Q116: 22 | R116: 22 | S116: 43923 | T116: 22 | U116: 22 | V116: 43923 | W116: 22 | X116: 22 | Y116: 43923 | Z116: 22 | AA116: 22 | AB116: 43923 | AC116: 22 | AD116: 22 | AE116: 43923 | AF116: 22 | AG116: 22 | AH116: 43923 | AI116: 22 | AJ116: 22 | AK116: 43923 | AL116: 22 | AM116: 22 | AN116: 43923 | AO116: 22 | AP116: 22 | AQ116: 43923 | AR116: 22 | AS116: 22 | AT116: 43923 | AU116: 52500 | AV116: 10000 | AW116: 42500 | AX116: 264 | AY116: 52236 | AZ116: 42236
A117: 115 | B117: محسن على ابراهيم-115 | C117: 22132244567 | D117: 5565656 | E117: آجل | F117: 52500 | G117: 10000 | H117: 42500 | I117: 108 | J117: 2020-11-26 | K117: 22 | L117: 22 | M117: 2020-07-14 | N117: 22 | O117: 22 | P117: 2020-07-14 | Q117: 22 | R117: 22 | S117: 43923 | T117: 22 | U117: 22 | V117: 43923 | W117: 22 | X117: 22 | Y117: 43923 | Z117: 22 | AA117: 22 | AB117: 43923 | AC117: 22 | AD117: 22 | AE117: 43923 | AF117: 22 | AG117: 22 | AH117: 43923 | AI117: 22 | AJ117: 22 | AK117: 43923 | AL117: 22 | AM117: 22 | AN117: 43923 | AO117: 22 | AP117: 22 | AQ117: 43923 | AR117: 22 | AS117: 22 | AT117: 43923 | AU117: 52500 | AV117: 10000 | AW117: 42500 | AX117: 264 | AY117: 52236 | AZ117: 42236
A118: 116 | B118: محسن على ابراهيم-116 | C118: 22132244567 | D118: 5565656 | E118: تقسيط | F118: 52500 | G118: 10000 | H118: 42500 | I118: 109 | J118: 2020-11-27 | K118: 22 | L118: 22 | M118: 2020-07-15 | N118: 22 | O118: 22 | P118: 2020-07-15 | Q118: 22 | R118: 22 | S118: 43923 | T118: 22 | U118: 22 | V118: 43923 | W118: 22 | X118: 22 | Y118: 43923 | Z118: 22 | AA118: 22 | AB118: 43923 | AC118: 22 | AD118: 22 | AE118: 43923 | AF118: 22 | AG118: 22 | AH118: 43923 | AI118: 22 | AJ118: 22 | AK118: 43923 | AL118: 22 | AM118: 22 | AN118: 43923 | AO118: 22 | AP118: 22 | AQ118: 43923 | AR118: 22 | AS118: 22 | AT118: 43923 | AU118: 52500 | AV118: 10000 | AW118: 42500 | AX118: 264 | AY118: 52236 | AZ118: 42236
A119: 117 | B119: محسن على ابراهيم-117 | C119: 22132244567 | D119: 5565656 | E119: آجل | F119: 52500 | G119: 10000 | H119: 42500 | I119: 110 | J119: 2020-11-28 | K119: 22 | L119: 22 | M119: 2020-07-16 | N119: 22 | O119: 22 | P119: 2020-07-16 | Q119: 22 | R119: 22 | S119: 43923 | T119: 22 | U119: 22 | V119: 43923 | W119: 22 | X119: 22 | Y119: 43923 | Z119: 22 | AA119: 22 | AB119: 43923 | AC119: 22 | AD119: 22 | AE119: 43923 | AF119: 22 | AG119: 22 | AH119: 43923 | AI119: 22 | AJ119: 22 | AK119: 43923 | AL119: 22 | AM119: 22 | AN119: 43923 | AO119: 22 | AP119: 22 | AQ119: 43923 | AR119: 22 | AS119: 22 | AT119: 43923 | AU119: 52500 | AV119: 10000 | AW119: 42500 | AX119: 264 | AY119: 52236 | AZ119: 42236
A120: 118 | B120: محسن على ابراهيم-118 | C120: 22132244567 | D120: 5565656 | E120: تقسيط | F120: 52500 | G120: 10000 | H120: 42500 | I120: 111 | J120: 2020-11-29 | K120: 22 | L120: 22 | M120: 2020-07-17 | N120: 22 | O120: 22 | P120: 2020-07-17 | Q120: 22 | R120: 22 | S120: 43923 | T120: 22 | U120: 22 | V120: 43923 | W120: 22 | X120: 22 | Y120: 43923 | Z120: 22 | AA120: 22 | AB120: 43923 | AC120: 22 | AD120: 22 | AE120: 43923 | AF120: 22 | AG120: 22 | AH120: 43923 | AI120: 22 | AJ120: 22 | AK120: 43923 | AL120: 22 | AM120: 22 | AN120: 43923 | AO120: 22 | AP120: 22 | AQ120: 43923 | AR120: 22 | AS120: 22 | AT120: 43923 | AU120: 52500 | AV120: 10000 | AW120: 42500 | AX120: 264 | AY120: 52236 | AZ120: 42236
A121: 119 | B121: محسن على ابراهيم-119 | C121: 22132244567 | D121: 5565656 | E121: آجل | F121: 52500 | G121: 10000 | H121: 42500 | I121: 112 | J121: 2020-11-30 | K121: 22 | L121: 22 | M121: 2020-07-18 | N121: 22 | O121: 22 | P121: 2020-07-18 | Q121: 22 | R121: 22 | S121: 43923 | T121: 22 | U121: 22 | V121: 43923 | W121: 22 | X121: 22 | Y121: 43923 | Z121: 22 | AA121: 22 | AB121: 43923 | AC121: 22 | AD121: 22 | AE121: 43923 | AF121: 22 | AG121: 22 | AH121: 43923 | AI121: 22 | AJ121: 22 | AK121: 43923 | AL121: 22 | AM121: 22 | AN121: 43923 | AO121: 22 | AP121: 22 | AQ121: 43923 | AR121: 22 | AS121: 22 | AT121: 43923 | AU121: 52500 | AV121: 10000 | AW121: 42500 | AX121: 264 | AY121: 52236 | AZ121: 42236
A122: 120 | B122: محسن على ابراهيم-120 | C122: 22132244567 | D122: 5565656 | E122: تقسيط | F122: 52500 | G122: 10000 | H122: 42500 | I122: 113 | J122: 2020-12-01 | K122: 22 | L122: 22 | M122: 2020-07-19 | N122: 22 | O122: 22 | P122: 2020-07-19 | Q122: 22 | R122: 22 | S122: 43923 | T122: 22 | U122: 22 | V122: 43923 | W122: 22 | X122: 22 | Y122: 43923 | Z122: 22 | AA122: 22 | AB122: 43923 | AC122: 22 | AD122: 22 | AE122: 43923 | AF122: 22 | AG122: 22 | AH122: 43923 | AI122: 22 | AJ122: 22 | AK122: 43923 | AL122: 22 | AM122: 22 | AN122: 43923 | AO122: 22 | AP122: 22 | AQ122: 43923 | AR122: 22 | AS122: 22 | AT122: 43923 | AU122: 52500 | AV122: 10000 | AW122: 42500 | AX122: 264 | AY122: 52236 | AZ122: 42236
A123: 121 | B123: محسن على ابراهيم-121 | C123: 22132244567 | D123: 5565656 | E123: آجل | F123: 52500 | G123: 10000 | H123: 42500 | I123: 114 | J123: 2020-12-02 | K123: 22 | L123: 22 | M123: 2020-07-20 | N123: 22 | O123: 22 | P123: 2020-07-20 | Q123: 22 | R123: 22 | S123: 43923 | T123: 22 | U123: 22 | V123: 43923 | W123: 22 | X123: 22 | Y123: 43923 | Z123: 22 | AA123: 22 | AB123: 43923 | AC123: 22 | AD123: 22 | AE123: 43923 | AF123: 22 | AG123: 22 | AH123: 43923 | AI123: 22 | AJ123: 22 | AK123: 43923 | AL123: 22 | AM123: 22 | AN123: 43923 | AO123: 22 | AP123: 22 | AQ123: 43923 | AR123: 22 | AS123: 22 | AT123: 43923 | AU123: 52500 | AV123: 10000 | AW123: 42500 | AX123: 264 | AY123: 52236 | AZ123: 42236
A124: 122 | B124: محسن على ابراهيم-122 | C124: 22132244567 | D124: 5565656 | E124: تقسيط | F124: 52500 | G124: 10000 | H124: 42500 | I124: 115 | J124: 2020-12-03 | K124: 22 | L124: 22 | M124: 2020-07-21 | N124: 22 | O124: 22 | P124: 2020-07-21 | Q124: 22 | R124: 22 | S124: 43923 | T124: 22 | U124: 22 | V124: 43923 | W124: 22 | X124: 22 | Y124: 43923 | Z124: 22 | AA124: 22 | AB124: 43923 | AC124: 22 | AD124: 22 | AE124: 43923 | AF124: 22 | AG124: 22 | AH124: 43923 | AI124: 22 | AJ124: 22 | AK124: 43923 | AL124: 22 | AM124: 22 | AN124: 43923 | AO124: 22 | AP124: 22 | AQ124: 43923 | AR124: 22 | AS124: 22 | AT124: 43923 | AU124: 52500 | AV124: 10000 | AW124: 42500 | AX124: 264 | AY124: 52236 | AZ124: 42236
A125: 123 | B125: محسن على ابراهيم-123 | C125: 22132244567 | D125: 5565656 | E125: آجل | F125: 52500 | G125: 10000 | H125: 42500 | I125: 116 | J125: 2020-12-04 | K125: 22 | L125: 22 | M125: 2020-07-22 | N125: 22 | O125: 22 | P125: 2020-07-22 | Q125: 22 | R125: 22 | S125: 43923 | T125: 22 | U125: 22 | V125: 43923 | W125: 22 | X125: 22 | Y125: 43923 | Z125: 22 | AA125: 22 | AB125: 43923 | AC125: 22 | AD125: 22 | AE125: 43923 | AF125: 22 | AG125: 22 | AH125: 43923 | AI125: 22 | AJ125: 22 | AK125: 43923 | AL125: 22 | AM125: 22 | AN125: 43923 | AO125: 22 | AP125: 22 | AQ125: 43923 | AR125: 22 | AS125: 22 | AT125: 43923 | AU125: 52500 | AV125: 10000 | AW125: 42500 | AX125: 264 | AY125: 52236 | AZ125: 42236
A126: 124 | B126: محسن على ابراهيم-124 | C126: 22132244567 | D126: 5565656 | E126: تقسيط | F126: 52500 | G126: 10000 | H126: 42500 | I126: 117 | J126: 2020-12-05 | K126: 22 | L126: 22 | M126: 2020-07-23 | N126: 22 | O126: 22 | P126: 2020-07-23 | Q126: 22 | R126: 22 | S126: 43923 | T126: 22 | U126: 22 | V126: 43923 | W126: 22 | X126: 22 | Y126: 43923 | Z126: 22 | AA126: 22 | AB126: 43923 | AC126: 22 | AD126: 22 | AE126: 43923 | AF126: 22 | AG126: 22 | AH126: 43923 | AI126: 22 | AJ126: 22 | AK126: 43923 | AL126: 22 | AM126: 22 | AN126: 43923 | AO126: 22 | AP126: 22 | AQ126: 43923 | AR126: 22 | AS126: 22 | AT126: 43923 | AU126: 52500 | AV126: 10000 | AW126: 42500 | AX126: 264 | AY126: 52236 | AZ126: 42236
A127: 125 | B127: محسن على ابراهيم-125 | C127: 22132244567 | D127: 5565656 | E127: آجل | F127: 52500 | G127: 10000 | H127: 42500 | I127: 118 | J127: 2020-12-06 | K127: 22 | L127: 22 | M127: 2020-07-24 | N127: 22 | O127: 22 | P127: 2020-07-24 | Q127: 22 | R127: 22 | S127: 43923 | T127: 22 | U127: 22 | V127: 43923 | W127: 22 | X127: 22 | Y127: 43923 | Z127: 22 | AA127: 22 | AB127: 43923 | AC127: 22 | AD127: 22 | AE127: 43923 | AF127: 22 | AG127: 22 | AH127: 43923 | AI127: 22 | AJ127: 22 | AK127: 43923 | AL127: 22 | AM127: 22 | AN127: 43923 | AO127: 22 | AP127: 22 | AQ127: 43923 | AR127: 22 | AS127: 22 | AT127: 43923 | AU127: 52500 | AV127: 10000 | AW127: 42500 | AX127: 264 | AY127: 52236 | AZ127: 42236
A128: 126 | B128: محسن على ابراهيم-126 | C128: 22132244567 | D128: 5565656 | E128: تقسيط | F128: 52500 | G128: 10000 | H128: 42500 | I128: 119 | J128: 2020-12-07 | K128: 22 | L128: 22 | M128: 2020-07-25 | N128: 22 | O128: 22 | P128: 2020-07-25 | Q128: 22 | R128: 22 | S128: 43923 | T128: 22 | U128: 22 | V128: 43923 | W128: 22 | X128: 22 | Y128: 43923 | Z128: 22 | AA128: 22 | AB128: 43923 | AC128: 22 | AD128: 22 | AE128: 43923 | AF128: 22 | AG128: 22 | AH128: 43923 | AI128: 22 | AJ128: 22 | AK128: 43923 | AL128: 22 | AM128: 22 | AN128: 43923 | AO128: 22 | AP128: 22 | AQ128: 43923 | AR128: 22 | AS128: 22 | AT128: 43923 | AU128: 52500 | AV128: 10000 | AW128: 42500 | AX128: 264 | AY128: 52236 | AZ128: 42236
A129: 127 | B129: محسن على ابراهيم-127 | C129: 22132244567 | D129: 5565656 | E129: آجل | F129: 52500 | G129: 10000 | H129: 42500 | I129: 120 | J129: 2020-12-08 | K129: 22 | L129: 22 | M129: 2020-07-26 | N129: 22 | O129: 22 | P129: 2020-07-26 | Q129: 22 | R129: 22 | S129: 43923 | T129: 22 | U129: 22 | V129: 43923 | W129: 22 | X129: 22 | Y129: 43923 | Z129: 22 | AA129: 22 | AB129: 43923 | AC129: 22 | AD129: 22 | AE129: 43923 | AF129: 22 | AG129: 22 | AH129: 43923 | AI129: 22 | AJ129: 22 | AK129: 43923 | AL129: 22 | AM129: 22 | AN129: 43923 | AO129: 22 | AP129: 22 | AQ129: 43923 | AR129: 22 | AS129: 22 | AT129: 43923 | AU129: 52500 | AV129: 10000 | AW129: 42500 | AX129: 264 | AY129: 52236 | AZ129: 42236
A130: 128 | B130: محسن على ابراهيم-128 | C130: 22132244567 | D130: 5565656 | E130: تقسيط | F130: 52500 | G130: 10000 | H130: 42500 | I130: 121 | J130: 2020-12-09 | K130: 22 | L130: 22 | M130: 2020-07-27 | N130: 22 | O130: 22 | P130: 2020-07-27 | Q130: 22 | R130: 22 | S130: 43923 | T130: 22 | U130: 22 | V130: 43923 | W130: 22 | X130: 22 | Y130: 43923 | Z130: 22 | AA130: 22 | AB130: 43923 | AC130: 22 | AD130: 22 | AE130: 43923 | AF130: 22 | AG130: 22 | AH130: 43923 | AI130: 22 | AJ130: 22 | AK130: 43923 | AL130: 22 | AM130: 22 | AN130: 43923 | AO130: 22 | AP130: 22 | AQ130: 43923 | AR130: 22 | AS130: 22 | AT130: 43923 | AU130: 52500 | AV130: 10000 | AW130: 42500 | AX130: 264 | AY130: 52236 | AZ130: 42236
A131: 129 | B131: محسن على ابراهيم-129 | C131: 22132244567 | D131: 5565656 | E131: آجل | F131: 52500 | G131: 10000 | H131: 42500 | I131: 122 | J131: 2020-12-10 | K131: 22 | L131: 22 | M131: 2020-07-28 | N131: 22 | O131: 22 | P131: 2020-07-28 | Q131: 22 | R131: 22 | S131: 43923 | T131: 22 | U131: 22 | V131: 43923 | W131: 22 | X131: 22 | Y131: 43923 | Z131: 22 | AA131: 22 | AB131: 43923 | AC131: 22 | AD131: 22 | AE131: 43923 | AF131: 22 | AG131: 22 | AH131: 43923 | AI131: 22 | AJ131: 22 | AK131: 43923 | AL131: 22 | AM131: 22 | AN131: 43923 | AO131: 22 | AP131: 22 | AQ131: 43923 | AR131: 22 | AS131: 22 | AT131: 43923 | AU131: =F131 -> 52500 | AV131: 10000 | AW131: 42500 | AX131: 264 | AY131: 52236 | AZ131: =H131-AX131 -> 42236
A132: 130 | B132: محسن على ابراهيم-130 | C132: 22132244567 | D132: 5565656 | E132: تقسيط | F132: 52500 | G132: 10000 | H132: =F132-G132 -> 42500 | I132: 123 | J132: 2020-12-11 | K132: 22 | L132: 22 | M132: 2020-07-29 | N132: 22 | O132: 22 | P132: 2020-07-29 | Q132: 22 | R132: 22 | S132: 43923 | T132: 22 | U132: 22 | V132: 43923 | W132: 22 | X132: 22 | Y132: 43923 | Z132: 22 | AA132: 22 | AB132: 43923 | AC132: 22 | AD132: 22 | AE132: 43923 | AF132: 22 | AG132: 22 | AH132: 43923 | AI132: 22 | AJ132: 22 | AK132: 43923 | AL132: 22 | AM132: 22 | AN132: 43923 | AO132: 22 | AP132: 22 | AQ132: 43923 | AR132: 22 | AS132: 22 | AT132: 43923 | AU132: 52500 | AV132: 10000 | AW132: 42500 | AX132: 264 | AY132: =F132-AX132 -> 52236 | AZ132: 42236
A133: 131 | B133: محسن على ابراهيم-131 | C133: 22132244567 | D133: 5565656 | E133: آجل | F133: 52500 | G133: 10000 | H133: 42500 | I133: 124 | J133: 2020-12-12 | K133: 22 | L133: 22 | M133: 2020-07-30 | N133: 22 | O133: 22 | P133: 2020-07-30 | Q133: 22 | R133: 22 | S133: 43923 | T133: 22 | U133: 22 | V133: 43923 | W133: 22 | X133: 22 | Y133: 43923 | Z133: 22 | AA133: 22 | AB133: 43923 | AC133: 22 | AD133: 22 | AE133: 43923 | AF133: 22 | AG133: 22 | AH133: 43923 | AI133: 22 | AJ133: 22 | AK133: 43923 | AL133: 22 | AM133: 22 | AN133: 43923 | AO133: 22 | AP133: 22 | AQ133: 43923 | AR133: 22 | AS133: 22 | AT133: 43923 | AU133: 52500 | AV133: 10000 | AW133: 42500 | AX133: 264 | AY133: 52236 | AZ133: 42236
A134: 132 | B134: محسن على ابراهيم-132 | C134: 22132244567 | D134: 5565656 | E134: تقسيط | F134: 52500 | G134: 10000 | H134: 42500 | I134: 125 | J134: 2020-12-13 | K134: 22 | L134: 22 | M134: 2020-07-31 | N134: 22 | O134: 22 | P134: 2020-07-31 | Q134: 22 | R134: 22 | S134: 43923 | T134: 22 | U134: 22 | V134: 43923 | W134: 22 | X134: 22 | Y134: 43923 | Z134: 22 | AA134: 22 | AB134: 43923 | AC134: 22 | AD134: 22 | AE134: 43923 | AF134: 22 | AG134: 22 | AH134: 43923 | AI134: 22 | AJ134: 22 | AK134: 43923 | AL134: 22 | AM134: 22 | AN134: 43923 | AO134: 22 | AP134: 22 | AQ134: 43923 | AR134: 22 | AS134: 22 | AT134: 43923 | AU134: 52500 | AV134: 10000 | AW134: 42500 | AX134: =SUM(K134+N134+Q134+T134+W134+Z134+AF134+AC134+AI134+AL134+AO134+AR134) -> 264 | AY134: 52236 | AZ134: 42236
A135: 133 | B135: محسن على ابراهيم-133 | C135: 22132244567 | D135: 5565656 | E135: آجل | F135: 52500 | G135: 10000 | H135: 42500 | I135: 126 | J135: 2020-12-14 | K135: 22 | L135: 22 | M135: 2020-08-01 | N135: 22 | O135: 22 | P135: 2020-08-01 | Q135: 22 | R135: 22 | S135: 43923 | T135: 22 | U135: 22 | V135: 43923 | W135: 22 | X135: 22 | Y135: 43923 | Z135: 22 | AA135: 22 | AB135: 43923 | AC135: 22 | AD135: 22 | AE135: 43923 | AF135: 22 | AG135: 22 | AH135: 43923 | AI135: 22 | AJ135: 22 | AK135: 43923 | AL135: 22 | AM135: 22 | AN135: 43923 | AO135: 22 | AP135: 22 | AQ135: 43923 | AR135: 22 | AS135: 22 | AT135: 43923 | AU135: 52500 | AV135: 10000 | AW135: 42500 | AX135: 264 | AY135: 52236 | AZ135: 42236
A136: 134 | B136: محسن على ابراهيم-134 | C136: 22132244567 | D136: 5565656 | E136: تقسيط | F136: 52500 | G136: 10000 | H136: 42500 | I136: 127 | J136: 2020-12-15 | K136: 22 | L136: 22 | M136: 2020-08-02 | N136: 22 | O136: 22 | P136: 2020-08-02 | Q136: 22 | R136: 22 | S136: 43923 | T136: 22 | U136: 22 | V136: 43923 | W136: 22 | X136: 22 | Y136: 43923 | Z136: 22 | AA136: 22 | AB136: 43923 | AC136: 22 | AD136: 22 | AE136: 43923 | AF136: 22 | AG136: 22 | AH136: 43923 | AI136: 22 | AJ136: 22 | AK136: 43923 | AL136: 22 | AM136: 22 | AN136: 43923 | AO136: 22 | AP136: 22 | AQ136: 43923 | AR136: 22 | AS136: 22 | AT136: 43923 | AU136: 52500 | AV136: 10000 | AW136: 42500 | AX136: 264 | AY136: 52236 | AZ136: 42236
A137: 135 | B137: محسن على ابراهيم-135 | C137: 22132244567 | D137: 5565656 | E137: آجل | F137: 52500 | G137: 10000 | H137: 42500 | I137: 128 | J137: 2020-12-16 | K137: 22 | L137: 22 | M137: 2020-08-03 | N137: 22 | O137: 22 | P137: 2020-08-03 | Q137: 22 | R137: 22 | S137: 43923 | T137: 22 | U137: 22 | V137: 43923 | W137: 22 | X137: 22 | Y137: 43923 | Z137: 22 | AA137: 22 | AB137: 43923 | AC137: 22 | AD137: 22 | AE137: 43923 | AF137: 22 | AG137: 22 | AH137: 43923 | AI137: 22 | AJ137: 22 | AK137: 43923 | AL137: 22 | AM137: 22 | AN137: 43923 | AO137: 22 | AP137: 22 | AQ137: 43923 | AR137: 22 | AS137: 22 | AT137: 43923 | AU137: 52500 | AV137: 10000 | AW137: 42500 | AX137: 264 | AY137: 52236 | AZ137: 42236
A138: 136 | B138: محسن على ابراهيم-136 | C138: 22132244567 | D138: 5565656 | E138: تقسيط | F138: 52500 | G138: 10000 | H138: 42500 | I138: 129 | J138: 2020-12-17 | K138: 22 | L138: 22 | M138: 2020-08-04 | N138: 22 | O138: 22 | P138: 2020-08-04 | Q138: 22 | R138: 22 | S138: 43923 | T138: 22 | U138: 22 | V138: 43923 | W138: 22 | X138: 22 | Y138: 43923 | Z138: 22 | AA138: 22 | AB138: 43923 | AC138: 22 | AD138: 22 | AE138: 43923 | AF138: 22 | AG138: 22 | AH138: 43923 | AI138: 22 | AJ138: 22 | AK138: 43923 | AL138: 22 | AM138: 22 | AN138: 43923 | AO138: 22 | AP138: 22 | AQ138: 43923 | AR138: 22 | AS138: 22 | AT138: 43923 | AU138: 52500 | AV138: 10000 | AW138: 42500 | AX138: 264 | AY138: 52236 | AZ138: 42236
A139: 137 | B139: محسن على ابراهيم-137 | C139: 22132244567 | D139: 5565656 | E139: آجل | F139: 52500 | G139: 10000 | H139: 42500 | I139: 130 | J139: 2020-12-18 | K139: 22 | L139: 22 | M139: 2020-08-05 | N139: 22 | O139: 22 | P139: 2020-08-05 | Q139: 22 | R139: 22 | S139: 43923 | T139: 22 | U139: 22 | V139: 43923 | W139: 22 | X139: 22 | Y139: 43923 | Z139: 22 | AA139: 22 | AB139: 43923 | AC139: 22 | AD139: 22 | AE139: 43923 | AF139: 22 | AG139: 22 | AH139: 43923 | AI139: 22 | AJ139: 22 | AK139: 43923 | AL139: 22 | AM139: 22 | AN139: 43923 | AO139: 22 | AP139: 22 | AQ139: 43923 | AR139: 22 | AS139: 22 | AT139: 43923 | AU139: 52500 | AV139: 10000 | AW139: 42500 | AX139: 264 | AY139: 52236 | AZ139: 42236
A140: 138 | B140: محسن على ابراهيم-138 | C140: 22132244567 | D140: 5565656 | E140: تقسيط | F140: 52500 | G140: 10000 | H140: 42500 | I140: 131 | J140: 2020-12-19 | K140: 22 | L140: 22 | M140: 2020-08-06 | N140: 22 | O140: 22 | P140: 2020-08-06 | Q140: 22 | R140: 22 | S140: 43923 | T140: 22 | U140: 22 | V140: 43923 | W140: 22 | X140: 22 | Y140: 43923 | Z140: 22 | AA140: 22 | AB140: 43923 | AC140: 22 | AD140: 22 | AE140: 43923 | AF140: 22 | AG140: 22 | AH140: 43923 | AI140: 22 | AJ140: 22 | AK140: 43923 | AL140: 22 | AM140: 22 | AN140: 43923 | AO140: 22 | AP140: 22 | AQ140: 43923 | AR140: 22 | AS140: 22 | AT140: 43923 | AU140: 52500 | AV140: 10000 | AW140: 42500 | AX140: 264 | AY140: 52236 | AZ140: 42236
A141: 139 | B141: محسن على ابراهيم-139 | C141: 22132244567 | D141: 5565656 | E141: آجل | F141: 52500 | G141: 10000 | H141: 42500 | I141: 132 | J141: 2020-12-20 | K141: 22 | L141: 22 | M141: 2020-08-07 | N141: 22 | O141: 22 | P141: 2020-08-07 | Q141: 22 | R141: 22 | S141: 43923 | T141: 22 | U141: 22 | V141: 43923 | W141: 22 | X141: 22 | Y141: 43923 | Z141: 22 | AA141: 22 | AB141: 43923 | AC141: 22 | AD141: 22 | AE141: 43923 | AF141: 22 | AG141: 22 | AH141: 43923 | AI141: 22 | AJ141: 22 | AK141: 43923 | AL141: 22 | AM141: 22 | AN141: 43923 | AO141: 22 | AP141: 22 | AQ141: 43923 | AR141: 22 | AS141: 22 | AT141: 43923 | AU141: 52500 | AV141: 10000 | AW141: 42500 | AX141: 264 | AY141: 52236 | AZ141: 42236
A142: 140 | B142: محسن على ابراهيم-140 | C142: 22132244567 | D142: 5565656 | E142: تقسيط | F142: 52500 | G142: 10000 | H142: 42500 | I142: 133 | J142: 2020-12-21 | K142: 22 | L142: 22 | M142: 2020-08-08 | N142: 22 | O142: 22 | P142: 2020-08-08 | Q142: 22 | R142: 22 | S142: 43923 | T142: 22 | U142: 22 | V142: 43923 | W142: 22 | X142: 22 | Y142: 43923 | Z142: 22 | AA142: 22 | AB142: 43923 | AC142: 22 | AD142: 22 | AE142: 43923 | AF142: 22 | AG142: 22 | AH142: 43923 | AI142: 22 | AJ142: 22 | AK142: 43923 | AL142: 22 | AM142: 22 | AN142: 43923 | AO142: 22 | AP142: 22 | AQ142: 43923 | AR142: 22 | AS142: 22 | AT142: 43923 | AU142: 52500 | AV142: 10000 | AW142: 42500 | AX142: 264 | AY142: 52236 | AZ142: 42236
A143: 141 | B143: محسن على ابراهيم-141 | C143: 22132244567 | D143: 5565656 | E143: آجل | F143: 52500 | G143: 10000 | H143: 42500 | I143: 134 | J143: 2020-12-22 | K143: 22 | L143: 22 | M143: 2020-08-09 | N143: 22 | O143: 22 | P143: 2020-08-09 | Q143: 22 | R143: 22 | S143: 43923 | T143: 22 | U143: 22 | V143: 43923 | W143: 22 | X143: 22 | Y143: 43923 | Z143: 22 | AA143: 22 | AB143: 43923 | AC143: 22 | AD143: 22 | AE143: 43923 | AF143: 22 | AG143: 22 | AH143: 43923 | AI143: 22 | AJ143: 22 | AK143: 43923 | AL143: 22 | AM143: 22 | AN143: 43923 | AO143: 22 | AP143: 22 | AQ143: 43923 | AR143: 22 | AS143: 22 | AT143: 43923 | AU143: 52500 | AV143: 10000 | AW143: 42500 | AX143: 264 | AY143: 52236 | AZ143: 42236
A144: 142 | B144: محسن على ابراهيم-142 | C144: 22132244567 | D144: 5565656 | E144: تقسيط | F144: 52500 | G144: 10000 | H144: 42500 | I144: 135 | J144: 2020-12-23 | K144: 22 | L144: 22 | M144: 2020-08-10 | N144: 22 | O144: 22 | P144: 2020-08-10 | Q144: 22 | R144: 22 | S144: 43923 | T144: 22 | U144: 22 | V144: 43923 | W144: 22 | X144: 22 | Y144: 43923 | Z144: 22 | AA144: 22 | AB144: 43923 | AC144: 22 | AD144: 22 | AE144: 43923 | AF144: 22 | AG144: 22 | AH144: 43923 | AI144: 22 | AJ144: 22 | AK144: 43923 | AL144: 22 | AM144: 22 | AN144: 43923 | AO144: 22 | AP144: 22 | AQ144: 43923 | AR144: 22 | AS144: 22 | AT144: 43923 | AU144: 52500 | AV144: 10000 | AW144: 42500 | AX144: 264 | AY144: 52236 | AZ144: 42236
A145: 143 | B145: محسن على ابراهيم-143 | C145: 22132244567 | D145: 5565656 | E145: آجل | F145: 52500 | G145: 10000 | H145: 42500 | I145: 136 | J145: 2020-12-24 | K145: 22 | L145: 22 | M145: 2020-08-11 | N145: 22 | O145: 22 | P145: 2020-08-11 | Q145: 22 | R145: 22 | S145: 43923 | T145: 22 | U145: 22 | V145: 43923 | W145: 22 | X145: 22 | Y145: 43923 | Z145: 22 | AA145: 22 | AB145: 43923 | AC145: 22 | AD145: 22 | AE145: 43923 | AF145: 22 | AG145: 22 | AH145: 43923 | AI145: 22 | AJ145: 22 | AK145: 43923 | AL145: 22 | AM145: 22 | AN145: 43923 | AO145: 22 | AP145: 22 | AQ145: 43923 | AR145: 22 | AS145: 22 | AT145: 43923 | AU145: 52500 | AV145: 10000 | AW145: 42500 | AX145: 264 | AY145: 52236 | AZ145: 42236
A146: 144 | B146: محسن على ابراهيم-144 | C146: 22132244567 | D146: 5565656 | E146: تقسيط | F146: 52500 | G146: 10000 | H146: 42500 | I146: 137 | J146: 2020-12-25 | K146: 22 | L146: 22 | M146: 2020-08-12 | N146: 22 | O146: 22 | P146: 2020-08-12 | Q146: 22 | R146: 22 | S146: 43923 | T146: 22 | U146: 22 | V146: 43923 | W146: 22 | X146: 22 | Y146: 43923 | Z146: 22 | AA146: 22 | AB146: 43923 | AC146: 22 | AD146: 22 | AE146: 43923 | AF146: 22 | AG146: 22 | AH146: 43923 | AI146: 22 | AJ146: 22 | AK146: 43923 | AL146: 22 | AM146: 22 | AN146: 43923 | AO146: 22 | AP146: 22 | AQ146: 43923 | AR146: 22 | AS146: 22 | AT146: 43923 | AU146: 52500 | AV146: 10000 | AW146: 42500 | AX146: 264 | AY146: 52236 | AZ146: 42236
A147: 145 | B147: محسن على ابراهيم-145 | C147: 22132244567 | D147: 5565656 | E147: آجل | F147: 52500 | G147: 10000 | H147: 42500 | I147: 138 | J147: 2020-12-26 | K147: 22 | L147: 22 | M147: 2020-08-13 | N147: 22 | O147: 22 | P147: 2020-08-13 | Q147: 22 | R147: 22 | S147: 43923 | T147: 22 | U147: 22 | V147: 43923 | W147: 22 | X147: 22 | Y147: 43923 | Z147: 22 | AA147: 22 | AB147: 43923 | AC147: 22 | AD147: 22 | AE147: 43923 | AF147: 22 | AG147: 22 | AH147: 43923 | AI147: 22 | AJ147: 22 | AK147: 43923 | AL147: 22 | AM147: 22 | AN147: 43923 | AO147: 22 | AP147: 22 | AQ147: 43923 | AR147: 22 | AS147: 22 | AT147: 43923 | AU147: 52500 | AV147: 10000 | AW147: 42500 | AX147: 264 | AY147: 52236 | AZ147: 42236
A148: 146 | B148: محسن على ابراهيم-146 | C148: 22132244567 | D148: 5565656 | E148: تقسيط | F148: 52500 | G148: 10000 | H148: 42500 | I148: 139 | J148: 2020-12-27 | K148: 22 | L148: 22 | M148: 2020-08-14 | N148: 22 | O148: 22 | P148: 2020-08-14 | Q148: 22 | R148: 22 | S148: 43923 | T148: 22 | U148: 22 | V148: 43923 | W148: 22 | X148: 22 | Y148: 43923 | Z148: 22 | AA148: 22 | AB148: 43923 | AC148: 22 | AD148: 22 | AE148: 43923 | AF148: 22 | AG148: 22 | AH148: 43923 | AI148: 22 | AJ148: 22 | AK148: 43923 | AL148: 22 | AM148: 22 | AN148: 43923 | AO148: 22 | AP148: 22 | AQ148: 43923 | AR148: 22 | AS148: 22 | AT148: 43923 | AU148: 52500 | AV148: 10000 | AW148: 42500 | AX148: 264 | AY148: 52236 | AZ148: 42236
A149: 147 | B149: محسن على ابراهيم-147 | C149: 22132244567 | D149: 5565656 | E149: آجل | F149: 52500 | G149: 10000 | H149: 42500 | I149: 140 | J149: 2020-12-28 | K149: 22 | L149: 22 | M149: 2020-08-15 | N149: 22 | O149: 22 | P149: 2020-08-15 | Q149: 22 | R149: 22 | S149: 43923 | T149: 22 | U149: 22 | V149: 43923 | W149: 22 | X149: 22 | Y149: 43923 | Z149: 22 | AA149: 22 | AB149: 43923 | AC149: 22 | AD149: 22 | AE149: 43923 | AF149: 22 | AG149: 22 | AH149: 43923 | AI149: 22 | AJ149: 22 | AK149: 43923 | AL149: 22 | AM149: 22 | AN149: 43923 | AO149: 22 | AP149: 22 | AQ149: 43923 | AR149: 22 | AS149: 22 | AT149: 43923 | AU149: 52500 | AV149: 10000 | AW149: 42500 | AX149: 264 | AY149: 52236 | AZ149: 42236
A150: 148 | B150: محسن على ابراهيم-148 | C150: 22132244567 | D150: 5565656 | E150: تقسيط | F150: 52500 | G150: 10000 | H150: 42500 | I150: 141 | J150: 2020-12-29 | K150: 22 | L150: 22 | M150: 2020-08-16 | N150: 22 | O150: 22 | P150: 2020-08-16 | Q150: 22 | R150: 22 | S150: 43923 | T150: 22 | U150: 22 | V150: 43923 | W150: 22 | X150: 22 | Y150: 43923 | Z150: 22 | AA150: 22 | AB150: 43923 | AC150: 22 | AD150: 22 | AE150: 43923 | AF150: 22 | AG150: 22 | AH150: 43923 | AI150: 22 | AJ150: 22 | AK150: 43923 | AL150: 22 | AM150: 22 | AN150: 43923 | AO150: 22 | AP150: 22 | AQ150: 43923 | AR150: 22 | AS150: 22 | AT150: 43923 | AU150: 52500 | AV150: 10000 | AW150: 42500 | AX150: 264 | AY150: 52236 | AZ150: 42236
A151: 149 | B151: محسن على ابراهيم-149 | C151: 22132244567 | D151: 5565656 | E151: آجل | F151: 52500 | G151: 10000 | H151: 42500 | I151: 142 | J151: 2020-12-30 | K151: 22 | L151: 22 | M151: 2020-08-17 | N151: 22 | O151: 22 | P151: 2020-08-17 | Q151: 22 | R151: 22 | S151: 43923 | T151: 22 | U151: 22 | V151: 43923 | W151: 22 | X151: 22 | Y151: 43923 | Z151: 22 | AA151: 22 | AB151: 43923 | AC151: 22 | AD151: 22 | AE151: 43923 | AF151: 22 | AG151: 22 | AH151: 43923 | AI151: 22 | AJ151: 22 | AK151: 43923 | AL151: 22 | AM151: 22 | AN151: 43923 | AO151: 22 | AP151: 22 | AQ151: 43923 | AR151: 22 | AS151: 22 | AT151: 43923 | AU151: 52500 | AV151: 10000 | AW151: 42500 | AX151: 264 | AY151: 52236 | AZ151: 42236
A152: 150 | B152: محسن على ابراهيم-150 | C152: 22132244567 | D152: 5565656 | E152: تقسيط | F152: 52500 | G152: 10000 | H152: 42500 | I152: 143 | J152: 2020-12-31 | K152: 22 | L152: 22 | M152: 2020-08-18 | N152: 22 | O152: 22 | P152: 2020-08-18 | Q152: 22 | R152: 22 | S152: 43923 | T152: 22 | U152: 22 | V152: 43923 | W152: 22 | X152: 22 | Y152: 43923 | Z152: 22 | AA152: 22 | AB152: 43923 | AC152: 22 | AD152: 22 | AE152: 43923 | AF152: 22 | AG152: 22 | AH152: 43923 | AI152: 22 | AJ152: 22 | AK152: 43923 | AL152: 22 | AM152: 22 | AN152: 43923 | AO152: 22 | AP152: 22 | AQ152: 43923 | AR152: 22 | AS152: 22 | AT152: 43923 | AU152: 52500 | AV152: 10000 | AW152: 42500 | AX152: 264 | AY152: 52236 | AZ152: 42236
A153: 151 | B153: محسن على ابراهيم-151 | C153: 22132244567 | D153: 5565656 | E153: آجل | F153: 52500 | G153: 10000 | H153: 42500 | I153: 144 | J153: 2021-01-01 | K153: 22 | L153: 22 | M153: 2020-08-19 | N153: 22 | O153: 22 | P153: 2020-08-19 | Q153: 22 | R153: 22 | S153: 43923 | T153: 22 | U153: 22 | V153: 43923 | W153: 22 | X153: 22 | Y153: 43923 | Z153: 22 | AA153: 22 | AB153: 43923 | AC153: 22 | AD153: 22 | AE153: 43923 | AF153: 22 | AG153: 22 | AH153: 43923 | AI153: 22 | AJ153: 22 | AK153: 43923 | AL153: 22 | AM153: 22 | AN153: 43923 | AO153: 22 | AP153: 22 | AQ153: 43923 | AR153: 22 | AS153: 22 | AT153: 43923 | AU153: 52500 | AV153: 10000 | AW153: 42500 | AX153: 264 | AY153: 52236 | AZ153: 42236
A154: 152 | B154: محسن على ابراهيم-152 | C154: 22132244567 | D154: 5565656 | E154: تقسيط | F154: 52500 | G154: 10000 | H154: 42500 | I154: 145 | J154: 2021-01-02 | K154: 22 | L154: 22 | M154: 2020-08-20 | N154: 22 | O154: 22 | P154: 2020-08-20 | Q154: 22 | R154: 22 | S154: 43923 | T154: 22 | U154: 22 | V154: 43923 | W154: 22 | X154: 22 | Y154: 43923 | Z154: 22 | AA154: 22 | AB154: 43923 | AC154: 22 | AD154: 22 | AE154: 43923 | AF154: 22 | AG154: 22 | AH154: 43923 | AI154: 22 | AJ154: 22 | AK154: 43923 | AL154: 22 | AM154: 22 | AN154: 43923 | AO154: 22 | AP154: 22 | AQ154: 43923 | AR154: 22 | AS154: 22 | AT154: 43923 | AU154: 52500 | AV154: 10000 | AW154: 42500 | AX154: 264 | AY154: 52236 | AZ154: 42236
A155: 153 | B155: محسن على ابراهيم-153 | C155: 22132244567 | D155: 5565656 | E155: آجل | F155: 52500 | G155: 10000 | H155: 42500 | I155: 146 | J155: 2021-01-03 | K155: 22 | L155: 22 | M155: 2020-08-21 | N155: 22 | O155: 22 | P155: 2020-08-21 | Q155: 22 | R155: 22 | S155: 43923 | T155: 22 | U155: 22 | V155: 43923 | W155: 22 | X155: 22 | Y155: 43923 | Z155: 22 | AA155: 22 | AB155: 43923 | AC155: 22 | AD155: 22 | AE155: 43923 | AF155: 22 | AG155: 22 | AH155: 43923 | AI155: 22 | AJ155: 22 | AK155: 43923 | AL155: 22 | AM155: 22 | AN155: 43923 | AO155: 22 | AP155: 22 | AQ155: 43923 | AR155: 22 | AS155: 22 | AT155: 43923 | AU155: 52500 | AV155: 10000 | AW155: 42500 | AX155: 264 | AY155: 52236 | AZ155: 42236
A156: 154 | B156: محسن على ابراهيم-154 | C156: 22132244567 | D156: 5565656 | E156: تقسيط | F156: 52500 | G156: 10000 | H156: 42500 | I156: 147 | J156: 2021-01-04 | K156: 22 | L156: 22 | M156: 2020-08-22 | N156: 22 | O156: 22 | P156: 2020-08-22 | Q156: 22 | R156: 22 | S156: 43923 | T156: 22 | U156: 22 | V156: 43923 | W156: 22 | X156: 22 | Y156: 43923 | Z156: 22 | AA156: 22 | AB156: 43923 | AC156: 22 | AD156: 22 | AE156: 43923 | AF156: 22 | AG156: 22 | AH156: 43923 | AI156: 22 | AJ156: 22 | AK156: 43923 | AL156: 22 | AM156: 22 | AN156: 43923 | AO156: 22 | AP156: 22 | AQ156: 43923 | AR156: 22 | AS156: 22 | AT156: 43923 | AU156: 52500 | AV156: 10000 | AW156: 42500 | AX156: 264 | AY156: 52236 | AZ156: 42236
A157: 155 | B157: محسن على ابراهيم-155 | C157: 22132244567 | D157: 5565656 | E157: آجل | F157: 52500 | G157: 10000 | H157: 42500 | I157: 148 | J157: 2021-01-05 | K157: 22 | L157: 22 | M157: 2020-08-23 | N157: 22 | O157: 22 | P157: 2020-08-23 | Q157: 22 | R157: 22 | S157: 43923 | T157: 22 | U157: 22 | V157: 43923 | W157: 22 | X157: 22 | Y157: 43923 | Z157: 22 | AA157: 22 | AB157: 43923 | AC157: 22 | AD157: 22 | AE157: 43923 | AF157: 22 | AG157: 22 | AH157: 43923 | AI157: 22 | AJ157: 22 | AK157: 43923 | AL157: 22 | AM157: 22 | AN157: 43923 | AO157: 22 | AP157: 22 | AQ157: 43923 | AR157: 22 | AS157: 22 | AT157: 43923 | AU157: 52500 | AV157: 10000 | AW157: 42500 | AX157: 264 | AY157: 52236 | AZ157: 42236
A158: 156 | B158: محسن على ابراهيم-156 | C158: 22132244567 | D158: 5565656 | E158: تقسيط | F158: 52500 | G158: 10000 | H158: 42500 | I158: 149 | J158: 2021-01-06 | K158: 22 | L158: 22 | M158: 2020-08-24 | N158: 22 | O158: 22 | P158: 2020-08-24 | Q158: 22 | R158: 22 | S158: 43923 | T158: 22 | U158: 22 | V158: 43923 | W158: 22 | X158: 22 | Y158: 43923 | Z158: 22 | AA158: 22 | AB158: 43923 | AC158: 22 | AD158: 22 | AE158: 43923 | AF158: 22 | AG158: 22 | AH158: 43923 | AI158: 22 | AJ158: 22 | AK158: 43923 | AL158: 22 | AM158: 22 | AN158: 43923 | AO158: 22 | AP158: 22 | AQ158: 43923 | AR158: 22 | AS158: 22 | AT158: 43923 | AU158: 52500 | AV158: 10000 | AW158: 42500 | AX158: 264 | AY158: 52236 | AZ158: 42236
A159: 157 | B159: محسن على ابراهيم-157 | C159: 22132244567 | D159: 5565656 | E159: آجل | F159: 52500 | G159: 10000 | H159: 42500 | I159: 150 | J159: 2021-01-07 | K159: 22 | L159: 22 | M159: 2020-08-25 | N159: 22 | O159: 22 | P159: 2020-08-25 | Q159: 22 | R159: 22 | S159: 43923 | T159: 22 | U159: 22 | V159: 43923 | W159: 22 | X159: 22 | Y159: 43923 | Z159: 22 | AA159: 22 | AB159: 43923 | AC159: 22 | AD159: 22 | AE159: 43923 | AF159: 22 | AG159: 22 | AH159: 43923 | AI159: 22 | AJ159: 22 | AK159: 43923 | AL159: 22 | AM159: 22 | AN159: 43923 | AO159: 22 | AP159: 22 | AQ159: 43923 | AR159: 22 | AS159: 22 | AT159: 43923 | AU159: 52500 | AV159: 10000 | AW159: 42500 | AX159: 264 | AY159: 52236 | AZ159: 42236
A160: 158 | B160: محسن على ابراهيم-158 | C160: 22132244567 | D160: 5565656 | E160: تقسيط | F160: 52500 | G160: 10000 | H160: 42500 | I160: 151 | J160: 2021-01-08 | K160: 22 | L160: 22 | M160: 2020-08-26 | N160: 22 | O160: 22 | P160: 2020-08-26 | Q160: 22 | R160: 22 | S160: 43923 | T160: 22 | U160: 22 | V160: 43923 | W160: 22 | X160: 22 | Y160: 43923 | Z160: 22 | AA160: 22 | AB160: 43923 | AC160: 22 | AD160: 22 | AE160: 43923 | AF160: 22 | AG160: 22 | AH160: 43923 | AI160: 22 | AJ160: 22 | AK160: 43923 | AL160: 22 | AM160: 22 | AN160: 43923 | AO160: 22 | AP160: 22 | AQ160: 43923 | AR160: 22 | AS160: 22 | AT160: 43923 | AU160: 52500 | AV160: 10000 | AW160: 42500 | AX160: 264 | AY160: 52236 | AZ160: 42236
A161: 159 | B161: محسن على ابراهيم-159 | C161: 22132244567 | D161: 5565656 | E161: آجل | F161: 52500 | G161: 10000 | H161: 42500 | I161: 152 | J161: 2021-01-09 | K161: 22 | L161: 22 | M161: 2020-08-27 | N161: 22 | O161: 22 | P161: 2020-08-27 | Q161: 22 | R161: 22 | S161: 43923 | T161: 22 | U161: 22 | V161: 43923 | W161: 22 | X161: 22 | Y161: 43923 | Z161: 22 | AA161: 22 | AB161: 43923 | AC161: 22 | AD161: 22 | AE161: 43923 | AF161: 22 | AG161: 22 | AH161: 43923 | AI161: 22 | AJ161: 22 | AK161: 43923 | AL161: 22 | AM161: 22 | AN161: 43923 | AO161: 22 | AP161: 22 | AQ161: 43923 | AR161: 22 | AS161: 22 | AT161: 43923 | AU161: 52500 | AV161: 10000 | AW161: 42500 | AX161: 264 | AY161: 52236 | AZ161: 42236
A162: 160 | B162: محسن على ابراهيم-160 | C162: 22132244567 | D162: 5565656 | E162: تقسيط | F162: 52500 | G162: 10000 | H162: 42500 | I162: 153 | J162: 2021-01-10 | K162: 22 | L162: 22 | M162: 2020-08-28 | N162: 22 | O162: 22 | P162: 2020-08-28 | Q162: 22 | R162: 22 | S162: 43923 | T162: 22 | U162: 22 | V162: 43923 | W162: 22 | X162: 22 | Y162: 43923 | Z162: 22 | AA162: 22 | AB162: 43923 | AC162: 22 | AD162: 22 | AE162: 43923 | AF162: 22 | AG162: 22 | AH162: 43923 | AI162: 22 | AJ162: 22 | AK162: 43923 | AL162: 22 | AM162: 22 | AN162: 43923 | AO162: 22 | AP162: 22 | AQ162: 43923 | AR162: 22 | AS162: 22 | AT162: 43923 | AU162: 52500 | AV162: 10000 | AW162: 42500 | AX162: 264 | AY162: 52236 | AZ162: 42236
A163: 161 | B163: محسن على ابراهيم-161 | C163: 22132244567 | D163: 5565656 | E163: آجل | F163: 52500 | G163: 10000 | H163: 42500 | I163: 154 | J163: 2021-01-11 | K163: 22 | L163: 22 | M163: 2020-08-29 | N163: 22 | O163: 22 | P163: 2020-08-29 | Q163: 22 | R163: 22 | S163: 43923 | T163: 22 | U163: 22 | V163: 43923 | W163: 22 | X163: 22 | Y163: 43923 | Z163: 22 | AA163: 22 | AB163: 43923 | AC163: 22 | AD163: 22 | AE163: 43923 | AF163: 22 | AG163: 22 | AH163: 43923 | AI163: 22 | AJ163: 22 | AK163: 43923 | AL163: 22 | AM163: 22 | AN163: 43923 | AO163: 22 | AP163: 22 | AQ163: 43923 | AR163: 22 | AS163: 22 | AT163: 43923 | AU163: 52500 | AV163: 10000 | AW163: 42500 | AX163: 264 | AY163: 52236 | AZ163: 42236
A164: 162 | B164: محسن على ابراهيم-162 | C164: 22132244567 | D164: 5565656 | E164: تقسيط | F164: 52500 | G164: 10000 | H164: 42500 | I164: 155 | J164: 2021-01-12 | K164: 22 | L164: 22 | M164: 2020-08-30 | N164: 22 | O164: 22 | P164: 2020-08-30 | Q164: 22 | R164: 22 | S164: 43923 | T164: 22 | U164: 22 | V164: 43923 | W164: 22 | X164: 22 | Y164: 43923 | Z164: 22 | AA164: 22 | AB164: 43923 | AC164: 22 | AD164: 22 | AE164: 43923 | AF164: 22 | AG164: 22 | AH164: 43923 | AI164: 22 | AJ164: 22 | AK164: 43923 | AL164: 22 | AM164: 22 | AN164: 43923 | AO164: 22 | AP164: 22 | AQ164: 43923 | AR164: 22 | AS164: 22 | AT164: 43923 | AU164: 52500 | AV164: 10000 | AW164: 42500 | AX164: 264 | AY164: 52236 | AZ164: 42236
A165: 163 | B165: محسن على ابراهيم-163 | C165: 22132244567 | D165: 5565656 | E165: آجل | F165: 52500 | G165: 10000 | H165: 42500 | I165: 156 | J165: 2021-01-13 | K165: 22 | L165: 22 | M165: 2020-08-31 | N165: 22 | O165: 22 | P165: 2020-08-31 | Q165: 22 | R165: 22 | S165: 43923 | T165: 22 | U165: 22 | V165: 43923 | W165: 22 | X165: 22 | Y165: 43923 | Z165: 22 | AA165: 22 | AB165: 43923 | AC165: 22 | AD165: 22 | AE165: 43923 | AF165: 22 | AG165: 22 | AH165: 43923 | AI165: 22 | AJ165: 22 | AK165: 43923 | AL165: 22 | AM165: 22 | AN165: 43923 | AO165: 22 | AP165: 22 | AQ165: 43923 | AR165: 22 | AS165: 22 | AT165: 43923 | AU165: 52500 | AV165: 10000 | AW165: 42500 | AX165: 264 | AY165: 52236 | AZ165: 42236
A166: 164 | B166: محسن على ابراهيم-164 | C166: 22132244567 | D166: 5565656 | E166: تقسيط | F166: 52500 | G166: 10000 | H166: 42500 | I166: 157 | J166: 2021-01-14 | K166: 22 | L166: 22 | M166: 2020-09-01 | N166: 22 | O166: 22 | P166: 2020-09-01 | Q166: 22 | R166: 22 | S166: 43923 | T166: 22 | U166: 22 | V166: 43923 | W166: 22 | X166: 22 | Y166: 43923 | Z166: 22 | AA166: 22 | AB166: 43923 | AC166: 22 | AD166: 22 | AE166: 43923 | AF166: 22 | AG166: 22 | AH166: 43923 | AI166: 22 | AJ166: 22 | AK166: 43923 | AL166: 22 | AM166: 22 | AN166: 43923 | AO166: 22 | AP166: 22 | AQ166: 43923 | AR166: 22 | AS166: 22 | AT166: 43923 | AU166: 52500 | AV166: 10000 | AW166: 42500 | AX166: 264 | AY166: 52236 | AZ166: 42236
A167: 165 | B167: محسن على ابراهيم-165 | C167: 22132244567 | D167: 5565656 | E167: آجل | F167: 52500 | G167: 10000 | H167: 42500 | I167: 158 | J167: 2021-01-15 | K167: 22 | L167: 22 | M167: 2020-09-02 | N167: 22 | O167: 22 | P167: 2020-09-02 | Q167: 22 | R167: 22 | S167: 43923 | T167: 22 | U167: 22 | V167: 43923 | W167: 22 | X167: 22 | Y167: 43923 | Z167: 22 | AA167: 22 | AB167: 43923 | AC167: 22 | AD167: 22 | AE167: 43923 | AF167: 22 | AG167: 22 | AH167: 43923 | AI167: 22 | AJ167: 22 | AK167: 43923 | AL167: 22 | AM167: 22 | AN167: 43923 | AO167: 22 | AP167: 22 | AQ167: 43923 | AR167: 22 | AS167: 22 | AT167: 43923 | AU167: 52500 | AV167: 10000 | AW167: 42500 | AX167: 264 | AY167: 52236 | AZ167: 42236
A168: 166 | B168: محسن على ابراهيم-166 | C168: 22132244567 | D168: 5565656 | E168: تقسيط | F168: 52500 | G168: 10000 | H168: 42500 | I168: 159 | J168: 2021-01-16 | K168: 22 | L168: 22 | M168: 2020-09-03 | N168: 22 | O168: 22 | P168: 2020-09-03 | Q168: 22 | R168: 22 | S168: 43923 | T168: 22 | U168: 22 | V168: 43923 | W168: 22 | X168: 22 | Y168: 43923 | Z168: 22 | AA168: 22 | AB168: 43923 | AC168: 22 | AD168: 22 | AE168: 43923 | AF168: 22 | AG168: 22 | AH168: 43923 | AI168: 22 | AJ168: 22 | AK168: 43923 | AL168: 22 | AM168: 22 | AN168: 43923 | AO168: 22 | AP168: 22 | AQ168: 43923 | AR168: 22 | AS168: 22 | AT168: 43923 | AU168: 52500 | AV168: 10000 | AW168: 42500 | AX168: 264 | AY168: 52236 | AZ168: 42236
A169: 167 | B169: محسن على ابراهيم-167 | C169: 22132244567 | D169: 5565656 | E169: آجل | F169: 52500 | G169: 10000 | H169: 42500 | I169: 160 | J169: 2021-01-17 | K169: 22 | L169: 22 | M169: 2020-09-04 | N169: 22 | O169: 22 | P169: 2020-09-04 | Q169: 22 | R169: 22 | S169: 43923 | T169: 22 | U169: 22 | V169: 43923 | W169: 22 | X169: 22 | Y169: 43923 | Z169: 22 | AA169: 22 | AB169: 43923 | AC169: 22 | AD169: 22 | AE169: 43923 | AF169: 22 | AG169: 22 | AH169: 43923 | AI169: 22 | AJ169: 22 | AK169: 43923 | AL169: 22 | AM169: 22 | AN169: 43923 | AO169: 22 | AP169: 22 | AQ169: 43923 | AR169: 22 | AS169: 22 | AT169: 43923 | AU169: 52500 | AV169: 10000 | AW169: 42500 | AX169: 264 | AY169: 52236 | AZ169: 42236
A170: 168 | B170: محسن على ابراهيم-168 | C170: 22132244567 | D170: 5565656 | E170: تقسيط | F170: 52500 | G170: 10000 | H170: 42500 | I170: 161 | J170: 2021-01-18 | K170: 22 | L170: 22 | M170: 2020-09-05 | N170: 22 | O170: 22 | P170: 2020-09-05 | Q170: 22 | R170: 22 | S170: 43923 | T170: 22 | U170: 22 | V170: 43923 | W170: 22 | X170: 22 | Y170: 43923 | Z170: 22 | AA170: 22 | AB170: 43923 | AC170: 22 | AD170: 22 | AE170: 43923 | AF170: 22 | AG170: 22 | AH170: 43923 | AI170: 22 | AJ170: 22 | AK170: 43923 | AL170: 22 | AM170: 22 | AN170: 43923 | AO170: 22 | AP170: 22 | AQ170: 43923 | AR170: 22 | AS170: 22 | AT170: 43923 | AU170: 52500 | AV170: 10000 | AW170: 42500 | AX170: 264 | AY170: 52236 | AZ170: 42236
A171: 169 | B171: محسن على ابراهيم-169 | C171: 22132244567 | D171: 5565656 | E171: آجل | F171: 52500 | G171: 10000 | H171: 42500 | I171: 162 | J171: 2021-01-19 | K171: 22 | L171: 22 | M171: 2020-09-06 | N171: 22 | O171: 22 | P171: 2020-09-06 | Q171: 22 | R171: 22 | S171: 43923 | T171: 22 | U171: 22 | V171: 43923 | W171: 22 | X171: 22 | Y171: 43923 | Z171: 22 | AA171: 22 | AB171: 43923 | AC171: 22 | AD171: 22 | AE171: 43923 | AF171: 22 | AG171: 22 | AH171: 43923 | AI171: 22 | AJ171: 22 | AK171: 43923 | AL171: 22 | AM171: 22 | AN171: 43923 | AO171: 22 | AP171: 22 | AQ171: 43923 | AR171: 22 | AS171: 22 | AT171: 43923 | AU171: 52500 | AV171: 10000 | AW171: 42500 | AX171: 264 | AY171: 52236 | AZ171: 42236
A172: 170 | B172: محسن على ابراهيم-170 | C172: 22132244567 | D172: 5565656 | E172: تقسيط | F172: 52500 | G172: 10000 | H172: 42500 | I172: 163 | J172: 2021-01-20 | K172: 22 | L172: 22 | M172: 2020-09-07 | N172: 22 | O172: 22 | P172: 2020-09-07 | Q172: 22 | R172: 22 | S172: 43923 | T172: 22 | U172: 22 | V172: 43923 | W172: 22 | X172: 22 | Y172: 43923 | Z172: 22 | AA172: 22 | AB172: 43923 | AC172: 22 | AD172: 22 | AE172: 43923 | AF172: 22 | AG172: 22 | AH172: 43923 | AI172: 22 | AJ172: 22 | AK172: 43923 | AL172: 22 | AM172: 22 | AN172: 43923 | AO172: 22 | AP172: 22 | AQ172: 43923 | AR172: 22 | AS172: 22 | AT172: 43923 | AU172: 52500 | AV172: 10000 | AW172: 42500 | AX172: 264 | AY172: 52236 | AZ172: 42236
A173: 171 | B173: محسن على ابراهيم-171 | C173: 22132244567 | D173: 5565656 | E173: آجل | F173: 52500 | G173: 10000 | H173: 42500 | I173: 164 | J173: 2021-01-21 | K173: 22 | L173: 22 | M173: 2020-09-08 | N173: 22 | O173: 22 | P173: 2020-09-08 | Q173: 22 | R173: 22 | S173: 43923 | T173: 22 | U173: 22 | V173: 43923 | W173: 22 | X173: 22 | Y173: 43923 | Z173: 22 | AA173: 22 | AB173: 43923 | AC173: 22 | AD173: 22 | AE173: 43923 | AF173: 22 | AG173: 22 | AH173: 43923 | AI173: 22 | AJ173: 22 | AK173: 43923 | AL173: 22 | AM173: 22 | AN173: 43923 | AO173: 22 | AP173: 22 | AQ173: 43923 | AR173: 22 | AS173: 22 | AT173: 43923 | AU173: 52500 | AV173: 10000 | AW173: 42500 | AX173: 264 | AY173: 52236 | AZ173: 42236
A174: 172 | B174: محسن على ابراهيم-172 | C174: 22132244567 | D174: 5565656 | E174: تقسيط | F174: 52500 | G174: 10000 | H174: 42500 | I174: 165 | J174: 2021-01-22 | K174: 22 | L174: 22 | M174: 2020-09-09 | N174: 22 | O174: 22 | P174: 2020-09-09 | Q174: 22 | R174: 22 | S174: 43923 | T174: 22 | U174: 22 | V174: 43923 | W174: 22 | X174: 22 | Y174: 43923 | Z174: 22 | AA174: 22 | AB174: 43923 | AC174: 22 | AD174: 22 | AE174: 43923 | AF174: 22 | AG174: 22 | AH174: 43923 | AI174: 22 | AJ174: 22 | AK174: 43923 | AL174: 22 | AM174: 22 | AN174: 43923 | AO174: 22 | AP174: 22 | AQ174: 43923 | AR174: 22 | AS174: 22 | AT174: 43923 | AU174: 52500 | AV174: 10000 | AW174: 42500 | AX174: 264 | AY174: 52236 | AZ174: 42236
A175: 173 | B175: محسن على ابراهيم-173 | C175: 22132244567 | D175: 5565656 | E175: آجل | F175: 52500 | G175: 10000 | H175: 42500 | I175: 166 | J175: 2021-01-23 | K175: 22 | L175: 22 | M175: 2020-09-10 | N175: 22 | O175: 22 | P175: 2020-09-10 | Q175: 22 | R175: 22 | S175: 43923 | T175: 22 | U175: 22 | V175: 43923 | W175: 22 | X175: 22 | Y175: 43923 | Z175: 22 | AA175: 22 | AB175: 43923 | AC175: 22 | AD175: 22 | AE175: 43923 | AF175: 22 | AG175: 22 | AH175: 43923 | AI175: 22 | AJ175: 22 | AK175: 43923 | AL175: 22 | AM175: 22 | AN175: 43923 | AO175: 22 | AP175: 22 | AQ175: 43923 | AR175: 22 | AS175: 22 | AT175: 43923 | AU175: 52500 | AV175: 10000 | AW175: 42500 | AX175: 264 | AY175: 52236 | AZ175: 42236
A176: 174 | B176: محسن على ابراهيم-174 | C176: 22132244567 | D176: 5565656 | E176: تقسيط | F176: 52500 | G176: 10000 | H176: 42500 | I176: 167 | J176: 2021-01-24 | K176: 22 | L176: 22 | M176: 2020-09-11 | N176: 22 | O176: 22 | P176: 2020-09-11 | Q176: 22 | R176: 22 | S176: 43923 | T176: 22 | U176: 22 | V176: 43923 | W176: 22 | X176: 22 | Y176: 43923 | Z176: 22 | AA176: 22 | AB176: 43923 | AC176: 22 | AD176: 22 | AE176: 43923 | AF176: 22 | AG176: 22 | AH176: 43923 | AI176: 22 | AJ176: 22 | AK176: 43923 | AL176: 22 | AM176: 22 | AN176: 43923 | AO176: 22 | AP176: 22 | AQ176: 43923 | AR176: 22 | AS176: 22 | AT176: 43923 | AU176: 52500 | AV176: 10000 | AW176: 42500 | AX176: 264 | AY176: 52236 | AZ176: 42236
A177: 175 | B177: محسن على ابراهيم-175 | C177: 22132244567 | D177: 5565656 | E177: آجل | F177: 52500 | G177: 10000 | H177: 42500 | I177: 168 | J177: 2021-01-25 | K177: 22 | L177: 22 | M177: 2020-09-12 | N177: 22 | O177: 22 | P177: 2020-09-12 | Q177: 22 | R177: 22 | S177: 43923 | T177: 22 | U177: 22 | V177: 43923 | W177: 22 | X177: 22 | Y177: 43923 | Z177: 22 | AA177: 22 | AB177: 43923 | AC177: 22 | AD177: 22 | AE177: 43923 | AF177: 22 | AG177: 22 | AH177: 43923 | AI177: 22 | AJ177: 22 | AK177: 43923 | AL177: 22 | AM177: 22 | AN177: 43923 | AO177: 22 | AP177: 22 | AQ177: 43923 | AR177: 22 | AS177: 22 | AT177: 43923 | AU177: 52500 | AV177: 10000 | AW177: 42500 | AX177: 264 | AY177: 52236 | AZ177: 42236
A178: 176 | B178: محسن على ابراهيم-176 | C178: 22132244567 | D178: 5565656 | E178: تقسيط | F178: 52500 | G178: 10000 | H178: 42500 | I178: 169 | J178: 2021-01-26 | K178: 22 | L178: 22 | M178: 2020-09-13 | N178: 22 | O178: 22 | P178: 2020-09-13 | Q178: 22 | R178: 22 | S178: 43923 | T178: 22 | U178: 22 | V178: 43923 | W178: 22 | X178: 22 | Y178: 43923 | Z178: 22 | AA178: 22 | AB178: 43923 | AC178: 22 | AD178: 22 | AE178: 43923 | AF178: 22 | AG178: 22 | AH178: 43923 | AI178: 22 | AJ178: 22 | AK178: 43923 | AL178: 22 | AM178: 22 | AN178: 43923 | AO178: 22 | AP178: 22 | AQ178: 43923 | AR178: 22 | AS178: 22 | AT178: 43923 | AU178: 52500 | AV178: 10000 | AW178: 42500 | AX178: 264 | AY178: 52236 | AZ178: 42236
A179: 177 | B179: محسن على ابراهيم-177 | C179: 22132244567 | D179: 5565656 | E179: آجل | F179: 52500 | G179: 10000 | H179: 42500 | I179: 170 | J179: 2021-01-27 | K179: 22 | L179: 22 | M179: 2020-09-14 | N179: 22 | O179: 22 | P179: 2020-09-14 | Q179: 22 | R179: 22 | S179: 43923 | T179: 22 | U179: 22 | V179: 43923 | W179: 22 | X179: 22 | Y179: 43923 | Z179: 22 | AA179: 22 | AB179: 43923 | AC179: 22 | AD179: 22 | AE179: 43923 | AF179: 22 | AG179: 22 | AH179: 43923 | AI179: 22 | AJ179: 22 | AK179: 43923 | AL179: 22 | AM179: 22 | AN179: 43923 | AO179: 22 | AP179: 22 | AQ179: 43923 | AR179: 22 | AS179: 22 | AT179: 43923 | AU179: 52500 | AV179: 10000 | AW179: 42500 | AX179: 264 | AY179: 52236 | AZ179: 42236
A180: 178 | B180: محسن على ابراهيم-178 | C180: 22132244567 | D180: 5565656 | E180: تقسيط | F180: 52500 | G180: 10000 | H180: 42500 | I180: 171 | J180: 2021-01-28 | K180: 22 | L180: 22 | M180: 2020-09-15 | N180: 22 | O180: 22 | P180: 2020-09-15 | Q180: 22 | R180: 22 | S180: 43923 | T180: 22 | U180: 22 | V180: 43923 | W180: 22 | X180: 22 | Y180: 43923 | Z180: 22 | AA180: 22 | AB180: 43923 | AC180: 22 | AD180: 22 | AE180: 43923 | AF180: 22 | AG180: 22 | AH180: 43923 | AI180: 22 | AJ180: 22 | AK180: 43923 | AL180: 22 | AM180: 22 | AN180: 43923 | AO180: 22 | AP180: 22 | AQ180: 43923 | AR180: 22 | AS180: 22 | AT180: 43923 | AU180: 52500 | AV180: 10000 | AW180: 42500 | AX180: 264 | AY180: 52236 | AZ180: 42236
A181: 179 | B181: محسن على ابراهيم-179 | C181: 22132244567 | D181: 5565656 | E181: آجل | F181: 52500 | G181: 10000 | H181: 42500 | I181: 172 | J181: 2021-01-29 | K181: 22 | L181: 22 | M181: 2020-09-16 | N181: 22 | O181: 22 | P181: 2020-09-16 | Q181: 22 | R181: 22 | S181: 43923 | T181: 22 | U181: 22 | V181: 43923 | W181: 22 | X181: 22 | Y181: 43923 | Z181: 22 | AA181: 22 | AB181: 43923 | AC181: 22 | AD181: 22 | AE181: 43923 | AF181: 22 | AG181: 22 | AH181: 43923 | AI181: 22 | AJ181: 22 | AK181: 43923 | AL181: 22 | AM181: 22 | AN181: 43923 | AO181: 22 | AP181: 22 | AQ181: 43923 | AR181: 22 | AS181: 22 | AT181: 43923 | AU181: 52500 | AV181: 10000 | AW181: 42500 | AX181: 264 | AY181: 52236 | AZ181: 42236
A182: 180 | B182: محسن على ابراهيم-180 | C182: 22132244567 | D182: 5565656 | E182: تقسيط | F182: 52500 | G182: 10000 | H182: 42500 | I182: 173 | J182: 2021-01-30 | K182: 22 | L182: 22 | M182: 2020-09-17 | N182: 22 | O182: 22 | P182: 2020-09-17 | Q182: 22 | R182: 22 | S182: 43923 | T182: 22 | U182: 22 | V182: 43923 | W182: 22 | X182: 22 | Y182: 43923 | Z182: 22 | AA182: 22 | AB182: 43923 | AC182: 22 | AD182: 22 | AE182: 43923 | AF182: 22 | AG182: 22 | AH182: 43923 | AI182: 22 | AJ182: 22 | AK182: 43923 | AL182: 22 | AM182: 22 | AN182: 43923 | AO182: 22 | AP182: 22 | AQ182: 43923 | AR182: 22 | AS182: 22 | AT182: 43923 | AU182: 52500 | AV182: 10000 | AW182: 42500 | AX182: 264 | AY182: 52236 | AZ182: 42236
A183: 181 | B183: محسن على ابراهيم-181 | C183: 22132244567 | D183: 5565656 | E183: آجل | F183: 52500 | G183: 10000 | H183: 42500 | I183: 174 | J183: 2021-01-31 | K183: 22 | L183: 22 | M183: 2020-09-18 | N183: 22 | O183: 22 | P183: 2020-09-18 | Q183: 22 | R183: 22 | S183: 43923 | T183: 22 | U183: 22 | V183: 43923 | W183: 22 | X183: 22 | Y183: 43923 | Z183: 22 | AA183: 22 | AB183: 43923 | AC183: 22 | AD183: 22 | AE183: 43923 | AF183: 22 | AG183: 22 | AH183: 43923 | AI183: 22 | AJ183: 22 | AK183: 43923 | AL183: 22 | AM183: 22 | AN183: 43923 | AO183: 22 | AP183: 22 | AQ183: 43923 | AR183: 22 | AS183: 22 | AT183: 43923 | AU183: 52500 | AV183: 10000 | AW183: 42500 | AX183: 264 | AY183: 52236 | AZ183: 42236
A184: 182 | B184: محسن على ابراهيم-182 | C184: 22132244567 | D184: 5565656 | E184: تقسيط | F184: 52500 | G184: 10000 | H184: 42500 | I184: 175 | J184: 2021-02-01 | K184: 22 | L184: 22 | M184: 2020-09-19 | N184: 22 | O184: 22 | P184: 2020-09-19 | Q184: 22 | R184: 22 | S184: 43923 | T184: 22 | U184: 22 | V184: 43923 | W184: 22 | X184: 22 | Y184: 43923 | Z184: 22 | AA184: 22 | AB184: 43923 | AC184: 22 | AD184: 22 | AE184: 43923 | AF184: 22 | AG184: 22 | AH184: 43923 | AI184: 22 | AJ184: 22 | AK184: 43923 | AL184: 22 | AM184: 22 | AN184: 43923 | AO184: 22 | AP184: 22 | AQ184: 43923 | AR184: 22 | AS184: 22 | AT184: 43923 | AU184: 52500 | AV184: 10000 | AW184: 42500 | AX184: 264 | AY184: 52236 | AZ184: 42236
A185: 183 | B185: محسن على ابراهيم-183 | C185: 22132244567 | D185: 5565656 | E185: آجل | F185: 52500 | G185: 10000 | H185: 42500 | I185: 176 | J185: 2021-02-02 | K185: 22 | L185: 22 | M185: 2020-09-20 | N185: 22 | O185: 22 | P185: 2020-09-20 | Q185: 22 | R185: 22 | S185: 43923 | T185: 22 | U185: 22 | V185: 43923 | W185: 22 | X185: 22 | Y185: 43923 | Z185: 22 | AA185: 22 | AB185: 43923 | AC185: 22 | AD185: 22 | AE185: 43923 | AF185: 22 | AG185: 22 | AH185: 43923 | AI185: 22 | AJ185: 22 | AK185: 43923 | AL185: 22 | AM185: 22 | AN185: 43923 | AO185: 22 | AP185: 22 | AQ185: 43923 | AR185: 22 | AS185: 22 | AT185: 43923 | AU185: 52500 | AV185: 10000 | AW185: 42500 | AX185: 264 | AY185: 52236 | AZ185: 42236
A186: 184 | B186: محسن على ابراهيم-184 | C186: 22132244567 | D186: 5565656 | E186: تقسيط | F186: 52500 | G186: 10000 | H186: 42500 | I186: 177 | J186: 2021-02-03 | K186: 22 | L186: 22 | M186: 2020-09-21 | N186: 22 | O186: 22 | P186: 2020-09-21 | Q186: 22 | R186: 22 | S186: 43923 | T186: 22 | U186: 22 | V186: 43923 | W186: 22 | X186: 22 | Y186: 43923 | Z186: 22 | AA186: 22 | AB186: 43923 | AC186: 22 | AD186: 22 | AE186: 43923 | AF186: 22 | AG186: 22 | AH186: 43923 | AI186: 22 | AJ186: 22 | AK186: 43923 | AL186: 22 | AM186: 22 | AN186: 43923 | AO186: 22 | AP186: 22 | AQ186: 43923 | AR186: 22 | AS186: 22 | AT186: 43923 | AU186: 52500 | AV186: 10000 | AW186: 42500 | AX186: 264 | AY186: 52236 | AZ186: 42236
A187: 185 | B187: محسن على ابراهيم-185 | C187: 22132244567 | D187: 5565656 | E187: آجل | F187: 52500 | G187: 10000 | H187: 42500 | I187: 178 | J187: 2021-02-04 | K187: 22 | L187: 22 | M187: 2020-09-22 | N187: 22 | O187: 22 | P187: 2020-09-22 | Q187: 22 | R187: 22 | S187: 43923 | T187: 22 | U187: 22 | V187: 43923 | W187: 22 | X187: 22 | Y187: 43923 | Z187: 22 | AA187: 22 | AB187: 43923 | AC187: 22 | AD187: 22 | AE187: 43923 | AF187: 22 | AG187: 22 | AH187: 43923 | AI187: 22 | AJ187: 22 | AK187: 43923 | AL187: 22 | AM187: 22 | AN187: 43923 | AO187: 22 | AP187: 22 | AQ187: 43923 | AR187: 22 | AS187: 22 | AT187: 43923 | AU187: 52500 | AV187: 10000 | AW187: 42500 | AX187: 264 | AY187: 52236 | AZ187: 42236
A188: 186 | B188: محسن على ابراهيم-186 | C188: 22132244567 | D188: 5565656 | E188: تقسيط | F188: 52500 | G188: 10000 | H188: 42500 | I188: 179 | J188: 2021-02-05 | K188: 22 | L188: 22 | M188: 2020-09-23 | N188: 22 | O188: 22 | P188: 2020-09-23 | Q188: 22 | R188: 22 | S188: 43923 | T188: 22 | U188: 22 | V188: 43923 | W188: 22 | X188: 22 | Y188: 43923 | Z188: 22 | AA188: 22 | AB188: 43923 | AC188: 22 | AD188: 22 | AE188: 43923 | AF188: 22 | AG188: 22 | AH188: 43923 | AI188: 22 | AJ188: 22 | AK188: 43923 | AL188: 22 | AM188: 22 | AN188: 43923 | AO188: 22 | AP188: 22 | AQ188: 43923 | AR188: 22 | AS188: 22 | AT188: 43923 | AU188: 52500 | AV188: 10000 | AW188: 42500 | AX188: 264 | AY188: 52236 | AZ188: 42236
A189: 187 | B189: محسن على ابراهيم-187 | C189: 22132244567 | D189: 5565656 | E189: آجل | F189: 52500 | G189: 10000 | H189: 42500 | I189: 180 | J189: 2021-02-06 | K189: 22 | L189: 22 | M189: 2020-09-24 | N189: 22 | O189: 22 | P189: 2020-09-24 | Q189: 22 | R189: 22 | S189: 43923 | T189: 22 | U189: 22 | V189: 43923 | W189: 22 | X189: 22 | Y189: 43923 | Z189: 22 | AA189: 22 | AB189: 43923 | AC189: 22 | AD189: 22 | AE189: 43923 | AF189: 22 | AG189: 22 | AH189: 43923 | AI189: 22 | AJ189: 22 | AK189: 43923 | AL189: 22 | AM189: 22 | AN189: 43923 | AO189: 22 | AP189: 22 | AQ189: 43923 | AR189: 22 | AS189: 22 | AT189: 43923 | AU189: 52500 | AV189: 10000 | AW189: 42500 | AX189: 264 | AY189: 52236 | AZ189: 42236
A190: 188 | B190: محسن على ابراهيم-188 | C190: 22132244567 | D190: 5565656 | E190: تقسيط | F190: 52500 | G190: 10000 | H190: 42500 | I190: 181 | J190: 2021-02-07 | K190: 22 | L190: 22 | M190: 2020-09-25 | N190: 22 | O190: 22 | P190: 2020-09-25 | Q190: 22 | R190: 22 | S190: 43923 | T190: 22 | U190: 22 | V190: 43923 | W190: 22 | X190: 22 | Y190: 43923 | Z190: 22 | AA190: 22 | AB190: 43923 | AC190: 22 | AD190: 22 | AE190: 43923 | AF190: 22 | AG190: 22 | AH190: 43923 | AI190: 22 | AJ190: 22 | AK190: 43923 | AL190: 22 | AM190: 22 | AN190: 43923 | AO190: 22 | AP190: 22 | AQ190: 43923 | AR190: 22 | AS190: 22 | AT190: 43923 | AU190: 52500 | AV190: 10000 | AW190: 42500 | AX190: 264 | AY190: 52236 | AZ190: 42236
A191: 189 | B191: محسن على ابراهيم-189 | C191: 22132244567 | D191: 5565656 | E191: آجل | F191: 52500 | G191: 10000 | H191: 42500 | I191: 182 | J191: 2021-02-08 | K191: 22 | L191: 22 | M191: 2020-09-26 | N191: 22 | O191: 22 | P191: 2020-09-26 | Q191: 22 | R191: 22 | S191: 43923 | T191: 22 | U191: 22 | V191: 43923 | W191: 22 | X191: 22 | Y191: 43923 | Z191: 22 | AA191: 22 | AB191: 43923 | AC191: 22 | AD191: 22 | AE191: 43923 | AF191: 22 | AG191: 22 | AH191: 43923 | AI191: 22 | AJ191: 22 | AK191: 43923 | AL191: 22 | AM191: 22 | AN191: 43923 | AO191: 22 | AP191: 22 | AQ191: 43923 | AR191: 22 | AS191: 22 | AT191: 43923 | AU191: 52500 | AV191: 10000 | AW191: 42500 | AX191: 264 | AY191: 52236 | AZ191: 42236
A192: 190 | B192: محسن على ابراهيم-190 | C192: 22132244567 | D192: 5565656 | E192: تقسيط | F192: 52500 | G192: 10000 | H192: 42500 | I192: 183 | J192: 2021-02-09 | K192: 22 | L192: 22 | M192: 2020-09-27 | N192: 22 | O192: 22 | P192: 2020-09-27 | Q192: 22 | R192: 22 | S192: 43923 | T192: 22 | U192: 22 | V192: 43923 | W192: 22 | X192: 22 | Y192: 43923 | Z192: 22 | AA192: 22 | AB192: 43923 | AC192: 22 | AD192: 22 | AE192: 43923 | AF192: 22 | AG192: 22 | AH192: 43923 | AI192: 22 | AJ192: 22 | AK192: 43923 | AL192: 22 | AM192: 22 | AN192: 43923 | AO192: 22 | AP192: 22 | AQ192: 43923 | AR192: 22 | AS192: 22 | AT192: 43923 | AU192: 52500 | AV192: 10000 | AW192: 42500 | AX192: 264 | AY192: 52236 | AZ192: 42236
A193: 191 | B193: محسن على ابراهيم-191 | C193: 22132244567 | D193: 5565656 | E193: آجل | F193: 52500 | G193: 10000 | H193: 42500 | I193: 184 | J193: 2021-02-10 | K193: 22 | L193: 22 | M193: 2020-09-28 | N193: 22 | O193: 22 | P193: 2020-09-28 | Q193: 22 | R193: 22 | S193: 43923 | T193: 22 | U193: 22 | V193: 43923 | W193: 22 | X193: 22 | Y193: 43923 | Z193: 22 | AA193: 22 | AB193: 43923 | AC193: 22 | AD193: 22 | AE193: 43923 | AF193: 22 | AG193: 22 | AH193: 43923 | AI193: 22 | AJ193: 22 | AK193: 43923 | AL193: 22 | AM193: 22 | AN193: 43923 | AO193: 22 | AP193: 22 | AQ193: 43923 | AR193: 22 | AS193: 22 | AT193: 43923 | AU193: 52500 | AV193: 10000 | AW193: 42500 | AX193: 264 | AY193: 52236 | AZ193: 42236
A194: 192 | B194: محسن على ابراهيم-192 | C194: 22132244567 | D194: 5565656 | E194: تقسيط | F194: 52500 | G194: 10000 | H194: 42500 | I194: 185 | J194: 2021-02-11 | K194: 22 | L194: 22 | M194: 2020-09-29 | N194: 22 | O194: 22 | P194: 2020-09-29 | Q194: 22 | R194: 22 | S194: 43923 | T194: 22 | U194: 22 | V194: 43923 | W194: 22 | X194: 22 | Y194: 43923 | Z194: 22 | AA194: 22 | AB194: 43923 | AC194: 22 | AD194: 22 | AE194: 43923 | AF194: 22 | AG194: 22 | AH194: 43923 | AI194: 22 | AJ194: 22 | AK194: 43923 | AL194: 22 | AM194: 22 | AN194: 43923 | AO194: 22 | AP194: 22 | AQ194: 43923 | AR194: 22 | AS194: 22 | AT194: 43923 | AU194: 52500 | AV194: 10000 | AW194: 42500 | AX194: 264 | AY194: 52236 | AZ194: 42236
A195: 193 | B195: محسن على ابراهيم-193 | C195: 22132244567 | D195: 5565656 | E195: آجل | F195: 52500 | G195: 10000 | H195: 42500 | I195: 186 | J195: 2021-02-12 | K195: 22 | L195: 22 | M195: 2020-09-30 | N195: 22 | O195: 22 | P195: 2020-09-30 | Q195: 22 | R195: 22 | S195: 43923 | T195: 22 | U195: 22 | V195: 43923 | W195: 22 | X195: 22 | Y195: 43923 | Z195: 22 | AA195: 22 | AB195: 43923 | AC195: 22 | AD195: 22 | AE195: 43923 | AF195: 22 | AG195: 22 | AH195: 43923 | AI195: 22 | AJ195: 22 | AK195: 43923 | AL195: 22 | AM195: 22 | AN195: 43923 | AO195: 22 | AP195: 22 | AQ195: 43923 | AR195: 22 | AS195: 22 | AT195: 43923 | AU195: =F195 -> 52500 | AV195: 10000 | AW195: 42500 | AX195: 264 | AY195: 52236 | AZ195: =H195-AX195 -> 42236
A196: 194 | B196: محسن على ابراهيم-194 | C196: 22132244567 | D196: 5565656 | E196: تقسيط | F196: 52500 | G196: 10000 | H196: =F196-G196 -> 42500 | I196: 187 | J196: 2021-02-13 | K196: 22 | L196: 22 | M196: 2020-10-01 | N196: 22 | O196: 22 | P196: 2020-10-01 | Q196: 22 | R196: 22 | S196: 43923 | T196: 22 | U196: 22 | V196: 43923 | W196: 22 | X196: 22 | Y196: 43923 | Z196: 22 | AA196: 22 | AB196: 43923 | AC196: 22 | AD196: 22 | AE196: 43923 | AF196: 22 | AG196: 22 | AH196: 43923 | AI196: 22 | AJ196: 22 | AK196: 43923 | AL196: 22 | AM196: 22 | AN196: 43923 | AO196: 22 | AP196: 22 | AQ196: 43923 | AR196: 22 | AS196: 22 | AT196: 43923 | AU196: 52500 | AV196: 10000 | AW196: 42500 | AX196: 264 | AY196: =F196-AX196 -> 52236 | AZ196: 42236
A197: 195 | B197: محسن على ابراهيم-195 | C197: 22132244567 | D197: 5565656 | E197: آجل | F197: 52500 | G197: 10000 | H197: 42500 | I197: 188 | J197: 2021-02-14 | K197: 22 | L197: 22 | M197: 2020-10-02 | N197: 22 | O197: 22 | P197: 2020-10-02 | Q197: 22 | R197: 22 | S197: 43923 | T197: 22 | U197: 22 | V197: 43923 | W197: 22 | X197: 22 | Y197: 43923 | Z197: 22 | AA197: 22 | AB197: 43923 | AC197: 22 | AD197: 22 | AE197: 43923 | AF197: 22 | AG197: 22 | AH197: 43923 | AI197: 22 | AJ197: 22 | AK197: 43923 | AL197: 22 | AM197: 22 | AN197: 43923 | AO197: 22 | AP197: 22 | AQ197: 43923 | AR197: 22 | AS197: 22 | AT197: 43923 | AU197: 52500 | AV197: 10000 | AW197: 42500 | AX197: 264 | AY197: 52236 | AZ197: 42236
A198: 196 | B198: محسن على ابراهيم-196 | C198: 22132244567 | D198: 5565656 | E198: تقسيط | F198: 52500 | G198: 10000 | H198: 42500 | I198: 189 | J198: 2021-02-15 | K198: 22 | L198: 22 | M198: 2020-10-03 | N198: 22 | O198: 22 | P198: 2020-10-03 | Q198: 22 | R198: 22 | S198: 43923 | T198: 22 | U198: 22 | V198: 43923 | W198: 22 | X198: 22 | Y198: 43923 | Z198: 22 | AA198: 22 | AB198: 43923 | AC198: 22 | AD198: 22 | AE198: 43923 | AF198: 22 | AG198: 22 | AH198: 43923 | AI198: 22 | AJ198: 22 | AK198: 43923 | AL198: 22 | AM198: 22 | AN198: 43923 | AO198: 22 | AP198: 22 | AQ198: 43923 | AR198: 22 | AS198: 22 | AT198: 43923 | AU198: 52500 | AV198: 10000 | AW198: 42500 | AX198: =SUM(K198+N198+Q198+T198+W198+Z198+AF198+AC198+AI198+AL198+AO198+AR198) -> 264 | AY198: 52236 | AZ198: 42236
A199: 197 | B199: محسن على ابراهيم-197 | C199: 22132244567 | D199: 5565656 | E199: آجل | F199: 52500 | G199: 10000 | H199: 42500 | I199: 190 | J199: 2021-02-16 | K199: 22 | L199: 22 | M199: 2020-10-04 | N199: 22 | O199: 22 | P199: 2020-10-04 | Q199: 22 | R199: 22 | S199: 43923 | T199: 22 | U199: 22 | V199: 43923 | W199: 22 | X199: 22 | Y199: 43923 | Z199: 22 | AA199: 22 | AB199: 43923 | AC199: 22 | AD199: 22 | AE199: 43923 | AF199: 22 | AG199: 22 | AH199: 43923 | AI199: 22 | AJ199: 22 | AK199: 43923 | AL199: 22 | AM199: 22 | AN199: 43923 | AO199: 22 | AP199: 22 | AQ199: 43923 | AR199: 22 | AS199: 22 | AT199: 43923 | AU199: 52500 | AV199: 10000 | AW199: 42500 | AX199: 264 | AY199: 52236 | AZ199: 42236
A200: 198 | B200: محسن على ابراهيم-198 | C200: 22132244567 | D200: 5565656 | E200: تقسيط | F200: 52500 | G200: 10000 | H200: 42500 | I200: 191 | J200: 2021-02-17 | K200: 102 | L200: 22 | M200: 2020-10-05 | N200: 22 | O200: 22 | P200: 2020-10-05 | Q200: 22 | R200: 22 | S200: 43923 | T200: 22 | U200: 22 | V200: 43923 | W200: 22 | X200: 22 | Y200: 43923 | Z200: 22 | AA200: 22 | AB200: 43923 | AC200: 22 | AD200: 22 | AE200: 43923 | AF200: 22 | AG200: 22 | AH200: 43923 | AI200: 22 | AJ200: 22 | AK200: 43923 | AL200: 22 | AM200: 22 | AN200: 43923 | AO200: 22 | AP200: 22 | AQ200: 43923 | AR200: 22 | AS200: 22 | AT200: 43923 | AU200: 52500 | AV200: 10000 | AW200: 42500 | AX200: 344 | AY200: 52156 | AZ200: 42156
... 2 more rows

Sheet One
B3: الاسم | C3: محسن على ابراهيم-1 | F3: الاقساط
B4: رقم الهوية | C4: =OFFSET(INDEX(All!$C$3:$C$250,MATCH($C$3,All!$B$3:$B$2500,0)),,1) -> 5565656 | E4: م | F4: المبلغ | G4: رقم الايصال | H4: التاريخ
B5: رقم الجوال | C5: =OFFSET(INDEX(All!$C$3:$C$250,MATCH($C$3,All!$B$3:$B$2500,0)),,0) -> 22132244567 | E5: 1 | F5: =OFFSET(INDEX(All!$C$3:$C$250,MATCH($C$3,All!$B$3:$B$250,0)),,COLUMNS($A$1:A1)+7+(ROWS($A$1:A1)-1)*3) -> 130 | G5: =OFFSET(INDEX(All!$C$3:$C$250,MATCH($C$3,All!$B$3:$B$250,0)),,COLUMNS($A$1:B1)+7+(ROWS($A$1:B1)-1)*3) -> 15 | H5: =OFFSET(INDEX(All!$C$3:$C$250,MATCH($C$3,All!$B$3:$B$250,0)),,COLUMNS($A$1:C1)+7+(ROWS($A$1:C1)-1)*3) -> 2020-03-22
E6: 2 | F6: =OFFSET(INDEX(All!$C$3:$C$250,MATCH($C$3,All!$B$3:$B$250,0)),,COLUMNS($A$1:A2)+7+(ROWS($A$1:A2)-1)*3) -> 22 | G6: =OFFSET(INDEX(All!$C$3:$C$250,MATCH($C$3,All!$B$3:$B$250,0)),,COLUMNS($A$1:B2)+7+(ROWS($A$1:B2)-1)*3) -> 22 | H6: =OFFSET(INDEX(All!$C$3:$C$250,MATCH($C$3,All!$B$3:$B$250,0)),,COLUMNS($A$1:C2)+7+(ROWS($A$1:C2)-1)*3) -> 2020-03-22
E7: 3 | F7: =OFFSET(INDEX(All!$C$3:$C$250,MATCH($C$3,All!$B$3:$B$250,0)),,COLUMNS($A$1:A3)+7+(ROWS($A$1:A3)-1)*3) -> 22 | G7: =OFFSET(INDEX(All!$C$3:$C$250,MATCH($C$3,All!$B$3:$B$250,0)),,COLUMNS($A$1:B3)+7+(ROWS($A$1:B3)-1)*3) -> 22 | H7: =OFFSET(INDEX(All!$C$3:$C$250,MATCH($C$3,All!$B$3:$B$250,0)),,COLUMNS($A$1:C3)+7+(ROWS($A$1:C3)-1)*3) -> 2020-03-22 | L7: `
B8: نوع السداد | C8: =OFFSET(INDEX(All!$C$3:$C$250,MATCH($C$3,All!$B$3:$B$250,0)),,ROWS($A$1:A2)) -> تقسيط | E8: 4 | F8: =OFFSET(INDEX(All!$C$3:$C$250,MATCH($C$3,All!$B$3:$B$250,0)),,COLUMNS($A$1:A4)+7+(ROWS($A$1:A4)-1)*3) -> 22 | G8: =OFFSET(INDEX(All!$C$3:$C$250,MATCH($C$3,All!$B$3:$B$250,0)),,COLUMNS($A$1:B4)+7+(ROWS($A$1:B4)-1)*3) -> 22 | H8: =OFFSET(INDEX(All!$C$3:$C$250,MATCH($C$3,All!$B$3:$B$250,0)),,COLUMNS($A$1:C4)+7+(ROWS($A$1:C4)-1)*3) -> 2020-03-22
B9: المديونية الاساسية | C9: =OFFSET(INDEX(All!$C$3:$C$250,MATCH($C$3,All!$B$3:$B$250,0)),,ROWS($A$1:A3)) -> 140000 | E9: 5 | F9: =OFFSET(INDEX(All!$C$3:$C$250,MATCH($C$3,All!$B$3:$B$250,0)),,COLUMNS($A$1:A5)+7+(ROWS($A$1:A5)-1)*3) -> 22 | G9: =OFFSET(INDEX(All!$C$3:$C$250,MATCH($C$3,All!$B$3:$B$250,0)),,COLUMNS($A$1:B5)+7+(ROWS($A$1:B5)-1)*3) -> 22 | H9: =OFFSET(INDEX(All!$C$3:$C$250,MATCH($C$3,All!$B$3:$B$250,0)),,COLUMNS($A$1:C5)+7+(ROWS($A$1:C5)-1)*3) -> 2020-03-22
B10: خصم إلتزام السداد | C10: =OFFSET(INDEX(All!$C$3:$C$250,MATCH($C$3,All!$B$3:$B$250,0)),,ROWS($A$1:A4)) -> 41700 | E10: 6 | F10: =OFFSET(INDEX(All!$C$3:$C$250,MATCH($C$3,All!$B$3:$B$250,0)),,COLUMNS($A$1:A6)+7+(ROWS($A$1:A6)-1)*3) -> 22 | G10: =OFFSET(INDEX(All!$C$3:$C$250,MATCH($C$3,All!$B$3:$B$250,0)),,COLUMNS($A$1:B6)+7+(ROWS($A$1:B6)-1)*3) -> 22 | H10: =OFFSET(INDEX(All!$C$3:$C$250,MATCH($C$3,All!$B$3:$B$250,0)),,COLUMNS($A$1:C6)+7+(ROWS($A$1:C6)-1)*3) -> 2020-03-22
B11: المديونية في حالة إلتزام السداد | C11: =OFFSET(INDEX(All!$C$3:$C$250,MATCH($C$3,All!$B$3:$B$250,0)),,ROWS($A$1:A5)) -> 98300 | E11: 7 | F11: =OFFSET(INDEX(All!$C$3:$C$250,MATCH($C$3,All!$B$3:$B$250,0)),,COLUMNS($A$1:A7)+7+(ROWS($A$1:A7)-1)*3) -> 22 | G11: =OFFSET(INDEX(All!$C$3:$C$250,MATCH($C$3,All!$B$3:$B$250,0)),,COLUMNS($A$1:B7)+7+(ROWS($A$1:B7)-1)*3) -> 22 | H11: =OFFSET(INDEX(All!$C$3:$C$250,MATCH($C$3,All!$B$3:$B$250,0)),,COLUMNS($A$1:C7)+7+(ROWS($A$1:C7)-1)*3) -> 2020-03-22
B12: عدد الاقسام | C12: =OFFSET(INDEX(All!$C$3:$C$250,MATCH($C$3,All!$B$3:$B$250,0)),,ROWS($A$1:A6)) -> 10 | E12: 8 | F12: =OFFSET(INDEX(All!$C$3:$C$250,MATCH($C$3,All!$B$3:$B$250,0)),,COLUMNS($A$1:A8)+7+(ROWS($A$1:A8)-1)*3) -> 22 | G12: =OFFSET(INDEX(All!$C$3:$C$250,MATCH($C$3,All!$B$3:$B$250,0)),,COLUMNS($A$1:B8)+7+(ROWS($A$1:B8)-1)*3) -> 22 | H12: =OFFSET(INDEX(All!$C$3:$C$250,MATCH($C$3,All!$B$3:$B$250,0)),,COLUMNS($A$1:C8)+7+(ROWS($A$1:C8)-1)*3) -> 2020-03-22
B13: بداية السداد / تاريخ السداد | C13: =OFFSET(INDEX(All!$C$3:$C$250,MATCH($C$3,All!$B$3:$B$250,0)),,ROWS($A$1:A7)) -> 43976 | E13: 9 | F13: =OFFSET(INDEX(All!$C$3:$C$250,MATCH($C$3,All!$B$3:$B$250,0)),,COLUMNS($A$1:A9)+7+(ROWS($A$1:A9)-1)*3) -> 22 | G13: =OFFSET(INDEX(All!$C$3:$C$250,MATCH($C$3,All!$B$3:$B$250,0)),,COLUMNS($A$1:B9)+7+(ROWS($A$1:B9)-1)*3) -> 22 | H13: =OFFSET(INDEX(All!$C$3:$C$250,MATCH($C$3,All!$B$3:$B$250,0)),,COLUMNS($A$1:C9)+7+(ROWS($A$1:C9)-1)*3) -> 2020-03-22
E14: 10 | F14: =OFFSET(INDEX(All!$C$3:$C$250,MATCH($C$3,All!$B$3:$B$250,0)),,COLUMNS($A$1:A10)+7+(ROWS($A$1:A10)-1)*3) -> 22 | G14: =OFFSET(INDEX(All!$C$3:$C$250,MATCH($C$3,All!$B$3:$B$250,0)),,COLUMNS($A$1:B10)+7+(ROWS($A$1:B10)-1)*3) -> 22 | H14: =OFFSET(INDEX(All!$C$3:$C$250,MATCH($C$3,All!$B$3:$B$250,0)),,COLUMNS($A$1:C10)+7+(ROWS($A$1:C10)-1)*3) -> 2020-03-22
B15: =B11 -> المديونية في حالة إلتزام السداد | C15: =OFFSET(INDEX(All!$C$3:$C$250,MATCH($C$3,All!$B$3:$B$250,0)),,6) -> 10 | E15: 11 | F15: =OFFSET(INDEX(All!$C$3:$C$250,MATCH($C$3,All!$B$3:$B$250,0)),,COLUMNS($A$1:A11)+7+(ROWS($A$1:A11)-1)*3) -> 22 | G15: =OFFSET(INDEX(All!$C$3:$C$250,MATCH($C$3,All!$B$3:$B$250,0)),,COLUMNS($A$1:B11)+7+(ROWS($A$1:B11)-1)*3) -> 22 | H15: =OFFSET(INDEX(All!$C$3:$C$250,MATCH($C$3,All!$B$3:$B$250,0)),,COLUMNS($A$1:C11)+7+(ROWS($A$1:C11)-1)*3) -> 2020-03-22
E16: 12 | F16: =OFFSET(INDEX(All!$C$3:$C$250,MATCH($C$3,All!$B$3:$B$250,0)),,COLUMNS($A$1:A12)+7+(ROWS($A$1:A12)-1)*3) -> 22 | G16: =OFFSET(INDEX(All!$C$3:$C$250,MATCH($C$3,All!$B$3:$B$250,0)),,COLUMNS($A$1:B12)+7+(ROWS($A$1:B12)-1)*3) -> 22 | H16: =OFFSET(INDEX(All!$C$3:$C$250,MATCH($C$3,All!$B$3:$B$250,0)),,COLUMNS($A$1:C12)+7+(ROWS($A$1:C12)-1)*3) -> 2020-03-22
E18: المحصل | G18: =OFFSET(INDEX(All!$C$3:$C$250,MATCH($C$3,All!$B$3:$B$250,0)),,48) -> 139628
E19: رصيد باقي المديونية بدون خصم | G19: =OFFSET(INDEX(All!$C$3:$C$250,MATCH($C$3,All!$B$3:$B$250,0)),,47) -> 372
E20: رصيد باقي المديونية معمد الخصم | G20: =OFFSET(INDEX(All!$C$3:$C$250,MATCH($C$3,All!$B$3:$B$250,0)),,49) -> 97928
B22: الملاحظات
